Departmental Family,Entity,Date,Expense type,Expense area,Supplier,Transaction Number,Amount,Description
Department for Education,DEPARTMENT FOR EDUCATION,01/09/2016,Grants,Children's Services Special Educational Needs Group,THE FAMILY FUND TRUST,4000246128,2397000.00,Grants to educational establishments or not for profit organisations including other businesses
Department for Education,DEPARTMENT FOR EDUCATION,01/09/2016,Grants,Adoption and Children in Care Division,LONDON BOROUGH OF GREENWICH,4000246131,124000.00,Grants to local authorities / other establishments within aggregate external funding or aggregate exchequer grant
Department for Education,DEPARTMENT FOR EDUCATION,01/09/2016,Grants,Adoption and Children in Care Division,THE ROYAL BOROUGH OF KENSINGTON & CHELSEA COUNCIL,4000246132,27000.00,Grants to local authorities / other establishments within aggregate external funding or aggregate exchequer grant
Department for Education,DEPARTMENT FOR EDUCATION,01/09/2016,Grants,Adoption and Children in Care Division,SURREY COUNTY COUNCIL,4000246133,87000.00,Grants to local authorities / other establishments within aggregate external funding or aggregate exchequer grant
Department for Education,DEPARTMENT FOR EDUCATION,01/09/2016,Grants,Academies Regional Delivery Group,CHALLNEY HIGH SCHOOL FOR GIRLS,4000246136,25000.00,Grants to educational establishments or not for profit organisations including other businesses
Department for Education,DEPARTMENT FOR EDUCATION,01/09/2016,Grants,Adoption and Children in Care Division,SOMERSET COUNTY COUNCIL,4000246139,27000.00,Grants to local authorities / other establishments within aggregate external funding or aggregate exchequer grant
Department for Education,DEPARTMENT FOR EDUCATION,01/09/2016,Grants,Adoption and Children in Care Division,OXFORDSHIRE COUNTY COUNCIL,4000246140,54000.00,Grants to local authorities / other establishments within aggregate external funding or aggregate exchequer grant
Department for Education,DEPARTMENT FOR EDUCATION,01/09/2016,Grants,Adoption and Children in Care Division,NORTHAMPTONSHIRE COUNTY COUNCIL,4000246141,97000.00,Grants to local authorities / other establishments within aggregate external funding or aggregate exchequer grant
Department for Education,DEPARTMENT FOR EDUCATION,01/09/2016,Grants,Adoption and Children in Care Division,CUMBRIA COUNTY COUNCIL,4000246142,252000.00,Grants to local authorities / other establishments within aggregate external funding or aggregate exchequer grant
Department for Education,DEPARTMENT FOR EDUCATION,01/09/2016,Grants,Adoption and Children in Care Division,CORNWALL COUNCIL,4000246143,27000.00,Grants to local authorities / other establishments within aggregate external funding or aggregate exchequer grant
Department for Education,DEPARTMENT FOR EDUCATION,01/09/2016,Grants,Adoption and Children in Care Division,COVENTRY CITY COUNCIL,4000246144,54000.00,Grants to local authorities / other establishments within aggregate external funding or aggregate exchequer grant
Department for Education,DEPARTMENT FOR EDUCATION,01/09/2016,Grants,Adoption and Children in Care Division,NOTTINGHAM CITY COUNCIL,4000246145,43000.00,Grants to local authorities / other establishments within aggregate external funding or aggregate exchequer grant
Department for Education,DEPARTMENT FOR EDUCATION,01/09/2016,Grants,Adoption and Children in Care Division,NOTTINGHAMSHIRE COUNTY COUNCIL,4000246148,27000.00,Grants to local authorities / other establishments within aggregate external funding or aggregate exchequer grant
Department for Education,DEPARTMENT FOR EDUCATION,01/09/2016,Grants,Adoption and Children in Care Division,BLACKPOOL BOROUGH COUNCIL,4000246149,86000.00,Grants to local authorities / other establishments within aggregate external funding or aggregate exchequer grant
Department for Education,DEPARTMENT FOR EDUCATION,01/09/2016,Grants,Adoption and Children in Care Division,LANCASHIRE COUNTY COUNCIL,4000246150,43000.00,Grants to local authorities / other establishments within aggregate external funding or aggregate exchequer grant
Department for Education,DEPARTMENT FOR EDUCATION,01/09/2016,Grants,Adoption and Children in Care Division,MEDWAY COUNCIL,4000246151,86000.00,Grants to local authorities / other establishments within aggregate external funding or aggregate exchequer grant
Department for Education,DEPARTMENT FOR EDUCATION,01/09/2016,Grants,Adoption and Children in Care Division,WORCESTERSHIRE COUNTY COUNCIL,4000246152,27000.00,Grants to local authorities / other establishments within aggregate external funding or aggregate exchequer grant
Department for Education,DEPARTMENT FOR EDUCATION,01/09/2016,Grants,Academies Regional Delivery Group,BYFIELD SCHOOL,4000246157,25000.00,Grants to educational establishments or not for profit organisations including other businesses
Department for Education,DEPARTMENT FOR EDUCATION,01/09/2016,Grants,Adoption and Children in Care Division,PLYMOUTH CITY COUNCIL,4000246159,27000.00,Grants to local authorities / other establishments within aggregate external funding or aggregate exchequer grant
Department for Education,DEPARTMENT FOR EDUCATION,01/09/2016,Grants,Adoption and Children in Care Division,WOLVERHAMPTON CITY COUNCIL,4000246160,54000.00,Grants to local authorities / other establishments within aggregate external funding or aggregate exchequer grant
Department for Education,DEPARTMENT FOR EDUCATION,01/09/2016,Grants,Adoption and Children in Care Division,HALTON BOROUGH COUNCIL,4000246161,60000.00,Grants to local authorities / other establishments within aggregate external funding or aggregate exchequer grant
Department for Education,DEPARTMENT FOR EDUCATION,01/09/2016,Grants,Adoption and Children in Care Division,STOKE ON TRENT CITY COUNCIL,4000246162,54000.00,Grants to local authorities / other establishments within aggregate external funding or aggregate exchequer grant
Department for Education,DEPARTMENT FOR EDUCATION,01/09/2016,Grants,Adoption and Children in Care Division,STAFFORDSHIRE COUNCIL,4000246163,87000.00,Grants to local authorities / other establishments within aggregate external funding or aggregate exchequer grant
Department for Education,DEPARTMENT FOR EDUCATION,01/09/2016,Grants,Academies Regional Delivery Group,WEST MIDLANDS ACADEMY TRUST,4000246165,143000.00,Grants to educational establishments or not for profit organisations including other businesses
Department for Education,DEPARTMENT FOR EDUCATION,01/09/2016,Grants,Adoption and Children in Care Division,CHESHIRE EAST COUNCIL,4000246170,43000.00,Grants to local authorities / other establishments within aggregate external funding or aggregate exchequer grant
Department for Education,DEPARTMENT FOR EDUCATION,01/09/2016,Grants,Adoption and Children in Care Division,SOUTHAMPTON CITY COUNCIL,4000246171,70000.00,Grants to local authorities / other establishments within aggregate external funding or aggregate exchequer grant
Department for Education,DEPARTMENT FOR EDUCATION,01/09/2016,Grants,Adoption and Children in Care Division,BRIGHTON & HOVE CITY COUNCIL,4000246172,43000.00,Grants to local authorities / other establishments within aggregate external funding or aggregate exchequer grant
Department for Education,DEPARTMENT FOR EDUCATION,01/09/2016,Grants,Adoption and Children in Care Division,DERBYSHIRE COUNTY COUNCIL,4000246173,86000.00,Grants to local authorities / other establishments within aggregate external funding or aggregate exchequer grant
Department for Education,DEPARTMENT FOR EDUCATION,01/09/2016,Grants,Adoption and Children in Care Division,LUTON BOROUGH COUNCIL,4000246174,60000.00,Grants to local authorities / other establishments within aggregate external funding or aggregate exchequer grant
Department for Education,DEPARTMENT FOR EDUCATION,01/09/2016,Grants,Adoption and Children in Care Division,YORK CITY COUNCIL,4000246181,43000.00,Grants to local authorities / other establishments within aggregate external funding or aggregate exchequer grant
Department for Education,DEPARTMENT FOR EDUCATION,01/09/2016,Grants,Adoption and Children in Care Division,NORTH EAST LINCOLNSHIRE COUNCIL,4000246182,27000.00,Grants to local authorities / other establishments within aggregate external funding or aggregate exchequer grant
Department for Education,DEPARTMENT FOR EDUCATION,01/09/2016,Grants,Adoption and Children in Care Division,KINGSTON UPON HULL COUNCIL,4000246183,43000.00,Grants to local authorities / other establishments within aggregate external funding or aggregate exchequer grant
Department for Education,DEPARTMENT FOR EDUCATION,01/09/2016,Grants,Adoption and Children in Care Division,MIDDLESBROUGH COUNCIL,4000246184,43000.00,Grants to local authorities / other establishments within aggregate external funding or aggregate exchequer grant
Department for Education,DEPARTMENT FOR EDUCATION,01/09/2016,Grants,Adoption and Children in Care Division,NORTH SOMERSET COUNCIL,4000246185,43000.00,Grants to local authorities / other establishments within aggregate external funding or aggregate exchequer grant
Department for Education,DEPARTMENT FOR EDUCATION,01/09/2016,Grants,Adoption and Children in Care Division,LEICESTER CITY COUNCIL,4000246187,27000.00,Grants to local authorities / other establishments within aggregate external funding or aggregate exchequer grant
Department for Education,DEPARTMENT FOR EDUCATION,01/09/2016,Grants,Adoption and Children in Care Division,DONCASTER CHILDRENS TRUST,4000246190,43000.00,Grants to local authorities / other establishments within aggregate external funding or aggregate exchequer grant
Department for Education,DEPARTMENT FOR EDUCATION,01/09/2016,Grants,System Reform Group,SCHOOL GOVERNORS ONE STOP SHOP,4000246191,135574.00,Grants to educational establishments or not for profit organisations including other businesses
Department for Education,DEPARTMENT FOR EDUCATION,01/09/2016,Grants,Office of the Schools Commissioner Group,WEYDON SCHOOL,4000246193,50000.00,Grants to educational establishments or not for profit organisations including other businesses
Department for Education,DEPARTMENT FOR EDUCATION,01/09/2016,Grants,Adoption and Children in Care Division,ROTHERHAM MBC,4000246197,97000.00,Grants to local authorities / other establishments within aggregate external funding or aggregate exchequer grant
Department for Education,DEPARTMENT FOR EDUCATION,01/09/2016,Grants,Adoption and Children in Care Division,HERTFORDSHIRE COUNTY COUNCIL,4000246205,27000.00,Grants to local authorities / other establishments within aggregate external funding or aggregate exchequer grant
Department for Education,DEPARTMENT FOR EDUCATION,01/09/2016,Grants,Academies Regional Delivery Group,SOLENT ACADEMIES TRUST,4000246207,70000.00,Grants to educational establishments or not for profit organisations including other businesses
Department for Education,DEPARTMENT FOR EDUCATION,01/09/2016,Personnel Related,Finance and Commercial Group,DEPARTMENT OF HEALTH,4000246213,25000.00,"Personnel costs including staff recruitment, staff restaurant subsidies, family care expenses"
Department for Education,DEPARTMENT FOR EDUCATION,01/09/2016,Grants,Academies Regional Delivery Group,DIVERSE ACADEMIES TRUST,4000246217,249000.00,Grants to educational establishments or not for profit organisations including other businesses
Department for Education,DEPARTMENT FOR EDUCATION,01/09/2016,Grants,Academies Regional Delivery Group,NORTHUMBERLAND HEATH PRIMARY SCHOOL,4000246225,50000.00,Grants to educational establishments or not for profit organisations including other businesses
Department for Education,DEPARTMENT FOR EDUCATION,01/09/2016,Grants,Academies Regional Delivery Group,SIR WILLIAM BORLASES GRAMMAR SCHOOL,4000246229,40000.00,Grants to educational establishments or not for profit organisations including other businesses
Department for Education,DEPARTMENT FOR EDUCATION,01/09/2016,Grants,Adoption and Children in Care Division,NEWCASTLE CITY COUNCIL,4000246230,27000.00,Grants to local authorities / other establishments within aggregate external funding or aggregate exchequer grant
Department for Education,DEPARTMENT FOR EDUCATION,01/09/2016,Grants,Adoption and Children in Care Division,GATESHEAD MBC,4000246231,43000.00,Grants to local authorities / other establishments within aggregate external funding or aggregate exchequer grant
Department for Education,DEPARTMENT FOR EDUCATION,01/09/2016,Grants,Adoption and Children in Care Division,KIRKLEES COUNCIL,4000246232,43000.00,Grants to local authorities / other establishments within aggregate external funding or aggregate exchequer grant
Department for Education,DEPARTMENT FOR EDUCATION,01/09/2016,Grants,Adoption and Children in Care Division,BARNSLEY MBC,4000246239,54000.00,Grants to local authorities / other establishments within aggregate external funding or aggregate exchequer grant
Department for Education,DEPARTMENT FOR EDUCATION,01/09/2016,Grants,Adoption and Children in Care Division,WIGAN MBC,4000246240,86000.00,Grants to local authorities / other establishments within aggregate external funding or aggregate exchequer grant
Department for Education,DEPARTMENT FOR EDUCATION,01/09/2016,Grants,Adoption and Children in Care Division,SALFORD CITY COUNCIL,4000246241,43000.00,Grants to local authorities / other establishments within aggregate external funding or aggregate exchequer grant
Department for Education,DEPARTMENT FOR EDUCATION,01/09/2016,Grants,Adoption and Children in Care Division,ROCHDALE MBC,4000246242,43000.00,Grants to local authorities / other establishments within aggregate external funding or aggregate exchequer grant
Department for Education,DEPARTMENT FOR EDUCATION,01/09/2016,Grants,Adoption and Children in Care Division,OLDHAM MBC,4000246243,60000.00,Grants to local authorities / other establishments within aggregate external funding or aggregate exchequer grant
Department for Education,DEPARTMENT FOR EDUCATION,01/09/2016,Grants,Adoption and Children in Care Division,DUDLEY MBC,4000246244,27000.00,Grants to local authorities / other establishments within aggregate external funding or aggregate exchequer grant
Department for Education,DEPARTMENT FOR EDUCATION,01/09/2016,Grants,Adoption and Children in Care Division,BIRMINGHAM CITY COUNCIL,4000246245,54000.00,Grants to local authorities / other establishments within aggregate external funding or aggregate exchequer grant
Department for Education,DEPARTMENT FOR EDUCATION,01/09/2016,Grants,Adoption and Children in Care Division,LONDON BOROUGH OF NEWHAM,4000246246,27000.00,Grants to local authorities / other establishments within aggregate external funding or aggregate exchequer grant
Department for Education,DEPARTMENT FOR EDUCATION,01/09/2016,Grants,Adoption and Children in Care Division,LONDON BOROUGH OF MERTON COUNCIL,4000246247,27000.00,Grants to local authorities / other establishments within aggregate external funding or aggregate exchequer grant
Department for Education,DEPARTMENT FOR EDUCATION,01/09/2016,Grants,Adoption and Children in Care Division,SUFFOLK COUNTY COUNCIL,4000246248,27000.00,Grants to local authorities / other establishments within aggregate external funding or aggregate exchequer grant
Department for Education,DEPARTMENT FOR EDUCATION,01/09/2016,Grants,Adoption and Children in Care Division,LONDON BOROUGH OF ENFIELD COUNCIL,4000246249,27000.00,Grants to local authorities / other establishments within aggregate external funding or aggregate exchequer grant
Department for Education,DEPARTMENT FOR EDUCATION,01/09/2016,Grants,Adoption and Children in Care Division,LONDON BOROUGH OF BARKING & DAGENHAM COUNCIL,4000246250,27000.00,Grants to local authorities / other establishments within aggregate external funding or aggregate exchequer grant
Department for Education,DEPARTMENT FOR EDUCATION,01/09/2016,Grants,Adoption and Children in Care Division,CITY OF WESTMINSTER,4000246252,43000.00,Grants to local authorities / other establishments within aggregate external funding or aggregate exchequer grant
Department for Education,NATIONAL COLLEGE FOR TEACHING AND LEADERSHIP AGENCY,02/09/2016,Grants,Operations Directorate,LINCOLNSHIRE TEACHING SCHOOL ALLIANCE,4000246255,37059.68,Grants to educational establishments or not for profit organisations including other businesses
Department for Education,DEPARTMENT FOR EDUCATION,02/09/2016,Grants,"Children's Services, Equalities and Communication Safeguarding Group",LONDON BOROUGH OF HAMMERSMITH & FULHAM COUNCIL,4000246262,73150.11,Grants to local authorities / other establishments within aggregate external funding or aggregate exchequer grant
Department for Education,NATIONAL COLLEGE FOR TEACHING AND LEADERSHIP AGENCY,02/09/2016,Grants,Delivery Directorate,UNIVERSITY OF HULL,4000246270,1600.00,Grants to educational establishments or not for profit organisations including other businesses
Department for Education,NATIONAL COLLEGE FOR TEACHING AND LEADERSHIP AGENCY,02/09/2016,Grants,Operations Directorate,UNIVERSITY OF HULL,4000246270,188610.86,Grants to educational establishments or not for profit organisations including other businesses
Department for Education,NATIONAL COLLEGE FOR TEACHING AND LEADERSHIP AGENCY,02/09/2016,Grants,Operations Directorate,UNIVERSITY OF HULL,4000246270,1910.00,Grants to educational establishments or not for profit organisations including other businesses
Department for Education,NATIONAL COLLEGE FOR TEACHING AND LEADERSHIP AGENCY,02/09/2016,Grants,Operations Directorate,UNIVERSITY OF BRISTOL,4000246271,229623.89,Grants to educational establishments or not for profit organisations including other businesses
Department for Education,NATIONAL COLLEGE FOR TEACHING AND LEADERSHIP AGENCY,02/09/2016,Grants,Delivery Directorate,ST MARY & ST PAULS CE PRIMARY SCHOOL TS ACCOUNT,4000246272,6827.84,Grants to educational establishments or not for profit organisations including other businesses
Department for Education,NATIONAL COLLEGE FOR TEACHING AND LEADERSHIP AGENCY,02/09/2016,Grants,Operations Directorate,ST MARY & ST PAULS CE PRIMARY SCHOOL TS ACCOUNT,4000246272,6154.28,Grants to educational establishments or not for profit organisations including other businesses
Department for Education,NATIONAL COLLEGE FOR TEACHING AND LEADERSHIP AGENCY,02/09/2016,Grants,Operations Directorate,ST MARY & ST PAULS CE PRIMARY SCHOOL TS ACCOUNT,4000246272,24300.00,Grants to educational establishments or not for profit organisations including other businesses
Department for Education,NATIONAL COLLEGE FOR TEACHING AND LEADERSHIP AGENCY,02/09/2016,Grants,Operations Directorate,LONDON METROPOLITAN UNIVERSITY,4000246273,192480.35,Grants to educational establishments or not for profit organisations including other businesses
Department for Education,STANDARDS AND TESTING AGENCY,02/09/2016,Programme costs,Test Development Division,NFER,4000246277,258809.45,Funding to deliver policies (excluding consultancy) paid to third parties via a service delivery contract
Department for Education,DEPARTMENT FOR EDUCATION,02/09/2016,Grants,"Children's Services, Equalities and Communication Safeguarding Group",DARLINGTON BOROUGH COUNCIL,4000246286,42116.73,Grants to local authorities / other establishments within aggregate external funding or aggregate exchequer grant
Department for Education,NATIONAL COLLEGE FOR TEACHING AND LEADERSHIP AGENCY,02/09/2016,Grants,Operations Directorate,NOTTINGHAM TRENT UNIVERSITY,4000246289,108047.08,Grants to educational establishments or not for profit organisations including other businesses
Department for Education,NATIONAL COLLEGE FOR TEACHING AND LEADERSHIP AGENCY,02/09/2016,Grants,Delivery Directorate,NOTTINGHAM TRENT UNIVERSITY,4000246289,7700.00,Grants to educational establishments or not for profit organisations including other businesses
Department for Education,NATIONAL COLLEGE FOR TEACHING AND LEADERSHIP AGENCY,02/09/2016,Grants,Delivery Directorate,UNIVERSITY OF WORCESTER,4000246290,21600.12,Grants to educational establishments or not for profit organisations including other businesses
Department for Education,NATIONAL COLLEGE FOR TEACHING AND LEADERSHIP AGENCY,02/09/2016,Grants,Operations Directorate,UNIVERSITY OF WORCESTER,4000246290,174302.25,Grants to educational establishments or not for profit organisations including other businesses
Department for Education,NATIONAL COLLEGE FOR TEACHING AND LEADERSHIP AGENCY,02/09/2016,Grants,Operations Directorate,UNIVERSITY OF HERTFORDSHIRE,4000246292,107757.33,Grants to educational establishments or not for profit organisations including other businesses
Department for Education,NATIONAL COLLEGE FOR TEACHING AND LEADERSHIP AGENCY,02/09/2016,Grants,Delivery Directorate,THE OAKS SCITT,4000246297,2500.00,Grants to educational establishments or not for profit organisations including other businesses
Department for Education,NATIONAL COLLEGE FOR TEACHING AND LEADERSHIP AGENCY,02/09/2016,Grants,Operations Directorate,THE OAKS SCITT,4000246297,54038.43,Grants to educational establishments or not for profit organisations including other businesses
Department for Education,NATIONAL COLLEGE FOR TEACHING AND LEADERSHIP AGENCY,02/09/2016,Grants,Operations Directorate,THE OAKS SCITT,4000246297,1910.00,Grants to educational establishments or not for profit organisations including other businesses
Department for Education,NATIONAL COLLEGE FOR TEACHING AND LEADERSHIP AGENCY,02/09/2016,Grants,Delivery Directorate,CANTERBURY CHRIST CHURCH UNIVERSITY,4000246302,486533.14,Grants to educational establishments or not for profit organisations including other businesses
Department for Education,NATIONAL COLLEGE FOR TEACHING AND LEADERSHIP AGENCY,02/09/2016,Grants,Operations Directorate,CANTERBURY CHRIST CHURCH UNIVERSITY,4000246302,263953.20,Grants to educational establishments or not for profit organisations including other businesses
Department for Education,NATIONAL COLLEGE FOR TEACHING AND LEADERSHIP AGENCY,02/09/2016,Grants,Operations Directorate,CANTERBURY CHRIST CHURCH UNIVERSITY,4000246302,488960.00,Grants to educational establishments or not for profit organisations including other businesses
Department for Education,NATIONAL COLLEGE FOR TEACHING AND LEADERSHIP AGENCY,02/09/2016,Grants,Delivery Directorate,CANTERBURY CHRIST CHURCH UNIVERSITY,4000246302,26565.00,Grants to educational establishments or not for profit organisations including other businesses
Department for Education,DEPARTMENT FOR EDUCATION,02/09/2016,Grants,"Children's Services, Equalities and Communication Safeguarding Group",DORSET COUNTY COUNCIL,4000246304,45333.40,Grants to local authorities / other establishments within aggregate external funding or aggregate exchequer grant
Department for Education,DEPARTMENT FOR EDUCATION,02/09/2016,Grants,"Children's Services, Equalities and Communication Safeguarding Group",DERBY CITY COUNCIL,4000246305,77583.45,Grants to local authorities / other establishments within aggregate external funding or aggregate exchequer grant
Department for Education,DEPARTMENT FOR EDUCATION,02/09/2016,Grants,"Children's Services, Equalities and Communication Safeguarding Group",BUCKINGHAMSHIRE COUNTY COUNCIL,4000246307,42116.73,Grants to local authorities / other establishments within aggregate external funding or aggregate exchequer grant
Department for Education,NATIONAL COLLEGE FOR TEACHING AND LEADERSHIP AGENCY,02/09/2016,Grants,Operations Directorate,UNIVERSITY OF NORTHUMBRIA,4000246310,58244.84,Grants to educational establishments or not for profit organisations including other businesses
Department for Education,NATIONAL COLLEGE FOR TEACHING AND LEADERSHIP AGENCY,02/09/2016,Grants,Delivery Directorate,UNIVERSITY OF NORTHUMBRIA,4000246310,14795.00,Grants to educational establishments or not for profit organisations including other businesses
Department for Education,NATIONAL COLLEGE FOR TEACHING AND LEADERSHIP AGENCY,02/09/2016,Grants,Operations Directorate,UNIVERSITY OF EAST LONDON,4000246312,223550.11,Grants to educational establishments or not for profit organisations including other businesses
Department for Education,NATIONAL COLLEGE FOR TEACHING AND LEADERSHIP AGENCY,02/09/2016,Grants,Operations Directorate,TRAIN TO TEACH AT SURREY & HANTS,4000246315,31974.93,Grants to educational establishments or not for profit organisations including other businesses
Department for Education,NATIONAL COLLEGE FOR TEACHING AND LEADERSHIP AGENCY,02/09/2016,Grants,Delivery Directorate,THE ARTHUR TERRY SCHOOL SCITT,4000246325,1066.66,Grants to educational establishments or not for profit organisations including other businesses
Department for Education,NATIONAL COLLEGE FOR TEACHING AND LEADERSHIP AGENCY,02/09/2016,Grants,Operations Directorate,THE ARTHUR TERRY SCHOOL SCITT,4000246325,31879.17,Grants to educational establishments or not for profit organisations including other businesses
Department for Education,NATIONAL COLLEGE FOR TEACHING AND LEADERSHIP AGENCY,02/09/2016,Grants,Operations Directorate,KENT & MEDWAY TRAINING,4000246329,71434.53,Grants to educational establishments or not for profit organisations including other businesses
Department for Education,DEPARTMENT FOR EDUCATION,02/09/2016,Grants,"Children's Services, Equalities and Communication Safeguarding Group",HAMPSHIRE C C,4000246330,59766.74,Grants to local authorities / other establishments within aggregate external funding or aggregate exchequer grant
Department for Education,NATIONAL COLLEGE FOR TEACHING AND LEADERSHIP AGENCY,02/09/2016,Grants,Operations Directorate,UNIVERSITY OF OXFORD,4000246335,209900.08,Grants to educational establishments or not for profit organisations including other businesses
Department for Education,NATIONAL COLLEGE FOR TEACHING AND LEADERSHIP AGENCY,02/09/2016,Grants,Operations Directorate,YORK ST JOHN UNIVERSITY,4000246336,65379.46,Grants to educational establishments or not for profit organisations including other businesses
Department for Education,NATIONAL COLLEGE FOR TEACHING AND LEADERSHIP AGENCY,02/09/2016,Grants,Delivery Directorate,MIDDLESEX UNIVERSITY,4000246339,2200.00,Grants to educational establishments or not for profit organisations including other businesses
Department for Education,NATIONAL COLLEGE FOR TEACHING AND LEADERSHIP AGENCY,02/09/2016,Grants,Operations Directorate,MIDDLESEX UNIVERSITY,4000246339,109775.94,Grants to educational establishments or not for profit organisations including other businesses
Department for Education,NATIONAL COLLEGE FOR TEACHING AND LEADERSHIP AGENCY,02/09/2016,Grants,Operations Directorate,MIDDLESEX UNIVERSITY,4000246339,1910.00,Grants to educational establishments or not for profit organisations including other businesses
Department for Education,NATIONAL COLLEGE FOR TEACHING AND LEADERSHIP AGENCY,02/09/2016,Grants,Delivery Directorate,MIDDLESEX UNIVERSITY,4000246339,32670.00,Grants to educational establishments or not for profit organisations including other businesses
Department for Education,NATIONAL COLLEGE FOR TEACHING AND LEADERSHIP AGENCY,02/09/2016,Grants,Operations Directorate,ARK SCHOOLS,4000246348,40661.98,Grants to educational establishments or not for profit organisations including other businesses
Department for Education,NATIONAL COLLEGE FOR TEACHING AND LEADERSHIP AGENCY,02/09/2016,Grants,Operations Directorate,DURHAM SECONDARY APPLIED SCITT,4000246350,60968.40,Grants to educational establishments or not for profit organisations including other businesses
Department for Education,NATIONAL COLLEGE FOR TEACHING AND LEADERSHIP AGENCY,02/09/2016,Grants,Operations Directorate,SOUTH WEST TEACHER TRAINING,4000246356,29226.02,Grants to educational establishments or not for profit organisations including other businesses
Department for Education,NATIONAL COLLEGE FOR TEACHING AND LEADERSHIP AGENCY,02/09/2016,Grants,Delivery Directorate,MANCHESTER METROPOLITAN UNIVERSITY,4000246357,36800.00,Grants to educational establishments or not for profit organisations including other businesses
Department for Education,NATIONAL COLLEGE FOR TEACHING AND LEADERSHIP AGENCY,02/09/2016,Grants,Operations Directorate,MANCHESTER METROPOLITAN UNIVERSITY,4000246357,486277.21,Grants to educational establishments or not for profit organisations including other businesses
Department for Education,NATIONAL COLLEGE FOR TEACHING AND LEADERSHIP AGENCY,02/09/2016,Grants,Operations Directorate,MANCHESTER METROPOLITAN UNIVERSITY,4000246357,99320.00,Grants to educational establishments or not for profit organisations including other businesses
Department for Education,NATIONAL COLLEGE FOR TEACHING AND LEADERSHIP AGENCY,02/09/2016,Grants,Operations Directorate,PILGRIM SCITT,4000246367,41275.44,Grants to educational establishments or not for profit organisations including other businesses
Department for Education,NATIONAL COLLEGE FOR TEACHING AND LEADERSHIP AGENCY,02/09/2016,Grants,Operations Directorate,PARTNERSHIP LONDON SCITT,4000246372,33509.56,Grants to educational establishments or not for profit organisations including other businesses
Department for Education,NATIONAL COLLEGE FOR TEACHING AND LEADERSHIP AGENCY,02/09/2016,Grants,Operations Directorate,LEICESTERSHIRE SECONDARY SCITT,4000246377,38315.15,Grants to educational establishments or not for profit organisations including other businesses
Department for Education,NATIONAL COLLEGE FOR TEACHING AND LEADERSHIP AGENCY,02/09/2016,Grants,Operations Directorate,HAVERING BEACON PARTNERSHIP,4000246383,35120.42,Grants to educational establishments or not for profit organisations including other businesses
Department for Education,NATIONAL COLLEGE FOR TEACHING AND LEADERSHIP AGENCY,02/09/2016,Grants,Operations Directorate,UNIVERSITY OF WARWICK,4000246384,185721.39,Grants to educational establishments or not for profit organisations including other businesses
Department for Education,NATIONAL COLLEGE FOR TEACHING AND LEADERSHIP AGENCY,02/09/2016,Grants,Delivery Directorate,UNIVERSITY OF WARWICK,4000246384,22990.00,Grants to educational establishments or not for profit organisations including other businesses
Department for Education,NATIONAL COLLEGE FOR TEACHING AND LEADERSHIP AGENCY,02/09/2016,Grants,Operations Directorate,UNIVERSITY OF BEDFORDSHIRE,4000246386,67161.82,Grants to educational establishments or not for profit organisations including other businesses
Department for Education,NATIONAL COLLEGE FOR TEACHING AND LEADERSHIP AGENCY,02/09/2016,Grants,Delivery Directorate,UNIVERSITY OF BEDFORDSHIRE,4000246386,47685.00,Grants to educational establishments or not for profit organisations including other businesses
Department for Education,NATIONAL COLLEGE FOR TEACHING AND LEADERSHIP AGENCY,02/09/2016,Grants,Delivery Directorate,LOUGHBOROUGH UNIVERSITY ENTERPRISE LTD,4000246387,1200.00,Grants to educational establishments or not for profit organisations including other businesses
Department for Education,NATIONAL COLLEGE FOR TEACHING AND LEADERSHIP AGENCY,02/09/2016,Grants,Operations Directorate,LOUGHBOROUGH UNIVERSITY ENTERPRISE LTD,4000246387,45672.96,Grants to educational establishments or not for profit organisations including other businesses
Department for Education,NATIONAL COLLEGE FOR TEACHING AND LEADERSHIP AGENCY,02/09/2016,Grants,Operations Directorate,NORTH BEDS SCITT CONSORTIUM,4000246390,33730.13,Grants to educational establishments or not for profit organisations including other businesses
Department for Education,NATIONAL COLLEGE FOR TEACHING AND LEADERSHIP AGENCY,02/09/2016,Grants,Delivery Directorate,NEWMAN COLLEGE,4000246391,16923.94,Grants to educational establishments or not for profit organisations including other businesses
Department for Education,NATIONAL COLLEGE FOR TEACHING AND LEADERSHIP AGENCY,02/09/2016,Grants,Operations Directorate,NEWMAN COLLEGE,4000246391,109166.99,Grants to educational establishments or not for profit organisations including other businesses
Department for Education,NATIONAL COLLEGE FOR TEACHING AND LEADERSHIP AGENCY,02/09/2016,Grants,Operations Directorate,NEWMAN COLLEGE,4000246391,3705.00,Grants to educational establishments or not for profit organisations including other businesses
Department for Education,NATIONAL COLLEGE FOR TEACHING AND LEADERSHIP AGENCY,02/09/2016,Grants,Delivery Directorate,NEWMAN COLLEGE,4000246391,12045.00,Grants to educational establishments or not for profit organisations including other businesses
Department for Education,NATIONAL COLLEGE FOR TEACHING AND LEADERSHIP AGENCY,02/09/2016,Grants,Operations Directorate,MID SOMERSET CONSORTIUM FOR TEACHER TRAINING,4000246392,52188.29,Grants to educational establishments or not for profit organisations including other businesses
Department for Education,NATIONAL COLLEGE FOR TEACHING AND LEADERSHIP AGENCY,02/09/2016,Grants,Delivery Directorate,HAYBRIDGE ALLIANCE SCITT,4000246395,700.00,Grants to educational establishments or not for profit organisations including other businesses
Department for Education,NATIONAL COLLEGE FOR TEACHING AND LEADERSHIP AGENCY,02/09/2016,Grants,Operations Directorate,HAYBRIDGE ALLIANCE SCITT,4000246395,30917.87,Grants to educational establishments or not for profit organisations including other businesses
Department for Education,NATIONAL COLLEGE FOR TEACHING AND LEADERSHIP AGENCY,02/09/2016,Grants,Operations Directorate,YORKSHIRE AND HUMBER TEACHER TRAINING,4000246396,29690.95,Grants to educational establishments or not for profit organisations including other businesses
Department for Education,NATIONAL COLLEGE FOR TEACHING AND LEADERSHIP AGENCY,02/09/2016,Grants,Operations Directorate,BARR BEACON SCITT,4000246397,27680.55,Grants to educational establishments or not for profit organisations including other businesses
Department for Education,NATIONAL COLLEGE FOR TEACHING AND LEADERSHIP AGENCY,02/09/2016,Grants,Operations Directorate,ASTRA SCITT,4000246398,34767.74,Grants to educational establishments or not for profit organisations including other businesses
Department for Education,NATIONAL COLLEGE FOR TEACHING AND LEADERSHIP AGENCY,02/09/2016,Grants,Operations Directorate,GRAND UNION TRAINING PARTNERSHIP,4000246406,43457.42,Grants to educational establishments or not for profit organisations including other businesses
Department for Education,NATIONAL COLLEGE FOR TEACHING AND LEADERSHIP AGENCY,02/09/2016,Grants,Operations Directorate,GOLDSMITH COLLEGE,4000246407,192761.06,Grants to educational establishments or not for profit organisations including other businesses
Department for Education,NATIONAL COLLEGE FOR TEACHING AND LEADERSHIP AGENCY,02/09/2016,Grants,Operations Directorate,NOTLEY HIGH SCHOOL & BRAINTREE SIXTH FORM,4000246411,29431.16,Grants to educational establishments or not for profit organisations including other businesses
Department for Education,NATIONAL COLLEGE FOR TEACHING AND LEADERSHIP AGENCY,02/09/2016,Grants,Delivery Directorate,BRADFORD COLLEGE,4000246413,60803.82,Grants to educational establishments or not for profit organisations including other businesses
Department for Education,NATIONAL COLLEGE FOR TEACHING AND LEADERSHIP AGENCY,02/09/2016,Grants,Operations Directorate,BRADFORD COLLEGE,4000246413,80875.85,Grants to educational establishments or not for profit organisations including other businesses
Department for Education,NATIONAL COLLEGE FOR TEACHING AND LEADERSHIP AGENCY,02/09/2016,Grants,Operations Directorate,BRADFORD COLLEGE,4000246413,143810.00,Grants to educational establishments or not for profit organisations including other businesses
Department for Education,NATIONAL COLLEGE FOR TEACHING AND LEADERSHIP AGENCY,02/09/2016,Grants,Operations Directorate,LIVERPOOL HOPE UNIVERSITY,4000246414,244472.85,Grants to educational establishments or not for profit organisations including other businesses
Department for Education,NATIONAL COLLEGE FOR TEACHING AND LEADERSHIP AGENCY,02/09/2016,Grants,Operations Directorate,UNIVERSITY OF GLOUCESTERSHIRE,4000246415,57558.68,Grants to educational establishments or not for profit organisations including other businesses
Department for Education,NATIONAL COLLEGE FOR TEACHING AND LEADERSHIP AGENCY,02/09/2016,Grants,Delivery Directorate,UNIVERSITY OF GLOUCESTERSHIRE,4000246415,38500.00,Grants to educational establishments or not for profit organisations including other businesses
Department for Education,NATIONAL COLLEGE FOR TEACHING AND LEADERSHIP AGENCY,02/09/2016,Grants,Operations Directorate,THE COLLEGE OF ST MARK & ST JOHN,4000246419,49787.79,Grants to educational establishments or not for profit organisations including other businesses
Department for Education,NATIONAL COLLEGE FOR TEACHING AND LEADERSHIP AGENCY,02/09/2016,Grants,Delivery Directorate,THE COLLEGE OF ST MARK & ST JOHN,4000246419,14630.00,Grants to educational establishments or not for profit organisations including other businesses
Department for Education,NATIONAL COLLEGE FOR TEACHING AND LEADERSHIP AGENCY,02/09/2016,Grants,Delivery Directorate,BISHOP GROSSETESTE COLLEGE,4000246420,660.00,Grants to educational establishments or not for profit organisations including other businesses
Department for Education,NATIONAL COLLEGE FOR TEACHING AND LEADERSHIP AGENCY,02/09/2016,Grants,Operations Directorate,BISHOP GROSSETESTE COLLEGE,4000246420,104028.17,Grants to educational establishments or not for profit organisations including other businesses
Department for Education,NATIONAL COLLEGE FOR TEACHING AND LEADERSHIP AGENCY,02/09/2016,Grants,Delivery Directorate,BISHOP GROSSETESTE COLLEGE,4000246420,12815.00,Grants to educational establishments or not for profit organisations including other businesses
Department for Education,NATIONAL COLLEGE FOR TEACHING AND LEADERSHIP AGENCY,02/09/2016,Grants,Operations Directorate,BIRMINGHAM COLLEGE OF FOOD TOURISM & CRE,4000246421,9354.51,Grants to educational establishments or not for profit organisations including other businesses
Department for Education,NATIONAL COLLEGE FOR TEACHING AND LEADERSHIP AGENCY,02/09/2016,Grants,Delivery Directorate,BIRMINGHAM COLLEGE OF FOOD TOURISM & CRE,4000246421,30965.00,Grants to educational establishments or not for profit organisations including other businesses
Department for Education,NATIONAL COLLEGE FOR TEACHING AND LEADERSHIP AGENCY,02/09/2016,Grants,Delivery Directorate,UNIVERSITY OF CHICHESTER,4000246436,2400.00,Grants to educational establishments or not for profit organisations including other businesses
Department for Education,NATIONAL COLLEGE FOR TEACHING AND LEADERSHIP AGENCY,02/09/2016,Grants,Operations Directorate,UNIVERSITY OF CHICHESTER,4000246436,105906.21,Grants to educational establishments or not for profit organisations including other businesses
Department for Education,NATIONAL COLLEGE FOR TEACHING AND LEADERSHIP AGENCY,02/09/2016,Grants,Operations Directorate,UNIVERSITY OF CHICHESTER,4000246436,3487.00,Grants to educational establishments or not for profit organisations including other businesses
Department for Education,NATIONAL COLLEGE FOR TEACHING AND LEADERSHIP AGENCY,02/09/2016,Grants,Delivery Directorate,UNIVERSITY OF CHICHESTER,4000246436,11550.00,Grants to educational establishments or not for profit organisations including other businesses
Department for Education,NATIONAL COLLEGE FOR TEACHING AND LEADERSHIP AGENCY,02/09/2016,Grants,Delivery Directorate,UNIVERSITY OF CHESTER,4000246437,1500.00,Grants to educational establishments or not for profit organisations including other businesses
Department for Education,NATIONAL COLLEGE FOR TEACHING AND LEADERSHIP AGENCY,02/09/2016,Grants,Operations Directorate,UNIVERSITY OF CHESTER,4000246437,213325.71,Grants to educational establishments or not for profit organisations including other businesses
Department for Education,NATIONAL COLLEGE FOR TEACHING AND LEADERSHIP AGENCY,02/09/2016,Grants,Operations Directorate,UNIVERSITY OF CHESTER,4000246437,5500.00,Grants to educational establishments or not for profit organisations including other businesses
Department for Education,NATIONAL COLLEGE FOR TEACHING AND LEADERSHIP AGENCY,02/09/2016,Grants,Delivery Directorate,UNIVERSITY OF CHESTER,4000246437,14795.00,Grants to educational establishments or not for profit organisations including other businesses
Department for Education,NATIONAL COLLEGE FOR TEACHING AND LEADERSHIP AGENCY,02/09/2016,Grants,Operations Directorate,UNIVERSITY OF SHEFFIELD,4000246439,149944.84,Grants to educational establishments or not for profit organisations including other businesses
Department for Education,NATIONAL COLLEGE FOR TEACHING AND LEADERSHIP AGENCY,02/09/2016,Grants,Delivery Directorate,NOTRE DAME HIGH SCHOOL,4000246443,10000.00,Grants to educational establishments or not for profit organisations including other businesses
Department for Education,NATIONAL COLLEGE FOR TEACHING AND LEADERSHIP AGENCY,02/09/2016,Grants,Operations Directorate,NOTRE DAME HIGH SCHOOL,4000246443,57498.20,Grants to educational establishments or not for profit organisations including other businesses
Department for Education,NATIONAL COLLEGE FOR TEACHING AND LEADERSHIP AGENCY,02/09/2016,Grants,Operations Directorate,BILLERICAY EDUCATIONAL CONSORTIUM,4000246445,40754.71,Grants to educational establishments or not for profit organisations including other businesses
Department for Education,NATIONAL COLLEGE FOR TEACHING AND LEADERSHIP AGENCY,02/09/2016,Grants,Operations Directorate,BATH SPA UNIVERSITY,4000246446,202363.96,Grants to educational establishments or not for profit organisations including other businesses
Department for Education,NATIONAL COLLEGE FOR TEACHING AND LEADERSHIP AGENCY,02/09/2016,Grants,Delivery Directorate,BATH SPA UNIVERSITY,4000246446,23705.00,Grants to educational establishments or not for profit organisations including other businesses
Department for Education,NATIONAL COLLEGE FOR TEACHING AND LEADERSHIP AGENCY,02/09/2016,Grants,Operations Directorate,SHEFFIELD HALLAM UNIVERSITY,4000246449,348026.65,Grants to educational establishments or not for profit organisations including other businesses
Department for Education,NATIONAL COLLEGE FOR TEACHING AND LEADERSHIP AGENCY,02/09/2016,Grants,Delivery Directorate,SHEFFIELD HALLAM UNIVERSITY,4000246449,24805.00,Grants to educational establishments or not for profit organisations including other businesses
Department for Education,DEPARTMENT FOR EDUCATION,02/09/2016,Facilities,Property Asset Management Group,BABCOCK CIVIL INFRASTRUCTURE LTD,4000246452,41585.56,"Building maintenance and repair, including repainting, replacing flooring, etc."
Department for Education,NATIONAL COLLEGE FOR TEACHING AND LEADERSHIP AGENCY,02/09/2016,Grants,Operations Directorate,LIVERPOOL JOHN MOORES UNIVERSITY,4000246461,252605.61,Grants to educational establishments or not for profit organisations including other businesses
Department for Education,DEPARTMENT FOR EDUCATION,02/09/2016,Grants,"Children's Services, Equalities and Communication Safeguarding Group",LONDON BOROUGH OF REDBRIDGE COUNCIL,4000246462,25383.37,Grants to local authorities / other establishments within aggregate external funding or aggregate exchequer grant
Department for Education,NATIONAL COLLEGE FOR TEACHING AND LEADERSHIP AGENCY,02/09/2016,Grants,Delivery Directorate,UNIVERSITY OF CUMBRIA,4000246463,22529.98,Grants to educational establishments or not for profit organisations including other businesses
Department for Education,NATIONAL COLLEGE FOR TEACHING AND LEADERSHIP AGENCY,02/09/2016,Grants,Operations Directorate,UNIVERSITY OF CUMBRIA,4000246463,251042.01,Grants to educational establishments or not for profit organisations including other businesses
Department for Education,NATIONAL COLLEGE FOR TEACHING AND LEADERSHIP AGENCY,02/09/2016,Grants,Operations Directorate,UNIVERSITY OF CUMBRIA,4000246463,22920.00,Grants to educational establishments or not for profit organisations including other businesses
Department for Education,NATIONAL COLLEGE FOR TEACHING AND LEADERSHIP AGENCY,02/09/2016,Grants,Delivery Directorate,UNIVERSITY OF CUMBRIA,4000246463,23100.00,Grants to educational establishments or not for profit organisations including other businesses
Department for Education,DEPARTMENT FOR EDUCATION,02/09/2016,Programme costs,Children's Services Special Educational Needs Group,NATIONAL CHILDRENS BUREAU,4000246466,47618.40,Funding to deliver policies (excluding consultancy) paid to third parties via a service delivery contract
Department for Education,DEPARTMENT FOR EDUCATION,02/09/2016,Programme costs,Children's Services Special Educational Needs Group,NATIONAL CHILDRENS BUREAU,4000246466,95334.00,Funding to deliver policies (excluding consultancy) paid to third parties via a service delivery contract
Department for Education,NATIONAL COLLEGE FOR TEACHING AND LEADERSHIP AGENCY,02/09/2016,Grants,Delivery Directorate,UNIVERSITY OF THE WEST OF ENGLAND,4000246470,800.00,Grants to educational establishments or not for profit organisations including other businesses
Department for Education,NATIONAL COLLEGE FOR TEACHING AND LEADERSHIP AGENCY,02/09/2016,Grants,Operations Directorate,UNIVERSITY OF THE WEST OF ENGLAND,4000246470,178826.87,Grants to educational establishments or not for profit organisations including other businesses
Department for Education,NATIONAL COLLEGE FOR TEACHING AND LEADERSHIP AGENCY,02/09/2016,Grants,Delivery Directorate,UNIVERSITY OF THE WEST OF ENGLAND,4000246470,14795.00,Grants to educational establishments or not for profit organisations including other businesses
Department for Education,NATIONAL COLLEGE FOR TEACHING AND LEADERSHIP AGENCY,02/09/2016,Grants,Operations Directorate,UNIVERSITY OF BRIGHTON,4000246474,184097.97,Grants to educational establishments or not for profit organisations including other businesses
Department for Education,NATIONAL COLLEGE FOR TEACHING AND LEADERSHIP AGENCY,02/09/2016,Grants,Delivery Directorate,UNIVERSITY OF BRIGHTON,4000246474,19250.00,Grants to educational establishments or not for profit organisations including other businesses
Department for Education,NATIONAL COLLEGE FOR TEACHING AND LEADERSHIP AGENCY,02/09/2016,Grants,Operations Directorate,CHEADLE HULME HIGH SCHOOL,4000246476,34685.52,Grants to educational establishments or not for profit organisations including other businesses
Department for Education,NATIONAL COLLEGE FOR TEACHING AND LEADERSHIP AGENCY,02/09/2016,Grants,Delivery Directorate,UNIVERSITY OF NOTTINGHAM,4000246477,800.00,Grants to educational establishments or not for profit organisations including other businesses
Department for Education,NATIONAL COLLEGE FOR TEACHING AND LEADERSHIP AGENCY,02/09/2016,Grants,Operations Directorate,UNIVERSITY OF NOTTINGHAM,4000246477,220601.22,Grants to educational establishments or not for profit organisations including other businesses
Department for Education,NATIONAL COLLEGE FOR TEACHING AND LEADERSHIP AGENCY,02/09/2016,Grants,Operations Directorate,BLUECOAT ACADEMY,4000246478,30709.86,Grants to educational establishments or not for profit organisations including other businesses
Department for Education,NATIONAL COLLEGE FOR TEACHING AND LEADERSHIP AGENCY,02/09/2016,Grants,Operations Directorate,ESSEX PRY SCHOOLS TRAINING GROUP,4000246481,14082.96,Grants to educational establishments or not for profit organisations including other businesses
Department for Education,NATIONAL COLLEGE FOR TEACHING AND LEADERSHIP AGENCY,02/09/2016,Grants,Delivery Directorate,ESSEX PRY SCHOOLS TRAINING GROUP,4000246481,19250.00,Grants to educational establishments or not for profit organisations including other businesses
Department for Education,NATIONAL COLLEGE FOR TEACHING AND LEADERSHIP AGENCY,02/09/2016,Grants,Operations Directorate,BIRMINGHAM CITY UNIVERSITY,4000246484,194065.12,Grants to educational establishments or not for profit organisations including other businesses
Department for Education,NATIONAL COLLEGE FOR TEACHING AND LEADERSHIP AGENCY,02/09/2016,Grants,Operations Directorate,DENBIGH SCHOOL,4000246485,28391.74,Grants to educational establishments or not for profit organisations including other businesses
Department for Education,NATIONAL COLLEGE FOR TEACHING AND LEADERSHIP AGENCY,02/09/2016,Grants,Operations Directorate,UNIVERSITY OF CAMBRIDGE,4000246486,235708.34,Grants to educational establishments or not for profit organisations including other businesses
Department for Education,DEPARTMENT FOR EDUCATION,02/09/2016,Grants,"Children's Services, Equalities and Communication Safeguarding Group",NORTH TYNESIDE,4000246487,39900.06,Grants to local authorities / other establishments within aggregate external funding or aggregate exchequer grant
Department for Education,NATIONAL COLLEGE FOR TEACHING AND LEADERSHIP AGENCY,02/09/2016,Grants,Operations Directorate,NORTH TYNESIDE,4000246487,7933.77,Grants to educational establishments or not for profit organisations including other businesses
Department for Education,NATIONAL COLLEGE FOR TEACHING AND LEADERSHIP AGENCY,02/09/2016,Grants,Delivery Directorate,UNIVERSITY OF GREENWICH,4000246490,800.00,Grants to educational establishments or not for profit organisations including other businesses
Department for Education,NATIONAL COLLEGE FOR TEACHING AND LEADERSHIP AGENCY,02/09/2016,Grants,Operations Directorate,UNIVERSITY OF GREENWICH,4000246490,130910.14,Grants to educational establishments or not for profit organisations including other businesses
Department for Education,NATIONAL COLLEGE FOR TEACHING AND LEADERSHIP AGENCY,02/09/2016,Grants,Delivery Directorate,UNIVERSITY OF GREENWICH,4000246490,52305.00,Grants to educational establishments or not for profit organisations including other businesses
Department for Education,DEPARTMENT FOR EDUCATION,02/09/2016,Grants,"Children's Services, Equalities and Communication Safeguarding Group",SOMERSET COUNTY COUNCIL,4000246492,68066.76,Grants to local authorities / other establishments within aggregate external funding or aggregate exchequer grant
Department for Education,NATIONAL COLLEGE FOR TEACHING AND LEADERSHIP AGENCY,02/09/2016,Grants,Operations Directorate,UNIVERSITY OF PORTSMOUTH,4000246494,130366.27,Grants to educational establishments or not for profit organisations including other businesses
Department for Education,NATIONAL COLLEGE FOR TEACHING AND LEADERSHIP AGENCY,02/09/2016,Programme costs,Delivery Directorate,TEACHING LEADERS,4000246495,592590.00,Funding to deliver policies (excluding consultancy) paid to third parties via a service delivery contract
Department for Education,NATIONAL COLLEGE FOR TEACHING AND LEADERSHIP AGENCY,02/09/2016,Grants,Operations Directorate,UNIVERSITY OF YORK,4000246496,142064.82,Grants to educational establishments or not for profit organisations including other businesses
Department for Education,NATIONAL COLLEGE FOR TEACHING AND LEADERSHIP AGENCY,02/09/2016,Grants,Operations Directorate,UNIVERSITY OF NEWCASTLE UPON TYNE,4000246497,154146.90,Grants to educational establishments or not for profit organisations including other businesses
Department for Education,NATIONAL COLLEGE FOR TEACHING AND LEADERSHIP AGENCY,02/09/2016,Grants,Delivery Directorate,UNIVERSITY OF WOLVERHAMPTON,4000246498,42666.74,Grants to educational establishments or not for profit organisations including other businesses
Department for Education,NATIONAL COLLEGE FOR TEACHING AND LEADERSHIP AGENCY,02/09/2016,Grants,Operations Directorate,UNIVERSITY OF WOLVERHAMPTON,4000246498,168579.18,Grants to educational establishments or not for profit organisations including other businesses
Department for Education,NATIONAL COLLEGE FOR TEACHING AND LEADERSHIP AGENCY,02/09/2016,Grants,Operations Directorate,UNIVERSITY OF WOLVERHAMPTON,4000246498,3820.00,Grants to educational establishments or not for profit organisations including other businesses
Department for Education,NATIONAL COLLEGE FOR TEACHING AND LEADERSHIP AGENCY,02/09/2016,Grants,Delivery Directorate,UNIVERSITY OF WOLVERHAMPTON,4000246498,15400.00,Grants to educational establishments or not for profit organisations including other businesses
Department for Education,NATIONAL COLLEGE FOR TEACHING AND LEADERSHIP AGENCY,02/09/2016,Grants,Operations Directorate,KINGSTON UNIVERSITY,4000246499,119782.55,Grants to educational establishments or not for profit organisations including other businesses
Department for Education,NATIONAL COLLEGE FOR TEACHING AND LEADERSHIP AGENCY,02/09/2016,Grants,Delivery Directorate,KINGSTON UNIVERSITY,4000246499,23100.00,Grants to educational establishments or not for profit organisations including other businesses
Department for Education,NATIONAL COLLEGE FOR TEACHING AND LEADERSHIP AGENCY,02/09/2016,Grants,Operations Directorate,THE CAMBRIDGE PARTNERSHIP,4000246501,35366.59,Grants to educational establishments or not for profit organisations including other businesses
Department for Education,NATIONAL COLLEGE FOR TEACHING AND LEADERSHIP AGENCY,02/09/2016,Grants,Operations Directorate,UNIVERSITY OF ROEHAMPTON,4000246506,129782.84,Grants to educational establishments or not for profit organisations including other businesses
Department for Education,DEPARTMENT FOR EDUCATION,02/09/2016,Grants,"Children's Services, Equalities and Communication Safeguarding Group",SALFORD CITY COUNCIL,4000246515,50983.41,Grants to local authorities / other establishments within aggregate external funding or aggregate exchequer grant
Department for Education,NATIONAL COLLEGE FOR TEACHING AND LEADERSHIP AGENCY,02/09/2016,Grants,Operations Directorate,UNIVERSITY OF DURHAM,4000246519,147442.51,Grants to educational establishments or not for profit organisations including other businesses
Department for Education,NATIONAL COLLEGE FOR TEACHING AND LEADERSHIP AGENCY,02/09/2016,Grants,Operations Directorate,LEEDS TRINITY UNIVERSITY COLLEGE,4000246521,199717.12,Grants to educational establishments or not for profit organisations including other businesses
Department for Education,NATIONAL COLLEGE FOR TEACHING AND LEADERSHIP AGENCY,02/09/2016,Grants,Operations Directorate,UNIVERSITY OF SUNDERLAND,4000246522,113260.08,Grants to educational establishments or not for profit organisations including other businesses
Department for Education,NATIONAL COLLEGE FOR TEACHING AND LEADERSHIP AGENCY,02/09/2016,Grants,Operations Directorate,THE UNIVERSITY OF LEEDS,4000246523,145368.19,Grants to educational establishments or not for profit organisations including other businesses
Department for Education,NATIONAL COLLEGE FOR TEACHING AND LEADERSHIP AGENCY,02/09/2016,Grants,Operations Directorate,UNIVERSITY OF HUDDERSFIELD,4000246524,72219.40,Grants to educational establishments or not for profit organisations including other businesses
Department for Education,NATIONAL COLLEGE FOR TEACHING AND LEADERSHIP AGENCY,02/09/2016,Grants,Delivery Directorate,UNIVERSITY OF HUDDERSFIELD,4000246524,12705.00,Grants to educational establishments or not for profit organisations including other businesses
Department for Education,NATIONAL COLLEGE FOR TEACHING AND LEADERSHIP AGENCY,02/09/2016,Grants,Delivery Directorate,UNIVERSITY OF PLYMOUTH,4000246527,2166.66,Grants to educational establishments or not for profit organisations including other businesses
Department for Education,NATIONAL COLLEGE FOR TEACHING AND LEADERSHIP AGENCY,02/09/2016,Grants,Operations Directorate,UNIVERSITY OF PLYMOUTH,4000246527,78602.46,Grants to educational establishments or not for profit organisations including other businesses
Department for Education,NATIONAL COLLEGE FOR TEACHING AND LEADERSHIP AGENCY,02/09/2016,Grants,Delivery Directorate,UNIVERSITY OF PLYMOUTH,4000246527,19305.00,Grants to educational establishments or not for profit organisations including other businesses
Department for Education,NATIONAL COLLEGE FOR TEACHING AND LEADERSHIP AGENCY,02/09/2016,Grants,Delivery Directorate,UNIVERSITY OF SUSSEX,4000246528,170400.34,Grants to educational establishments or not for profit organisations including other businesses
Department for Education,NATIONAL COLLEGE FOR TEACHING AND LEADERSHIP AGENCY,02/09/2016,Grants,Operations Directorate,UNIVERSITY OF SUSSEX,4000246528,272285.76,Grants to educational establishments or not for profit organisations including other businesses
Department for Education,NATIONAL COLLEGE FOR TEACHING AND LEADERSHIP AGENCY,02/09/2016,Grants,Operations Directorate,UNIVERSITY OF SUSSEX,4000246528,66275.00,Grants to educational establishments or not for profit organisations including other businesses
Department for Education,NATIONAL COLLEGE FOR TEACHING AND LEADERSHIP AGENCY,02/09/2016,Grants,Delivery Directorate,UNIVERSITY OF SUSSEX,4000246528,18700.00,Grants to educational establishments or not for profit organisations including other businesses
Department for Education,NATIONAL COLLEGE FOR TEACHING AND LEADERSHIP AGENCY,02/09/2016,Grants,Operations Directorate,KINGS COLLEGE GUILDFORD,4000246530,279209.82,Grants to educational establishments or not for profit organisations including other businesses
Department for Education,NATIONAL COLLEGE FOR TEACHING AND LEADERSHIP AGENCY,02/09/2016,Grants,Operations Directorate,SHOTTON HALL SCITT,4000246533,59433.93,Grants to educational establishments or not for profit organisations including other businesses
Department for Education,NATIONAL COLLEGE FOR TEACHING AND LEADERSHIP AGENCY,02/09/2016,Grants,Operations Directorate,SUTTON SCITT,4000246536,29383.24,Grants to educational establishments or not for profit organisations including other businesses
Department for Education,DEPARTMENT FOR EDUCATION,02/09/2016,Grants,"Children's Services, Equalities and Communication Safeguarding Group",HERTFORDSHIRE,4000246543,46550.07,Grants to local authorities / other establishments within aggregate external funding or aggregate exchequer grant
Department for Education,NATIONAL COLLEGE FOR TEACHING AND LEADERSHIP AGENCY,02/09/2016,Grants,Operations Directorate,UNIVERSITY OF BIRMINGHAM,4000246548,292643.38,Grants to educational establishments or not for profit organisations including other businesses
Department for Education,NATIONAL COLLEGE FOR TEACHING AND LEADERSHIP AGENCY,02/09/2016,Grants,Operations Directorate,UNIVERSITY OF BIRMINGHAM,4000246548,80740.00,Grants to educational establishments or not for profit organisations including other businesses
Department for Education,NATIONAL COLLEGE FOR TEACHING AND LEADERSHIP AGENCY,02/09/2016,Grants,Operations Directorate,OXFORD BROOKES UNIVERSITY,4000246552,50427.43,Grants to educational establishments or not for profit organisations including other businesses
Department for Education,NATIONAL COLLEGE FOR TEACHING AND LEADERSHIP AGENCY,02/09/2016,Grants,Delivery Directorate,OXFORD BROOKES UNIVERSITY,4000246552,15400.00,Grants to educational establishments or not for profit organisations including other businesses
Department for Education,NATIONAL COLLEGE FOR TEACHING AND LEADERSHIP AGENCY,02/09/2016,Grants,Delivery Directorate,UNIVERSITY OF EAST ANGLIA,4000246555,1800.00,Grants to educational establishments or not for profit organisations including other businesses
Department for Education,NATIONAL COLLEGE FOR TEACHING AND LEADERSHIP AGENCY,02/09/2016,Grants,Operations Directorate,UNIVERSITY OF EAST ANGLIA,4000246555,189450.72,Grants to educational establishments or not for profit organisations including other businesses
Department for Education,NATIONAL COLLEGE FOR TEACHING AND LEADERSHIP AGENCY,02/09/2016,Grants,Operations Directorate,UNIVERSITY OF DERBY,4000246556,54627.11,Grants to educational establishments or not for profit organisations including other businesses
Department for Education,NATIONAL COLLEGE FOR TEACHING AND LEADERSHIP AGENCY,02/09/2016,Grants,Delivery Directorate,UNIVERSITY OF DERBY,4000246556,18535.00,Grants to educational establishments or not for profit organisations including other businesses
Department for Education,NATIONAL COLLEGE FOR TEACHING AND LEADERSHIP AGENCY,02/09/2016,Grants,Operations Directorate,STAFFORDSHIRE UNIVERSITY,4000246557,56684.61,Grants to educational establishments or not for profit organisations including other businesses
Department for Education,NATIONAL COLLEGE FOR TEACHING AND LEADERSHIP AGENCY,02/09/2016,Grants,Delivery Directorate,STAFFORDSHIRE UNIVERSITY,4000246557,11550.00,Grants to educational establishments or not for profit organisations including other businesses
Department for Education,NATIONAL COLLEGE FOR TEACHING AND LEADERSHIP AGENCY,02/09/2016,Grants,Delivery Directorate,LEEDS BECKETT UNIVERSITY,4000246558,5200.00,Grants to educational establishments or not for profit organisations including other businesses
Department for Education,NATIONAL COLLEGE FOR TEACHING AND LEADERSHIP AGENCY,02/09/2016,Grants,Operations Directorate,LEEDS BECKETT UNIVERSITY,4000246558,45360.98,Grants to educational establishments or not for profit organisations including other businesses
Department for Education,NATIONAL COLLEGE FOR TEACHING AND LEADERSHIP AGENCY,02/09/2016,Grants,Operations Directorate,THE GREATER MANCHESTER BRIGHT FUTURES TRUST,4000246561,15910.86,Grants to educational establishments or not for profit organisations including other businesses
Department for Education,NATIONAL COLLEGE FOR TEACHING AND LEADERSHIP AGENCY,02/09/2016,Grants,Delivery Directorate,THE GREATER MANCHESTER BRIGHT FUTURES TRUST,4000246561,17930.00,Grants to educational establishments or not for profit organisations including other businesses
Department for Education,NATIONAL COLLEGE FOR TEACHING AND LEADERSHIP AGENCY,02/09/2016,Grants,Operations Directorate,SUFFOLK COUNTY COUNCIL,4000246564,51810.83,Grants to educational establishments or not for profit organisations including other businesses
Department for Education,DEPARTMENT FOR EDUCATION,02/09/2016,Grants,"Children's Services, Equalities and Communication Safeguarding Group",LANCASHIRE COUNTY COUNCIL,4000246570,28166.70,Grants to local authorities / other establishments within aggregate external funding or aggregate exchequer grant
Department for Education,NATIONAL COLLEGE FOR TEACHING AND LEADERSHIP AGENCY,02/09/2016,Grants,Operations Directorate,ESSEX COUNTY COUNCIL,4000246573,27699.76,Grants to educational establishments or not for profit organisations including other businesses
Department for Education,NATIONAL COLLEGE FOR TEACHING AND LEADERSHIP AGENCY,02/09/2016,Grants,Operations Directorate,THE MORLEY ACADEMY,4000246575,59090.27,Grants to educational establishments or not for profit organisations including other businesses
Department for Education,NATIONAL COLLEGE FOR TEACHING AND LEADERSHIP AGENCY,02/09/2016,Grants,Operations Directorate,BRUNEL UNIVERSITY,4000246576,102633.69,Grants to educational establishments or not for profit organisations including other businesses
Department for Education,NATIONAL COLLEGE FOR TEACHING AND LEADERSHIP AGENCY,02/09/2016,Grants,Delivery Directorate,ST MARYS UNIVERSITY COLLEGE,4000246579,3752.40,Grants to educational establishments or not for profit organisations including other businesses
Department for Education,NATIONAL COLLEGE FOR TEACHING AND LEADERSHIP AGENCY,02/09/2016,Grants,Operations Directorate,ST MARYS UNIVERSITY COLLEGE,4000246579,266380.69,Grants to educational establishments or not for profit organisations including other businesses
Department for Education,NATIONAL COLLEGE FOR TEACHING AND LEADERSHIP AGENCY,02/09/2016,Grants,Delivery Directorate,HIBERNIA COLLEGE UK,4000246583,342682.92,Grants to educational establishments or not for profit organisations including other businesses
Department for Education,NATIONAL COLLEGE FOR TEACHING AND LEADERSHIP AGENCY,02/09/2016,Grants,Operations Directorate,HIBERNIA COLLEGE UK,4000246583,68663.63,Grants to educational establishments or not for profit organisations including other businesses
Department for Education,NATIONAL COLLEGE FOR TEACHING AND LEADERSHIP AGENCY,02/09/2016,Grants,Operations Directorate,HIBERNIA COLLEGE UK,4000246583,390645.00,Grants to educational establishments or not for profit organisations including other businesses
Department for Education,DEPARTMENT FOR EDUCATION,02/09/2016,Grants,"Children's Services, Equalities and Communication Safeguarding Group",LONDON BOROUGH OF BROMLEY COUNCIL,4000246587,66283.43,Grants to local authorities / other establishments within aggregate external funding or aggregate exchequer grant
Department for Education,NATIONAL COLLEGE FOR TEACHING AND LEADERSHIP AGENCY,02/09/2016,Grants,Operations Directorate,PADDINGTON ACADEMY,4000246588,37779.07,Grants to educational establishments or not for profit organisations including other businesses
Department for Education,NATIONAL COLLEGE FOR TEACHING AND LEADERSHIP AGENCY,02/09/2016,Grants,Operations Directorate,THE UNIVERSITY OF MANCHESTER,4000246589,274112.03,Grants to educational establishments or not for profit organisations including other businesses
Department for Education,NATIONAL COLLEGE FOR TEACHING AND LEADERSHIP AGENCY,02/09/2016,Grants,Operations Directorate,UNIVERSITY OF LEICESTER,4000246590,148783.48,Grants to educational establishments or not for profit organisations including other businesses
Department for Education,NATIONAL COLLEGE FOR TEACHING AND LEADERSHIP AGENCY,02/09/2016,Grants,Operations Directorate,UNIVERSITY OF NORTHAMPTON,4000246594,11689.03,Grants to educational establishments or not for profit organisations including other businesses
Department for Education,NATIONAL COLLEGE FOR TEACHING AND LEADERSHIP AGENCY,02/09/2016,Grants,Delivery Directorate,UNIVERSITY OF NORTHAMPTON,4000246594,30360.00,Grants to educational establishments or not for profit organisations including other businesses
Department for Education,NATIONAL COLLEGE FOR TEACHING AND LEADERSHIP AGENCY,02/09/2016,Grants,Operations Directorate,GLOUCESTERSHIRE ITE PARTNERSHIP,4000246596,60134.20,Grants to educational establishments or not for profit organisations including other businesses
Department for Education,NATIONAL COLLEGE FOR TEACHING AND LEADERSHIP AGENCY,02/09/2016,Grants,Operations Directorate,GEORGE SPENCER TRAINING SCHOOL,4000246598,27247.46,Grants to educational establishments or not for profit organisations including other businesses
Department for Education,NATIONAL COLLEGE FOR TEACHING AND LEADERSHIP AGENCY,02/09/2016,Grants,Operations Directorate,GEORGE ABBOT ACADEMY,4000246599,25904.10,Grants to educational establishments or not for profit organisations including other businesses
Department for Education,NATIONAL COLLEGE FOR TEACHING AND LEADERSHIP AGENCY,02/09/2016,Grants,Operations Directorate,UCL INSTITUTE OF EDUCATION,4000246600,530919.78,Grants to educational establishments or not for profit organisations including other businesses
Department for Education,NATIONAL COLLEGE FOR TEACHING AND LEADERSHIP AGENCY,02/09/2016,Grants,Delivery Directorate,UCL INSTITUTE OF EDUCATION,4000246600,37785.00,Grants to educational establishments or not for profit organisations including other businesses
Department for Education,NATIONAL COLLEGE FOR TEACHING AND LEADERSHIP AGENCY,02/09/2016,Grants,Delivery Directorate,PENINSULA TEACHER TRAINING CORNWALL SCITT,4000246602,900.00,Grants to educational establishments or not for profit organisations including other businesses
Department for Education,NATIONAL COLLEGE FOR TEACHING AND LEADERSHIP AGENCY,02/09/2016,Grants,Operations Directorate,PENINSULA TEACHER TRAINING CORNWALL SCITT,4000246602,37459.05,Grants to educational establishments or not for profit organisations including other businesses
Department for Education,NATIONAL COLLEGE FOR TEACHING AND LEADERSHIP AGENCY,02/09/2016,Grants,Operations Directorate,EDGE HILL UNIVERSITY,4000246607,442208.54,Grants to educational establishments or not for profit organisations including other businesses
Department for Education,NATIONAL COLLEGE FOR TEACHING AND LEADERSHIP AGENCY,02/09/2016,Grants,Delivery Directorate,EDGE HILL UNIVERSITY,4000246607,60775.00,Grants to educational establishments or not for profit organisations including other businesses
Department for Education,DEPARTMENT FOR EDUCATION,02/09/2016,Grants,"Children's Services, Equalities and Communication Safeguarding Group",SHEFFIELD CITY COUNCIL,4000246608,123050.17,Grants to local authorities / other establishments within aggregate external funding or aggregate exchequer grant
Department for Education,NATIONAL COLLEGE FOR TEACHING AND LEADERSHIP AGENCY,02/09/2016,Grants,Delivery Directorate,UNIVERSITY OF EXETER,4000246610,1600.00,Grants to educational establishments or not for profit organisations including other businesses
Department for Education,NATIONAL COLLEGE FOR TEACHING AND LEADERSHIP AGENCY,02/09/2016,Grants,Operations Directorate,UNIVERSITY OF EXETER,4000246610,238123.19,Grants to educational establishments or not for profit organisations including other businesses
Department for Education,NATIONAL COLLEGE FOR TEACHING AND LEADERSHIP AGENCY,02/09/2016,Grants,Operations Directorate,UNIVERSITY OF EXETER,4000246610,1910.00,Grants to educational establishments or not for profit organisations including other businesses
Department for Education,DEPARTMENT FOR EDUCATION,02/09/2016,Grants,"Children's Services, Equalities and Communication Safeguarding Group",CAMBRIDGESHIRE COUNTY COUNCIL,4000246613,56416.75,Grants to local authorities / other establishments within aggregate external funding or aggregate exchequer grant
Department for Education,NATIONAL COLLEGE FOR TEACHING AND LEADERSHIP AGENCY,02/09/2016,Grants,Operations Directorate,E QUALITAS PROFESSIONAL SERVICES LTD,4000246615,9504.92,Grants to educational establishments or not for profit organisations including other businesses
Department for Education,NATIONAL COLLEGE FOR TEACHING AND LEADERSHIP AGENCY,02/09/2016,Grants,Delivery Directorate,E QUALITAS PROFESSIONAL SERVICES LTD,4000246615,39105.00,Grants to educational establishments or not for profit organisations including other businesses
Department for Education,NATIONAL COLLEGE FOR TEACHING AND LEADERSHIP AGENCY,02/09/2016,Grants,Operations Directorate,CARMEL TEACHER TRAINING PARTNERSHIP,4000246619,71755.45,Grants to educational establishments or not for profit organisations including other businesses
Department for Education,NATIONAL COLLEGE FOR TEACHING AND LEADERSHIP AGENCY,02/09/2016,Grants,Operations Directorate,DONCASTER MBC,4000246625,29766.20,Grants to educational establishments or not for profit organisations including other businesses
Department for Education,DEPARTMENT FOR EDUCATION,02/09/2016,Grants,"Children's Services, Equalities and Communication Safeguarding Group",METROPOLITAN BOROUGH OF WIRRAL,4000246626,55416.75,Grants to local authorities / other establishments within aggregate external funding or aggregate exchequer grant
Department for Education,DEPARTMENT FOR EDUCATION,02/09/2016,Grants,"Children's Services, Equalities and Communication Safeguarding Group",BRACKNELL FOREST BOROUGH COUNCIL,4000246631,31816.71,Grants to local authorities / other establishments within aggregate external funding or aggregate exchequer grant
Department for Education,DEPARTMENT FOR EDUCATION,02/09/2016,Grants,"Children's Services, Equalities and Communication Safeguarding Group",STOKE ON TRENT CITY COUNCIL,4000246632,83016.79,Grants to local authorities / other establishments within aggregate external funding or aggregate exchequer grant
Department for Education,NATIONAL COLLEGE FOR TEACHING AND LEADERSHIP AGENCY,02/09/2016,Grants,Operations Directorate,THE UNIVERSITY OF READING,4000246634,213956.32,Grants to educational establishments or not for profit organisations including other businesses
Department for Education,NATIONAL COLLEGE FOR TEACHING AND LEADERSHIP AGENCY,02/09/2016,Grants,Delivery Directorate,THE UNIVERSITY OF READING,4000246634,31955.00,Grants to educational establishments or not for profit organisations including other businesses
Department for Education,NATIONAL COLLEGE FOR TEACHING AND LEADERSHIP AGENCY,02/09/2016,Grants,Delivery Directorate,UNIVERSITY OF SOUTHAMPTON,4000246636,1333.34,Grants to educational establishments or not for profit organisations including other businesses
Department for Education,NATIONAL COLLEGE FOR TEACHING AND LEADERSHIP AGENCY,02/09/2016,Grants,Operations Directorate,UNIVERSITY OF SOUTHAMPTON,4000246636,215187.59,Grants to educational establishments or not for profit organisations including other businesses
Department for Education,NATIONAL COLLEGE FOR TEACHING AND LEADERSHIP AGENCY,02/09/2016,Grants,Delivery Directorate,CORNWALL SCITT,4000246637,733.34,Grants to educational establishments or not for profit organisations including other businesses
Department for Education,NATIONAL COLLEGE FOR TEACHING AND LEADERSHIP AGENCY,02/09/2016,Grants,Operations Directorate,CORNWALL SCITT,4000246637,59604.69,Grants to educational establishments or not for profit organisations including other businesses
Department for Education,NATIONAL COLLEGE FOR TEACHING AND LEADERSHIP AGENCY,02/09/2016,Grants,Operations Directorate,UNIVERSITY OF WINCHESTER,4000246638,38545.24,Grants to educational establishments or not for profit organisations including other businesses
Department for Education,NATIONAL COLLEGE FOR TEACHING AND LEADERSHIP AGENCY,02/09/2016,Grants,Operations Directorate,BROMLEY SCHOOLS COLLEGIATE,4000246640,37616.35,Grants to educational establishments or not for profit organisations including other businesses
Department for Education,NATIONAL COLLEGE FOR TEACHING AND LEADERSHIP AGENCY,02/09/2016,Grants,Operations Directorate,BOURNEMOUTH POOLE & DORSET EAST SECONDARY,4000246641,42710.70,Grants to educational establishments or not for profit organisations including other businesses
Department for Education,NATIONAL COLLEGE FOR TEACHING AND LEADERSHIP AGENCY,02/09/2016,Grants,Operations Directorate,HARRIS CITY ACADEMY,4000246642,44707.48,Grants to educational establishments or not for profit organisations including other businesses
Department for Education,NATIONAL COLLEGE FOR TEACHING AND LEADERSHIP AGENCY,02/09/2016,Grants,Operations Directorate,DEYES HIGH SCHOOL,4000246643,30005.56,Grants to educational establishments or not for profit organisations including other businesses
Department for Education,DEPARTMENT FOR EDUCATION,02/09/2016,Energy and Fuels,Property Asset Management Group,EDF ENERGY,4000246581,110167.99,Electricity supply
Department for Education,DEPARTMENT FOR EDUCATION,02/09/2016,Professional Services Consultancy and Contingent Labour,Information Technology Group,METHODS PROFESSIONAL SERVICES LTD,4000246480,17160.00,Costs related to temporary workers
Department for Education,DEPARTMENT FOR EDUCATION,02/09/2016,Professional Services Consultancy and Contingent Labour,Information Technology Group,METHODS PROFESSIONAL SERVICES LTD,4000246480,29628.00,Costs related to temporary workers
Department for Education,NATIONAL COLLEGE FOR TEACHING AND LEADERSHIP AGENCY,02/09/2016,Professional Services Other,Delivery Directorate,TEACHING LEADERS,4000246495,216217.00,"Fees / expenses of professionals, for example to implement advice or changes"
Department for Education,DEPARTMENT FOR EDUCATION,02/09/2016,Redactions,Various,EDUCATION FUNDING AGENCY,Various,4988681600.00,"The total redacted transactions, including funding payment to Education Funding Agency. See Technical Notes for further information."
Department for Education,DEPARTMENT FOR EDUCATION,05/09/2016,Grants,Academies Regional Delivery Group,THE STANFORD & CORRINGHAM SCHOOLS TRUST,4000246645,277000.00,Grants to educational establishments or not for profit organisations including other businesses
Department for Education,DEPARTMENT FOR EDUCATION,05/09/2016,Grants,Academies Regional Delivery Group,DAME ELIZABETH CADBURY TECHNOLOGY COLLEGE,4000246646,25000.00,Grants to educational establishments or not for profit organisations including other businesses
Department for Education,NATIONAL COLLEGE FOR TEACHING AND LEADERSHIP AGENCY,05/09/2016,Programme costs,Delivery Directorate,TEACH FIRST INITIAL TEACHER DEVELOPMENT,4000246650,1910050.22,Funding to deliver policies (excluding consultancy) paid to third parties via a service delivery contract
Department for Education,DEPARTMENT FOR EDUCATION,05/09/2016,Grants,Academies Regional Delivery Group,REACH4 ACADEMY TRUST,4000246656,200000.00,Grants to educational establishments or not for profit organisations including other businesses
Department for Education,DEPARTMENT FOR EDUCATION,05/09/2016,Programme costs,"Assessment, Curriculum and General Qualifications Group",STEM LEARNING LTD,4000246657,170254.75,Funding to deliver policies (excluding consultancy) paid to third parties via a service delivery contract
Department for Education,DEPARTMENT FOR EDUCATION,05/09/2016,Programme costs,"Children's Services, Equalities and Communication Safeguarding Group",THE FRONTLINE ORGANISATION,4000246660,204555.22,Funding to deliver policies (excluding consultancy) paid to third parties via a service delivery contract
Department for Education,DEPARTMENT FOR EDUCATION,05/09/2016,ICT,Information Technology Group,LOCKHEED MARTIN,4000246661,31195.20,ICT Services
Department for Education,DEPARTMENT FOR EDUCATION,05/09/2016,Grants,Academies Regional Delivery Group,EXTOL ACADEMY TRUST,4000246671,40000.00,Capital grants paid to a private sector organisation or educational establishment
Department for Education,DEPARTMENT FOR EDUCATION,05/09/2016,Grants,"Assessment, Curriculum and General Qualifications Group",CHOIR SCHOOLS ASSOCIATION BURSARY TRUST LTD,4000246673,5885000.00,Grants to educational establishments or not for profit organisations including other businesses
Department for Education,DEPARTMENT FOR EDUCATION,05/09/2016,Grants,Academies Regional Delivery Group,LION ACADEMY TRUST,4000246675,70000.00,Grants to educational establishments or not for profit organisations including other businesses
Department for Education,DEPARTMENT FOR EDUCATION,05/09/2016,ICT,Systems and Accountability Group,SCISYS UK LTD,4000246682,65341.10,ICT Services
Department for Education,DEPARTMENT FOR EDUCATION,05/09/2016,Grants,Academies Regional Delivery Group,NORTHERN EDUCATION TRUST,4000246692,25000.00,Grants to educational establishments or not for profit organisations including other businesses
Department for Education,DEPARTMENT FOR EDUCATION,05/09/2016,Grants,Academies Regional Delivery Group,RIVINGTON & BLACKROD HIGH SCHOOL,4000246693,25000.00,Grants to educational establishments or not for profit organisations including other businesses
Department for Education,DEPARTMENT FOR EDUCATION,05/09/2016,Grants,"Children's Services, Equalities and Communication Safeguarding Group",DEPARTMENT OF HEALTH,4000246695,1750000.00,Current grant funding to other government departments for DfE's contribution to jointly funded programmes 
Department for Education,DEPARTMENT FOR EDUCATION,05/09/2016,Facilities,Property Asset Management Group,GVA GRIMLEY LTD DCLG,4000246652,64785.13,"Business rates. From 2016/17 financial year DCLG and DECC will use the DfE's finance system, reflecting the shared services arrangement for property asset management that already exists across the three departments. DfE will recharge DCLG and DECC on a quarterly basis."
Department for Education,DEPARTMENT FOR EDUCATION,05/09/2016,Facilities,Property Asset Management Group,GVA GRIMLEY LTD DCLG,4000246652,22738.54,"Rent. From 2016/17 financial year DCLG and DECC will use the DfE's finance system, reflecting the shared services arrangement for property asset management that already exists across the three departments. DfE will recharge DCLG and DECC on a quarterly basis."
Department for Education,DEPARTMENT FOR EDUCATION,06/09/2016,Grants,Government Equalities Office,EQUALITY & HUMAN RIGHTS COMMISSION,2100105,1611810.00,Current grants paid to organisations including arms length bodies and educational establishments
Department for Education,DEPARTMENT FOR EDUCATION,06/09/2016,Grants,"Children's Services, Equalities and Communication Safeguarding Group",OFFICE OF THE CHILDRENS COMMISSIONER,2100106,80272.53,Current grants paid to organisations including arms length bodies and educational establishments
Department for Education,DEPARTMENT FOR EDUCATION,06/09/2016,Facilities,Property Asset Management Group,INTERSERVE FACILITIES MANAGEMENT LTD,4000246736,335422.42,"Building maintenance and repair, including repainting, replacing flooring, etc."
Department for Education,DEPARTMENT FOR EDUCATION,06/09/2016,Grants,Free School Group,GIPSY HILL TRUST,4000246723,30000.00,Grants to educational establishments or not for profit organisations including other businesses
Department for Education,DEPARTMENT FOR EDUCATION,06/09/2016,Grants,Free School Group,GLF Schools,4000246724,30000.00,Grants to educational establishments or not for profit organisations including other businesses
Department for Education,DEPARTMENT FOR EDUCATION,06/09/2016,Grants,Free School Group,XP SCHOOL DONCASTER LTD XP EAST,4000246725,30000.00,Grants to educational establishments or not for profit organisations including other businesses
Department for Education,DEPARTMENT FOR EDUCATION,06/09/2016,Grants,Free School Group,BURY ST EDMUNDS ACADEMY TRUST,4000246727,30000.00,Grants to educational establishments or not for profit organisations including other businesses
Department for Education,DEPARTMENT FOR EDUCATION,06/09/2016,Grants,Free School Group,NEW GENERATION SCHOOLS TRUST,4000246733,40000.00,Grants to educational establishments or not for profit organisations including other businesses
Department for Education,DEPARTMENT FOR EDUCATION,06/09/2016,Programme costs,Systems and Accountability Group,RM EDUCATION PLC,4000246742,106480.20,Funding to deliver policies (excluding consultancy) paid to third parties via a service delivery contract
Department for Education,NATIONAL COLLEGE FOR TEACHING AND LEADERSHIP AGENCY,06/09/2016,Programme costs,Operations Directorate,TEXUNA TECHNOLOGIES,4000246749,27453.52,Funding to deliver policies (excluding consultancy) paid to third parties via a service delivery contract
Department for Education,DEPARTMENT FOR EDUCATION,06/09/2016,Grants,Free School Group,THE CHERWELL SCHOOL TS ACCOUNT,4000246751,30000.00,Grants to educational establishments or not for profit organisations including other businesses
Department for Education,DEPARTMENT FOR EDUCATION,06/09/2016,Programme costs,Systems and Accountability Group,RESEARCH MACHINES PLC,4000246754,635570.72,Funding to deliver policies (excluding consultancy) paid to third parties via a service delivery contract
Department for Education,DEPARTMENT FOR EDUCATION,06/09/2016,Grants,Free School Group,WAKEFIELD DIOCESAN ACADEMIES TRUST,4000246769,30000.00,Grants to educational establishments or not for profit organisations including other businesses
Department for Education,NATIONAL COLLEGE FOR TEACHING AND LEADERSHIP AGENCY,06/09/2016,Professional Services Other,Delivery Directorate,TELEPERFORMANCE LTD,4000246748,57265.00,"Fees / expenses of professionals, for example to implement advice or changes"
Department for Education,DEPARTMENT FOR EDUCATION,07/09/2016,Facilities,Property Asset Management Group,INTERSERVE FACILITIES MANAGEMENT LTD,4000246818,90605.94,"Building maintenance and repair, including repainting, replacing flooring, etc."
Department for Education,NATIONAL COLLEGE FOR TEACHING AND LEADERSHIP AGENCY,07/09/2016,Programme costs,Operations Directorate,UCAS,4000246772,40590.00,Funding to deliver policies (excluding consultancy) paid to third parties via a service delivery contract
Department for Education,DEPARTMENT FOR EDUCATION,07/09/2016,Professional Services Consultancy and Contingent Labour,Information Technology Group,METHODS PROFESSIONAL SERVICES LTD,4000246805,15120.00,Costs related to temporary workers
Department for Education,DEPARTMENT FOR EDUCATION,07/09/2016,Professional Services Consultancy and Contingent Labour,Portfolio Management Board,METHODS PROFESSIONAL SERVICES LTD,4000246805,6563.70,Costs related to temporary workers
Department for Education,DEPARTMENT FOR EDUCATION,07/09/2016,Professional Services Consultancy and Contingent Labour,Portfolio Management Board,METHODS PROFESSIONAL SERVICES LTD,4000246805,14520.00,Costs related to temporary workers
Department for Education,DEPARTMENT FOR EDUCATION,07/09/2016,Facilities,Property Asset Management Group,METHODS PROFESSIONAL SERVICES LTD,4000246805,11790.00,Programme management for construction work
Department for Education,DEPARTMENT FOR EDUCATION,07/09/2016,Facilities,Property Asset Management Group,INTERSERVE FACILITIES MANAGEMENT LTD,4000246818,67606.01,Property management
Department for Education,DEPARTMENT FOR EDUCATION,07/09/2016,Facilities,Property Asset Management Group,INTERSERVE FACILITIES MANAGEMENT LTD,4000246818,311284.37,Property management
Department for Education,DEPARTMENT FOR EDUCATION,07/09/2016,Professional Services Consultancy and Contingent Labour,Portfolio Management Board,RUSSAM GMS LTD,4000246825,28226.24,Costs related to temporary workers
Department for Education,DEPARTMENT FOR EDUCATION,07/09/2016,Miscellaneous Expenditure,Finance and Commercial Group,N/A � Risk Protection Arrangement (RPA) member,005921-001281-RB-01,27033.30,Property claim paid out to an academy trust by Gallagher Bassett on behalf of the Department as part of the Department's Risk Protection Arrangement (RPA).
Department for Education,DEPARTMENT FOR EDUCATION,08/09/2016,Grants,Post 16 and Disadvantage Group,The Careers & Enterprise Company,4000246848,1200000.00,Grants to educational establishments or not for profit organisations including other businesses
Department for Education,DEPARTMENT FOR EDUCATION,08/09/2016,Grants,"Children's Services, Equalities and Communication Safeguarding Group",THE FRONTLINE ORGANISATION,4000246860,192775.00,Grants to educational establishments or not for profit organisations including other businesses
Department for Education,DEPARTMENT FOR EDUCATION,08/09/2016,Grants,"Children's Services, Equalities and Communication Safeguarding Group",CORNERSTONE TRAINING & SUPPORT LTD,4000246864,105000.00,Grants to educational establishments or not for profit organisations including other businesses
Department for Education,DEPARTMENT FOR EDUCATION,08/09/2016,Programme costs,Teachers and Teaching Group,CAPITA LIFE & PENSIONS SERVICES LTD,4000246879,1153586.65,Contract payment to deliver the administration of the Teachers' Pension Scheme
Department for Education,DEPARTMENT FOR EDUCATION,08/09/2016,Programme costs,Adoption and Children in Care Division,DELOITTE,4000246884,79093.66,Funding to deliver policies (excluding consultancy) paid to third parties via a service delivery contract
Department for Education,NATIONAL COLLEGE FOR TEACHING AND LEADERSHIP AGENCY,08/09/2016,Grants,Delivery Directorate,LYONS HALL PRIMARY SCHOOL,4000246889,27000.00,Grants to educational establishments or not for profit organisations including other businesses
Department for Education,DEPARTMENT FOR EDUCATION,08/09/2016,Programme costs,Children's Services Special Educational Needs Group,CONTACT A FAMILY,4000246890,149961.31,Funding to deliver policies (excluding consultancy) paid to third parties via a service delivery contract
Department for Education,DEPARTMENT FOR EDUCATION,08/09/2016,Programme costs,Adoption and Children in Care Division,MOTT MACDONALD LTD,4000246896,81981.39,Funding to deliver policies (excluding consultancy) paid to third parties via a service delivery contract
Department for Education,DEPARTMENT FOR EDUCATION,08/09/2016,Programme costs,Early Years Group,MOTT MACDONALD LTD,4000246896,-14808.96,Funding to deliver policies (excluding consultancy) paid to third parties via a service delivery contract
Department for Education,DEPARTMENT FOR EDUCATION,08/09/2016,Facilities,Property Asset Management Group,METHODS CONSULTING LTD,4000246899,26269.28,Programme management for construction work
Department for Education,DEPARTMENT FOR EDUCATION,08/09/2016,Facilities,Property Asset Management Group,MACE LTD,4000246867,185935.20,Property management
Department for Education,DEPARTMENT FOR EDUCATION,08/09/2016,Facilities,Property Asset Management Group,METHODS CONSULTING LTD,4000246899,30130.72,Property management
Department for Education,DEPARTMENT FOR EDUCATION,08/09/2016,ICT,Information Technology Group,TRUSTMARQUE SOLUTIONS LTD,4000246882,31812.00,ICT Software
Department for Education,DEPARTMENT FOR EDUCATION,09/09/2016,Funding to pay Teachers' Pensions,Teachers and Teaching Group,TPS GOVERNMENT BANKING SERVICE ACCOUNT,2100108,725916.02,Pension related payments to retired teachers where liability has transferred to SoS
Department for Education,DEPARTMENT FOR EDUCATION,09/09/2016,Funding to pay Teachers' Pensions,Teachers and Teaching Group,TPS GOVERNMENT BANKING SERVICE ACCOUNT,2100109,226914.15,Pension related payments to retired teachers where liability has transferred to SoS
Department for Education,DEPARTMENT FOR EDUCATION,09/09/2016,Funding to pay Teachers' Pensions,Teachers and Teaching Group,TPS GOVERNMENT BANKING SERVICE ACCOUNT,2100109,6063.77,Pension related payments to retired teachers where liability has transferred to SoS
Department for Education,NATIONAL COLLEGE FOR TEACHING AND LEADERSHIP AGENCY,09/09/2016,Professional Services Other,Operations Directorate,BLAKE MORGAN,4000246982,38218.66,Legal services provided externally (excluding Treasury Solicitor) 
Department for Education,NATIONAL COLLEGE FOR TEACHING AND LEADERSHIP AGENCY,09/09/2016,Grants,Delivery Directorate,OAKTHORPE PRIMARY SCHOOL,4000246903,40000.00,Grants to educational establishments or not for profit organisations including other businesses
Department for Education,NATIONAL COLLEGE FOR TEACHING AND LEADERSHIP AGENCY,09/09/2016,Grants,Delivery Directorate,OAKTHORPE PRIMARY SCHOOL,4000246903,6000.00,Grants to educational establishments or not for profit organisations including other businesses
Department for Education,NATIONAL COLLEGE FOR TEACHING AND LEADERSHIP AGENCY,09/09/2016,Grants,Delivery Directorate,CLAREMONT PRIMARY SCHOOL,4000246906,40000.00,Grants to educational establishments or not for profit organisations including other businesses
Department for Education,NATIONAL COLLEGE FOR TEACHING AND LEADERSHIP AGENCY,09/09/2016,Grants,Delivery Directorate,CLAREMONT PRIMARY SCHOOL,4000246906,1682.00,Grants to educational establishments or not for profit organisations including other businesses
Department for Education,NATIONAL COLLEGE FOR TEACHING AND LEADERSHIP AGENCY,09/09/2016,Grants,Delivery Directorate,CLAREMONT PRIMARY SCHOOL,4000246906,9000.00,Grants to educational establishments or not for profit organisations including other businesses
Department for Education,NATIONAL COLLEGE FOR TEACHING AND LEADERSHIP AGENCY,09/09/2016,Grants,Delivery Directorate,LIGHTWOODS PRIMARY SCHOOL,4000246908,36500.00,Grants to educational establishments or not for profit organisations including other businesses
Department for Education,NATIONAL COLLEGE FOR TEACHING AND LEADERSHIP AGENCY,09/09/2016,Grants,Delivery Directorate,LIGHTWOODS PRIMARY SCHOOL,4000246908,6000.00,Grants to educational establishments or not for profit organisations including other businesses
Department for Education,NATIONAL COLLEGE FOR TEACHING AND LEADERSHIP AGENCY,09/09/2016,Grants,Delivery Directorate,RANGE HIGH SCHOOL,4000246909,50000.00,Grants to educational establishments or not for profit organisations including other businesses
Department for Education,NATIONAL COLLEGE FOR TEACHING AND LEADERSHIP AGENCY,09/09/2016,Grants,Delivery Directorate,THE NELSON TOMLINSON SCHOOL,4000246916,50000.00,Grants to educational establishments or not for profit organisations including other businesses
Department for Education,NATIONAL COLLEGE FOR TEACHING AND LEADERSHIP AGENCY,09/09/2016,Grants,Delivery Directorate,OLDWAY PRIMARY SCHOOL CF ACCOUNT,4000246921,7000.00,Grants to educational establishments or not for profit organisations including other businesses
Department for Education,NATIONAL COLLEGE FOR TEACHING AND LEADERSHIP AGENCY,09/09/2016,Grants,Delivery Directorate,OLDWAY PRIMARY SCHOOL CF ACCOUNT,4000246921,40000.00,Grants to educational establishments or not for profit organisations including other businesses
Department for Education,NATIONAL COLLEGE FOR TEACHING AND LEADERSHIP AGENCY,09/09/2016,Grants,Delivery Directorate,OLDWAY PRIMARY SCHOOL CF ACCOUNT,4000246921,6000.00,Grants to educational establishments or not for profit organisations including other businesses
Department for Education,NATIONAL COLLEGE FOR TEACHING AND LEADERSHIP AGENCY,09/09/2016,Grants,Delivery Directorate,LANDAU FORTE COLLEGE DERBY SCITT,4000246922,40400.00,Grants to educational establishments or not for profit organisations including other businesses
Department for Education,NATIONAL COLLEGE FOR TEACHING AND LEADERSHIP AGENCY,09/09/2016,Grants,Delivery Directorate,AFFINITY TEACHING SCHOOL,4000246923,40000.00,Grants to educational establishments or not for profit organisations including other businesses
Department for Education,NATIONAL COLLEGE FOR TEACHING AND LEADERSHIP AGENCY,09/09/2016,Grants,Delivery Directorate,AFFINITY TEACHING SCHOOL,4000246923,6000.00,Grants to educational establishments or not for profit organisations including other businesses
Department for Education,NATIONAL COLLEGE FOR TEACHING AND LEADERSHIP AGENCY,09/09/2016,Grants,Delivery Directorate,KNARESBOROUGH MEADOWSIDE CP SCHOOL,4000246930,40000.00,Grants to educational establishments or not for profit organisations including other businesses
Department for Education,NATIONAL COLLEGE FOR TEACHING AND LEADERSHIP AGENCY,09/09/2016,Grants,Delivery Directorate,KNARESBOROUGH MEADOWSIDE CP SCHOOL,4000246930,6000.00,Grants to educational establishments or not for profit organisations including other businesses
Department for Education,NATIONAL COLLEGE FOR TEACHING AND LEADERSHIP AGENCY,09/09/2016,Grants,Delivery Directorate,POOLE TEACHING SCHOOL ALLIANCE TS ACCOUNT,4000246947,40000.00,Grants to educational establishments or not for profit organisations including other businesses
Department for Education,NATIONAL COLLEGE FOR TEACHING AND LEADERSHIP AGENCY,09/09/2016,Grants,Delivery Directorate,POOLE TEACHING SCHOOL ALLIANCE TS ACCOUNT,4000246947,6000.00,Grants to educational establishments or not for profit organisations including other businesses
Department for Education,NATIONAL COLLEGE FOR TEACHING AND LEADERSHIP AGENCY,09/09/2016,Grants,Delivery Directorate,COLCHESTER COUNTY HIGH SCHOOL FOR GIRLS,4000246950,40000.00,Grants to educational establishments or not for profit organisations including other businesses
Department for Education,NATIONAL COLLEGE FOR TEACHING AND LEADERSHIP AGENCY,09/09/2016,Grants,Delivery Directorate,COLCHESTER COUNTY HIGH SCHOOL FOR GIRLS,4000246950,6000.00,Grants to educational establishments or not for profit organisations including other businesses
Department for Education,NATIONAL COLLEGE FOR TEACHING AND LEADERSHIP AGENCY,09/09/2016,Grants,Delivery Directorate,HUNTINGDON ACADEMY TS ACCOUNT,4000246954,40000.00,Grants to educational establishments or not for profit organisations including other businesses
Department for Education,NATIONAL COLLEGE FOR TEACHING AND LEADERSHIP AGENCY,09/09/2016,Grants,Delivery Directorate,HUNTINGDON ACADEMY TS ACCOUNT,4000246954,260.00,Grants to educational establishments or not for profit organisations including other businesses
Department for Education,NATIONAL COLLEGE FOR TEACHING AND LEADERSHIP AGENCY,09/09/2016,Grants,Delivery Directorate,HUNTINGDON ACADEMY TS ACCOUNT,4000246954,6000.00,Grants to educational establishments or not for profit organisations including other businesses
Department for Education,NATIONAL COLLEGE FOR TEACHING AND LEADERSHIP AGENCY,09/09/2016,Grants,Delivery Directorate,THE QUEEN KATHERINE SCHOOL ACADEMY TRUST,4000246955,40000.00,Grants to educational establishments or not for profit organisations including other businesses
Department for Education,NATIONAL COLLEGE FOR TEACHING AND LEADERSHIP AGENCY,09/09/2016,Grants,Delivery Directorate,THE QUEEN KATHERINE SCHOOL ACADEMY TRUST,4000246955,6000.00,Grants to educational establishments or not for profit organisations including other businesses
Department for Education,NATIONAL COLLEGE FOR TEACHING AND LEADERSHIP AGENCY,09/09/2016,Grants,Delivery Directorate,ST MARYS CATHOLIC HIGH SCHOOL,4000246956,40000.00,Grants to educational establishments or not for profit organisations including other businesses
Department for Education,NATIONAL COLLEGE FOR TEACHING AND LEADERSHIP AGENCY,09/09/2016,Grants,Delivery Directorate,ST MARYS CATHOLIC HIGH SCHOOL,4000246956,6000.00,Grants to educational establishments or not for profit organisations including other businesses
Department for Education,NATIONAL COLLEGE FOR TEACHING AND LEADERSHIP AGENCY,09/09/2016,Grants,Delivery Directorate,THE BRIDGE SCHOOL BCAP ACC,4000246968,40000.00,Grants to educational establishments or not for profit organisations including other businesses
Department for Education,NATIONAL COLLEGE FOR TEACHING AND LEADERSHIP AGENCY,09/09/2016,Grants,Delivery Directorate,NEWLANDS SPRING PRIMARY SCHOOL,4000246971,40000.00,Grants to educational establishments or not for profit organisations including other businesses
Department for Education,NATIONAL COLLEGE FOR TEACHING AND LEADERSHIP AGENCY,09/09/2016,Grants,Delivery Directorate,NEWLANDS SPRING PRIMARY SCHOOL,4000246971,6000.00,Grants to educational establishments or not for profit organisations including other businesses
Department for Education,NATIONAL COLLEGE FOR TEACHING AND LEADERSHIP AGENCY,09/09/2016,Grants,Delivery Directorate,THE ARNEWOOD SCHOOL,4000246973,39930.00,Grants to educational establishments or not for profit organisations including other businesses
Department for Education,NATIONAL COLLEGE FOR TEACHING AND LEADERSHIP AGENCY,09/09/2016,Grants,Delivery Directorate,SPRINGFIELD COMMUNITY PRIMARY SCHOOL,4000246976,40000.00,Grants to educational establishments or not for profit organisations including other businesses
Department for Education,NATIONAL COLLEGE FOR TEACHING AND LEADERSHIP AGENCY,09/09/2016,Grants,Delivery Directorate,SPRINGFIELD COMMUNITY PRIMARY SCHOOL,4000246976,6000.00,Grants to educational establishments or not for profit organisations including other businesses
Department for Education,NATIONAL COLLEGE FOR TEACHING AND LEADERSHIP AGENCY,09/09/2016,Grants,Delivery Directorate,CANONS HIGH SCHOOL,4000246978,40000.00,Grants to educational establishments or not for profit organisations including other businesses
Department for Education,NATIONAL COLLEGE FOR TEACHING AND LEADERSHIP AGENCY,09/09/2016,Grants,Delivery Directorate,REDHILL ACADEMY,4000246987,40000.00,Grants to educational establishments or not for profit organisations including other businesses
Department for Education,NATIONAL COLLEGE FOR TEACHING AND LEADERSHIP AGENCY,09/09/2016,Grants,Delivery Directorate,REDHILL ACADEMY,4000246987,6000.00,Grants to educational establishments or not for profit organisations including other businesses
Department for Education,NATIONAL COLLEGE FOR TEACHING AND LEADERSHIP AGENCY,09/09/2016,Grants,Delivery Directorate,ACE CENTRE NURSERY SCHOOL,4000246990,50000.00,Grants to educational establishments or not for profit organisations including other businesses
Department for Education,NATIONAL COLLEGE FOR TEACHING AND LEADERSHIP AGENCY,09/09/2016,Grants,Delivery Directorate,ACE CENTRE NURSERY SCHOOL,4000246990,9000.00,Grants to educational establishments or not for profit organisations including other businesses
Department for Education,NATIONAL COLLEGE FOR TEACHING AND LEADERSHIP AGENCY,09/09/2016,Grants,Delivery Directorate,NEW COLLEGE PONTEFRACT,4000246991,50000.00,Grants to educational establishments or not for profit organisations including other businesses
Department for Education,NATIONAL COLLEGE FOR TEACHING AND LEADERSHIP AGENCY,09/09/2016,Grants,Delivery Directorate,NEW COLLEGE PONTEFRACT,4000246991,6000.00,Grants to educational establishments or not for profit organisations including other businesses
Department for Education,NATIONAL COLLEGE FOR TEACHING AND LEADERSHIP AGENCY,09/09/2016,Grants,Delivery Directorate,HAMPDEN WAY NURSERY SCHOOL,4000246992,50000.00,Grants to educational establishments or not for profit organisations including other businesses
Department for Education,NATIONAL COLLEGE FOR TEACHING AND LEADERSHIP AGENCY,09/09/2016,Grants,Delivery Directorate,BRIDGE FARM PRIMARY SCHOOL,4000246995,40000.00,Grants to educational establishments or not for profit organisations including other businesses
Department for Education,NATIONAL COLLEGE FOR TEACHING AND LEADERSHIP AGENCY,09/09/2016,Grants,Delivery Directorate,BRIDGE FARM PRIMARY SCHOOL,4000246995,6000.00,Grants to educational establishments or not for profit organisations including other businesses
Department for Education,NATIONAL COLLEGE FOR TEACHING AND LEADERSHIP AGENCY,09/09/2016,Grants,Delivery Directorate,HAMPTON HILL JUNIOR SCHOOL,4000247003,40000.00,Grants to educational establishments or not for profit organisations including other businesses
Department for Education,NATIONAL COLLEGE FOR TEACHING AND LEADERSHIP AGENCY,09/09/2016,Grants,Delivery Directorate,HAMPTON HILL JUNIOR SCHOOL,4000247003,6000.00,Grants to educational establishments or not for profit organisations including other businesses
Department for Education,NATIONAL COLLEGE FOR TEACHING AND LEADERSHIP AGENCY,09/09/2016,Grants,Delivery Directorate,ST BEDES PRIMARY CATHOLIC VOLUNTARY ACADEMY,4000247007,39975.00,Grants to educational establishments or not for profit organisations including other businesses
Department for Education,NATIONAL COLLEGE FOR TEACHING AND LEADERSHIP AGENCY,09/09/2016,Grants,Delivery Directorate,ST BEDES PRIMARY CATHOLIC VOLUNTARY ACADEMY,4000247007,1680.00,Grants to educational establishments or not for profit organisations including other businesses
Department for Education,NATIONAL COLLEGE FOR TEACHING AND LEADERSHIP AGENCY,09/09/2016,Grants,Delivery Directorate,ST BEDES PRIMARY CATHOLIC VOLUNTARY ACADEMY,4000247007,9000.00,Grants to educational establishments or not for profit organisations including other businesses
Department for Education,DEPARTMENT FOR EDUCATION,09/09/2016,Professional Services Other,Strategic Analysis and Research Group,IFF RESEARCH LTD,4000246937,25866.00,Research and evaluation activities
Department for Education,NATIONAL COLLEGE FOR TEACHING AND LEADERSHIP AGENCY,09/09/2016,Grants,Delivery Directorate,BELLEVILLE PRIMARY SCHOOL TS ACCOUNT,4000247009,35000.00,Grants to educational establishments or not for profit organisations including other businesses
Department for Education,NATIONAL COLLEGE FOR TEACHING AND LEADERSHIP AGENCY,09/09/2016,Grants,Delivery Directorate,BELLEVILLE PRIMARY SCHOOL TS ACCOUNT,4000247009,2000.00,Grants to educational establishments or not for profit organisations including other businesses
Department for Education,NATIONAL COLLEGE FOR TEACHING AND LEADERSHIP AGENCY,09/09/2016,Grants,Delivery Directorate,BELLEVILLE PRIMARY SCHOOL TS ACCOUNT,4000247009,6000.00,Grants to educational establishments or not for profit organisations including other businesses
Department for Education,NATIONAL COLLEGE FOR TEACHING AND LEADERSHIP AGENCY,09/09/2016,Grants,Delivery Directorate,EVELYN STREET PRIMARY SCHOOL BCAP,4000247011,40000.00,Grants to educational establishments or not for profit organisations including other businesses
Department for Education,NATIONAL COLLEGE FOR TEACHING AND LEADERSHIP AGENCY,09/09/2016,Grants,Delivery Directorate,EVELYN STREET PRIMARY SCHOOL BCAP,4000247011,6000.00,Grants to educational establishments or not for profit organisations including other businesses
Department for Education,NATIONAL COLLEGE FOR TEACHING AND LEADERSHIP AGENCY,09/09/2016,Grants,Delivery Directorate,THE HERMITAGE ACADEMY TS ACCOUNT,4000247012,30400.00,Grants to educational establishments or not for profit organisations including other businesses
Department for Education,NATIONAL COLLEGE FOR TEACHING AND LEADERSHIP AGENCY,09/09/2016,Grants,Delivery Directorate,THE HERMITAGE ACADEMY TS ACCOUNT,4000247012,40000.00,Grants to educational establishments or not for profit organisations including other businesses
Department for Education,NATIONAL COLLEGE FOR TEACHING AND LEADERSHIP AGENCY,09/09/2016,Grants,Delivery Directorate,LORETO GRAMMAR SCHOOL TS ACCOUNT,4000247013,5520.00,Grants to educational establishments or not for profit organisations including other businesses
Department for Education,NATIONAL COLLEGE FOR TEACHING AND LEADERSHIP AGENCY,09/09/2016,Grants,Delivery Directorate,LORETO GRAMMAR SCHOOL TS ACCOUNT,4000247013,40000.00,Grants to educational establishments or not for profit organisations including other businesses
Department for Education,NATIONAL COLLEGE FOR TEACHING AND LEADERSHIP AGENCY,09/09/2016,Grants,Delivery Directorate,LORETO GRAMMAR SCHOOL TS ACCOUNT,4000247013,6000.00,Grants to educational establishments or not for profit organisations including other businesses
Department for Education,NATIONAL COLLEGE FOR TEACHING AND LEADERSHIP AGENCY,09/09/2016,Grants,Delivery Directorate,SWISS COTTAGE SCHOOL,4000247015,40000.00,Grants to educational establishments or not for profit organisations including other businesses
Department for Education,NATIONAL COLLEGE FOR TEACHING AND LEADERSHIP AGENCY,09/09/2016,Grants,Delivery Directorate,SWISS COTTAGE SCHOOL,4000247015,6000.00,Grants to educational establishments or not for profit organisations including other businesses
Department for Education,NATIONAL COLLEGE FOR TEACHING AND LEADERSHIP AGENCY,09/09/2016,Grants,Delivery Directorate,TENDERING TECHNOLOGY COLLEGE TS ACCOUNT,4000247018,40000.00,Grants to educational establishments or not for profit organisations including other businesses
Department for Education,NATIONAL COLLEGE FOR TEACHING AND LEADERSHIP AGENCY,09/09/2016,Grants,Delivery Directorate,TENDERING TECHNOLOGY COLLEGE TS ACCOUNT,4000247018,6000.00,Grants to educational establishments or not for profit organisations including other businesses
Department for Education,NATIONAL COLLEGE FOR TEACHING AND LEADERSHIP AGENCY,09/09/2016,Grants,Delivery Directorate,RUSHEY MEAD SCHOOL,4000247020,900.00,"Grants paid to organisations including agencies, arms length bodies and educational establishments"
Department for Education,NATIONAL COLLEGE FOR TEACHING AND LEADERSHIP AGENCY,09/09/2016,Grants,Delivery Directorate,RUSHEY MEAD SCHOOL,4000247020,30000.00,Grants to educational establishments or not for profit organisations including other businesses
Department for Education,NATIONAL COLLEGE FOR TEACHING AND LEADERSHIP AGENCY,09/09/2016,Grants,Delivery Directorate,RUSHEY MEAD SCHOOL,4000247020,6000.00,Grants to educational establishments or not for profit organisations including other businesses
Department for Education,NATIONAL COLLEGE FOR TEACHING AND LEADERSHIP AGENCY,09/09/2016,Grants,Delivery Directorate,MULBERRY SCHOOL FOR GIRLS,4000247023,33781.00,Grants to educational establishments or not for profit organisations including other businesses
Department for Education,NATIONAL COLLEGE FOR TEACHING AND LEADERSHIP AGENCY,09/09/2016,Grants,Delivery Directorate,MULBERRY SCHOOL FOR GIRLS,4000247023,6000.00,Grants to educational establishments or not for profit organisations including other businesses
Department for Education,NATIONAL COLLEGE FOR TEACHING AND LEADERSHIP AGENCY,09/09/2016,Grants,Delivery Directorate,HABERDASHERS ASKES FEDERATION,4000247024,40000.00,Grants to educational establishments or not for profit organisations including other businesses
Department for Education,DEPARTMENT FOR EDUCATION,09/09/2016,Grants,Adoption and Children in Care Division,SOUTH GLOUCEST,4000247025,46462.50,Grants to local authorities / other establishments within aggregate external funding or aggregate exchequer grant
Department for Education,NATIONAL COLLEGE FOR TEACHING AND LEADERSHIP AGENCY,09/09/2016,Grants,Delivery Directorate,THE WROXHAM SCHOOL TS ACCOUNT,4000247027,40000.00,Grants to educational establishments or not for profit organisations including other businesses
Department for Education,NATIONAL COLLEGE FOR TEACHING AND LEADERSHIP AGENCY,09/09/2016,Grants,Delivery Directorate,THE WROXHAM SCHOOL TS ACCOUNT,4000247027,6000.00,Grants to educational establishments or not for profit organisations including other businesses
Department for Education,NATIONAL COLLEGE FOR TEACHING AND LEADERSHIP AGENCY,09/09/2016,Grants,Delivery Directorate,COMBERTON ACADEMY TRUST,4000247030,13850.00,Grants to educational establishments or not for profit organisations including other businesses
Department for Education,NATIONAL COLLEGE FOR TEACHING AND LEADERSHIP AGENCY,09/09/2016,Grants,Delivery Directorate,COMBERTON ACADEMY TRUST,4000247030,40000.00,Grants to educational establishments or not for profit organisations including other businesses
Department for Education,NATIONAL COLLEGE FOR TEACHING AND LEADERSHIP AGENCY,09/09/2016,Grants,Delivery Directorate,COMBERTON ACADEMY TRUST,4000247030,6000.00,Grants to educational establishments or not for profit organisations including other businesses
Department for Education,NATIONAL COLLEGE FOR TEACHING AND LEADERSHIP AGENCY,09/09/2016,Grants,Delivery Directorate,SPRING COMMON ACADEMY,4000247038,40000.00,Grants to educational establishments or not for profit organisations including other businesses
Department for Education,NATIONAL COLLEGE FOR TEACHING AND LEADERSHIP AGENCY,09/09/2016,Grants,Delivery Directorate,SPRING COMMON ACADEMY,4000247038,6000.00,Grants to educational establishments or not for profit organisations including other businesses
Department for Education,NATIONAL COLLEGE FOR TEACHING AND LEADERSHIP AGENCY,09/09/2016,Grants,Delivery Directorate,CARMEL COLLEGE A CATHOLIC ACADEMY,4000247040,94000.00,Grants to educational establishments or not for profit organisations including other businesses
Department for Education,NATIONAL COLLEGE FOR TEACHING AND LEADERSHIP AGENCY,09/09/2016,Grants,Delivery Directorate,CARMEL COLLEGE A CATHOLIC ACADEMY,4000247040,40000.00,Grants to educational establishments or not for profit organisations including other businesses
Department for Education,NATIONAL COLLEGE FOR TEACHING AND LEADERSHIP AGENCY,09/09/2016,Grants,Delivery Directorate,CARMEL COLLEGE A CATHOLIC ACADEMY,4000247040,6000.00,Grants to educational establishments or not for profit organisations including other businesses
Department for Education,NATIONAL COLLEGE FOR TEACHING AND LEADERSHIP AGENCY,09/09/2016,Grants,Delivery Directorate,COPTHORNE PRIMARY SCHOOL,4000247049,40000.00,Grants to educational establishments or not for profit organisations including other businesses
Department for Education,NATIONAL COLLEGE FOR TEACHING AND LEADERSHIP AGENCY,09/09/2016,Grants,Delivery Directorate,COPTHORNE PRIMARY SCHOOL,4000247049,2000.00,Grants to educational establishments or not for profit organisations including other businesses
Department for Education,NATIONAL COLLEGE FOR TEACHING AND LEADERSHIP AGENCY,09/09/2016,Grants,Delivery Directorate,COPTHORNE PRIMARY SCHOOL,4000247049,6000.00,Grants to educational establishments or not for profit organisations including other businesses
Department for Education,NATIONAL COLLEGE FOR TEACHING AND LEADERSHIP AGENCY,09/09/2016,Grants,Delivery Directorate,TAUHEEDUL ISLAM GIRLS HIGH SCHOOL & SIXTH FORM COLLEGE,4000247051,40000.00,Grants to educational establishments or not for profit organisations including other businesses
Department for Education,NATIONAL COLLEGE FOR TEACHING AND LEADERSHIP AGENCY,09/09/2016,Grants,Delivery Directorate,TAUHEEDUL ISLAM GIRLS HIGH SCHOOL & SIXTH FORM COLLEGE,4000247051,6000.00,Grants to educational establishments or not for profit organisations including other businesses
Department for Education,NATIONAL COLLEGE FOR TEACHING AND LEADERSHIP AGENCY,09/09/2016,Grants,Delivery Directorate,MAPLEFIELDS ACADEMY,4000247053,40000.00,Grants to educational establishments or not for profit organisations including other businesses
Department for Education,NATIONAL COLLEGE FOR TEACHING AND LEADERSHIP AGENCY,09/09/2016,Grants,Delivery Directorate,KELSALL PRIMARY SCHOOL TS ACCOUNT,4000247055,40000.00,Grants to educational establishments or not for profit organisations including other businesses
Department for Education,NATIONAL COLLEGE FOR TEACHING AND LEADERSHIP AGENCY,09/09/2016,Grants,Delivery Directorate,KELSALL PRIMARY SCHOOL TS ACCOUNT,4000247055,2000.00,Grants to educational establishments or not for profit organisations including other businesses
Department for Education,NATIONAL COLLEGE FOR TEACHING AND LEADERSHIP AGENCY,09/09/2016,Grants,Delivery Directorate,ST MARY & ST THOMAS CE PRIMARY SCHOOL,4000247056,12000.00,Grants to educational establishments or not for profit organisations including other businesses
Department for Education,NATIONAL COLLEGE FOR TEACHING AND LEADERSHIP AGENCY,09/09/2016,Grants,Delivery Directorate,ST MARY & ST THOMAS CE PRIMARY SCHOOL,4000247056,40000.00,Grants to educational establishments or not for profit organisations including other businesses
Department for Education,NATIONAL COLLEGE FOR TEACHING AND LEADERSHIP AGENCY,09/09/2016,Grants,Delivery Directorate,ST MARY & ST THOMAS CE PRIMARY SCHOOL,4000247056,6000.00,Grants to educational establishments or not for profit organisations including other businesses
Department for Education,NATIONAL COLLEGE FOR TEACHING AND LEADERSHIP AGENCY,09/09/2016,Grants,Delivery Directorate,BENTLEY WOOD HIGH SCHOOL TS ACCOUNT,4000247057,40000.00,Grants to educational establishments or not for profit organisations including other businesses
Department for Education,NATIONAL COLLEGE FOR TEACHING AND LEADERSHIP AGENCY,09/09/2016,Grants,Delivery Directorate,BENTLEY WOOD HIGH SCHOOL TS ACCOUNT,4000247057,6000.00,Grants to educational establishments or not for profit organisations including other businesses
Department for Education,NATIONAL COLLEGE FOR TEACHING AND LEADERSHIP AGENCY,09/09/2016,Grants,Delivery Directorate,CHURCHILL COMMUNITY COLLEGE,4000247063,50000.00,Grants to educational establishments or not for profit organisations including other businesses
Department for Education,NATIONAL COLLEGE FOR TEACHING AND LEADERSHIP AGENCY,09/09/2016,Grants,Delivery Directorate,CHURCHILL COMMUNITY COLLEGE,4000247063,2000.00,Grants to educational establishments or not for profit organisations including other businesses
Department for Education,NATIONAL COLLEGE FOR TEACHING AND LEADERSHIP AGENCY,09/09/2016,Grants,Delivery Directorate,CHURCHILL COMMUNITY COLLEGE,4000247063,6000.00,Grants to educational establishments or not for profit organisations including other businesses
Department for Education,NATIONAL COLLEGE FOR TEACHING AND LEADERSHIP AGENCY,09/09/2016,Grants,Delivery Directorate,PRINCE BISHOPS COMMUNITY PRIMARY SCHOOL,4000247064,40000.00,Grants to educational establishments or not for profit organisations including other businesses
Department for Education,NATIONAL COLLEGE FOR TEACHING AND LEADERSHIP AGENCY,09/09/2016,Grants,Delivery Directorate,PRINCE BISHOPS COMMUNITY PRIMARY SCHOOL,4000247064,2000.00,Grants to educational establishments or not for profit organisations including other businesses
Department for Education,NATIONAL COLLEGE FOR TEACHING AND LEADERSHIP AGENCY,09/09/2016,Grants,Delivery Directorate,PRINCE BISHOPS COMMUNITY PRIMARY SCHOOL,4000247064,6000.00,Grants to educational establishments or not for profit organisations including other businesses
Department for Education,NATIONAL COLLEGE FOR TEACHING AND LEADERSHIP AGENCY,09/09/2016,Grants,Delivery Directorate,THE PENNINE TEACHING SCHOOL ALLIANCE,4000247066,35000.00,Grants to educational establishments or not for profit organisations including other businesses
Department for Education,NATIONAL COLLEGE FOR TEACHING AND LEADERSHIP AGENCY,09/09/2016,Grants,Delivery Directorate,THE PENNINE TEACHING SCHOOL ALLIANCE,4000247066,6000.00,Grants to educational establishments or not for profit organisations including other businesses
Department for Education,NATIONAL COLLEGE FOR TEACHING AND LEADERSHIP AGENCY,09/09/2016,Grants,Delivery Directorate,BUSHY LEAZE EARLY YEARS CENTRE,4000247067,50000.00,Grants to educational establishments or not for profit organisations including other businesses
Department for Education,NATIONAL COLLEGE FOR TEACHING AND LEADERSHIP AGENCY,09/09/2016,Grants,Delivery Directorate,BUSHY LEAZE EARLY YEARS CENTRE,4000247067,6000.00,Grants to educational establishments or not for profit organisations including other businesses
Department for Education,NATIONAL COLLEGE FOR TEACHING AND LEADERSHIP AGENCY,09/09/2016,Grants,Delivery Directorate,VAUXHALL SCHOOL,4000247071,8000.00,Grants to educational establishments or not for profit organisations including other businesses
Department for Education,NATIONAL COLLEGE FOR TEACHING AND LEADERSHIP AGENCY,09/09/2016,Grants,Delivery Directorate,VAUXHALL SCHOOL,4000247071,40000.00,Grants to educational establishments or not for profit organisations including other businesses
Department for Education,NATIONAL COLLEGE FOR TEACHING AND LEADERSHIP AGENCY,09/09/2016,Grants,Delivery Directorate,VAUXHALL SCHOOL,4000247071,6000.00,Grants to educational establishments or not for profit organisations including other businesses
Department for Education,NATIONAL COLLEGE FOR TEACHING AND LEADERSHIP AGENCY,09/09/2016,Grants,Delivery Directorate,DIVERSE ACADEMIES TRUST,4000247080,40000.00,Grants to educational establishments or not for profit organisations including other businesses
Department for Education,NATIONAL COLLEGE FOR TEACHING AND LEADERSHIP AGENCY,09/09/2016,Grants,Delivery Directorate,DIVERSE ACADEMIES TRUST,4000247080,6000.00,Grants to educational establishments or not for profit organisations including other businesses
Department for Education,NATIONAL COLLEGE FOR TEACHING AND LEADERSHIP AGENCY,09/09/2016,Grants,Delivery Directorate,NEWICK CE PRIMARY SCHOOL,4000247083,40000.00,Grants to educational establishments or not for profit organisations including other businesses
Department for Education,NATIONAL COLLEGE FOR TEACHING AND LEADERSHIP AGENCY,09/09/2016,Grants,Delivery Directorate,NEWICK CE PRIMARY SCHOOL,4000247083,6000.00,Grants to educational establishments or not for profit organisations including other businesses
Department for Education,NATIONAL COLLEGE FOR TEACHING AND LEADERSHIP AGENCY,09/09/2016,Grants,Delivery Directorate,CHRIST CHURCH COFE AIDED PRIMARY SCHOOL,4000247086,40000.00,Grants to educational establishments or not for profit organisations including other businesses
Department for Education,NATIONAL COLLEGE FOR TEACHING AND LEADERSHIP AGENCY,09/09/2016,Grants,Delivery Directorate,CHRIST CHURCH COFE AIDED PRIMARY SCHOOL,4000247086,1870.00,Grants to educational establishments or not for profit organisations including other businesses
Department for Education,NATIONAL COLLEGE FOR TEACHING AND LEADERSHIP AGENCY,09/09/2016,Grants,Delivery Directorate,CHRIST CHURCH COFE AIDED PRIMARY SCHOOL,4000247086,6000.00,Grants to educational establishments or not for profit organisations including other businesses
Department for Education,NATIONAL COLLEGE FOR TEACHING AND LEADERSHIP AGENCY,09/09/2016,Grants,Delivery Directorate,KINGS NORTON NURSERY SCHOOL,4000247087,50000.00,Grants to educational establishments or not for profit organisations including other businesses
Department for Education,NATIONAL COLLEGE FOR TEACHING AND LEADERSHIP AGENCY,09/09/2016,Grants,Delivery Directorate,KINGS NORTON NURSERY SCHOOL,4000247087,6000.00,Grants to educational establishments or not for profit organisations including other businesses
Department for Education,NATIONAL COLLEGE FOR TEACHING AND LEADERSHIP AGENCY,09/09/2016,Grants,Delivery Directorate,MAIDEN ERLEGH SCHOOL,4000247101,40000.00,Grants to educational establishments or not for profit organisations including other businesses
Department for Education,NATIONAL COLLEGE FOR TEACHING AND LEADERSHIP AGENCY,09/09/2016,Grants,Delivery Directorate,CRANFORD COMMUNITY COLLEGE,4000247106,9712.00,Grants to educational establishments or not for profit organisations including other businesses
Department for Education,NATIONAL COLLEGE FOR TEACHING AND LEADERSHIP AGENCY,09/09/2016,Grants,Delivery Directorate,CRANFORD COMMUNITY COLLEGE,4000247106,40000.00,Grants to educational establishments or not for profit organisations including other businesses
Department for Education,NATIONAL COLLEGE FOR TEACHING AND LEADERSHIP AGENCY,09/09/2016,Grants,Delivery Directorate,CRANFORD COMMUNITY COLLEGE,4000247106,6000.00,Grants to educational establishments or not for profit organisations including other businesses
Department for Education,DEPARTMENT FOR EDUCATION,09/09/2016,Professional Services Other,Strategic Analysis and Research Group,NATIONAL CENTRE FOR SOCIAL RESEARCH,4000247100,39275.00,Research and evaluation activities
Department for Education,DEPARTMENT FOR EDUCATION,09/09/2016,Professional Services Consultancy and Contingent Labour,Information Technology Group,PRO CEDURE LTD,4000246963,27360.00,Costs related to temporary workers
Department for Education,DEPARTMENT FOR EDUCATION,09/09/2016,Professional Services Other,"Children's Services, Equalities and Communication Safeguarding Group",TNS BMRB,4000247008,29890.20,Research and evaluation activities
Department for Education,DEPARTMENT FOR EDUCATION,09/09/2016,Professional Services Other,Strategic Analysis and Research Group,TNS BMRB,4000247008,10000.00,Research and evaluation activities
Department for Education,DEPARTMENT FOR EDUCATION,09/09/2016,Miscellaneous Expenditure,Finance and Commercial Group,N/A � Risk Protection Arrangement (RPA) member,005921-001226-RB-01,125000.00,Property claim paid out to an academy trust by Gallagher Bassett on behalf of the Department as part of the Department's Risk Protection Arrangement (RPA).
Department for Education,DEPARTMENT FOR EDUCATION,09/09/2016,Miscellaneous Expenditure,Finance and Commercial Group,N/A � Risk Protection Arrangement (RPA) member,005921-001226-RC-01,75000.00,Property claim paid out to an academy trust by Gallagher Bassett on behalf of the Department as part of the Department's Risk Protection Arrangement (RPA).
Department for Education,DEPARTMENT FOR EDUCATION,09/09/2016,Miscellaneous Expenditure,Finance and Commercial Group,N/A � Risk Protection Arrangement (RPA) member,005921-001226-TE-01,150000.00,Property claim paid out to an academy trust by Gallagher Bassett on behalf of the Department as part of the Department's Risk Protection Arrangement (RPA).
Department for Education,DEPARTMENT FOR EDUCATION,12/09/2016,Grants,"Assessment, Curriculum and General Qualifications Group",DEPARTMENT FOR CULTURE MEDIA & SPORT,2100110,19158560.25,Current grant funding to other government departments for DfE's contribution to jointly funded programmes 
Department for Education,DEPARTMENT FOR EDUCATION,12/09/2016,Grants,"Assessment, Curriculum and General Qualifications Group",DEPARTMENT FOR CULTURE MEDIA & SPORT,2100110,1021880.00,Current grant funding to other government departments for DfE's contribution to jointly funded programmes 
Department for Education,DEPARTMENT FOR EDUCATION,12/09/2016,Professional Services Consultancy and Contingent Labour,Information Technology Group,METHODS PROFESSIONAL SERVICES LTD,4000247110,20154.12,Costs related to temporary workers
Department for Education,NATIONAL COLLEGE FOR TEACHING AND LEADERSHIP AGENCY,12/09/2016,Professional Services Other,Operations Directorate,IPSOS MORI,4000247111,24123.00,Research and evaluation activities
Department for Education,DEPARTMENT FOR EDUCATION,12/09/2016,Grants,Adoption and Children in Care Division,THE SHARE FOUNDATION 3RD PARTY TRUST,4000247118,44600.00,Grants to educational establishments or not for profit organisations including other businesses
Department for Education,DEPARTMENT FOR EDUCATION,12/09/2016,Grants,Academies Regional Delivery Group,AURIOL JUNIOR SCHOOL,4000247123,25000.00,Grants to educational establishments or not for profit organisations including other businesses
Department for Education,DEPARTMENT FOR EDUCATION,12/09/2016,Professional Services Consultancy and Contingent Labour,Information Technology Group,METHODS PROFESSIONAL SERVICES LTD,4000247110,19200.00,Costs related to temporary workers
Department for Education,DEPARTMENT FOR EDUCATION,12/09/2016,Grants,Academies Regional Delivery Group,FLYING HIGH TRUST,4000247127,40000.00,Grants to educational establishments or not for profit organisations including other businesses
Department for Education,DEPARTMENT FOR EDUCATION,12/09/2016,Grants,Academies Regional Delivery Group,OUTWOOD GRANGE ACADEMIES TRUST,4000247138,80000.00,Grants to educational establishments or not for profit organisations including other businesses
Department for Education,DEPARTMENT FOR EDUCATION,12/09/2016,Grants,Adoption and Children in Care Division,SOUTH GLOUCEST,4000247144,49026.00,Grants to local authorities / other establishments within aggregate external funding or aggregate exchequer grant
Department for Education,DEPARTMENT FOR EDUCATION,12/09/2016,Grants,Academies Regional Delivery Group,CAMBRIDGE MERIDIAN ACADEMIES TRUST,4000247156,686000.00,Grants to educational establishments or not for profit organisations including other businesses
Department for Education,DEPARTMENT FOR EDUCATION,12/09/2016,Grants,Academies Regional Delivery Group,THE QUEEN ANNE ROYAL FREE CE FIRST SCHOOL,4000247161,25000.00,Grants to educational establishments or not for profit organisations including other businesses
Department for Education,DEPARTMENT FOR EDUCATION,12/09/2016,Professional Services Consultancy and Contingent Labour,Information Technology Group,METHODS PROFESSIONAL SERVICES LTD,4000247110,34354.25,Costs related to temporary workers
Department for Education,DEPARTMENT FOR EDUCATION,12/09/2016,Professional Services Consultancy and Contingent Labour,Systems and Accountability Group,METHODS PROFESSIONAL SERVICES LTD,4000247110,11880.00,Costs related to temporary workers
Department for Education,DEPARTMENT FOR EDUCATION,12/09/2016,Professional Services Other,Strategic Analysis and Research Group,NATIONAL FOUNDATION FOR EDUCATIONAL RESEARCH,4000247119,94003.00,Research and evaluation activities
Department for Education,DEPARTMENT FOR EDUCATION,12/09/2016,Communications,Information Technology Group,TRUSTMARQUE SOLUTIONS LTD,4000247133,67188.00,Marketing services - printing and publication
Department for Education,DEPARTMENT FOR EDUCATION,12/09/2016,ICT,Participation and Traineeships Division,CAREERVISION LTD,4000247137,71342.00,ICT Services - hardware maintenance and support
Department for Education,DEPARTMENT FOR EDUCATION,12/09/2016,Professional Services Consultancy and Contingent Labour,Information Technology Group,RUSSAM GMS LTD,4000247126,26197.50,Costs related to temporary workers
Department for Education,DEPARTMENT FOR EDUCATION,12/09/2016,ICT,Information Technology Group,TRUSTMARQUE SOLUTIONS LTD,4000247133,18804.00,ICT Software
Department for Education,DEPARTMENT FOR EDUCATION,13/09/2016,ICT,Information Technology Group,EDUSERV,4000247227,-6494.17,ICT Services
Department for Education,DEPARTMENT FOR EDUCATION,13/09/2016,ICT,Information Technology Group,EDUSERV,4000247227,135000.00,ICT Services
Department for Education,DEPARTMENT FOR EDUCATION,13/09/2016,Grants,System Reform Group,NORTH YORKSHIRE COUNTY COUNCIL,4000247177,26233.00,Grants to local authorities / other establishments within aggregate external funding or aggregate exchequer grant
Department for Education,DEPARTMENT FOR EDUCATION,13/09/2016,Grants,System Reform Group,NORFOLK COUNTY COUNCIL,4000247199,58008.00,Grants to local authorities / other establishments within aggregate external funding or aggregate exchequer grant
Department for Education,DEPARTMENT FOR EDUCATION,13/09/2016,Grants,System Reform Group,SOMERSET COUNTY COUNCIL,4000247201,29842.00,Grants to local authorities / other establishments within aggregate external funding or aggregate exchequer grant
Department for Education,DEPARTMENT FOR EDUCATION,13/09/2016,Grants,System Reform Group,NORTHAMPTONSHIRE COUNTY COUNCIL,4000247211,29933.00,Grants to local authorities / other establishments within aggregate external funding or aggregate exchequer grant
Department for Education,DEPARTMENT FOR EDUCATION,13/09/2016,Grants,System Reform Group,LINCOLNSHIRE COUNTY COUNCIL,4000247212,55150.00,Grants to local authorities / other establishments within aggregate external funding or aggregate exchequer grant
Department for Education,DEPARTMENT FOR EDUCATION,13/09/2016,Grants,System Reform Group,GLOUCESTERSHIRE COUNTY COUNCIL,4000247218,35142.00,Grants to local authorities / other establishments within aggregate external funding or aggregate exchequer grant
Department for Education,DEPARTMENT FOR EDUCATION,13/09/2016,Grants,System Reform Group,CORNWALL COUNCIL,4000247220,42792.00,Grants to local authorities / other establishments within aggregate external funding or aggregate exchequer grant
Department for Education,DEPARTMENT FOR EDUCATION,13/09/2016,Grants,System Reform Group,NOTTINGHAMSHIRE COUNTY COUNCIL,4000247231,32875.00,Grants to local authorities / other establishments within aggregate external funding or aggregate exchequer grant
Department for Education,DEPARTMENT FOR EDUCATION,13/09/2016,Grants,System Reform Group,LANCASHIRE COUNTY COUNCIL,4000247240,50442.00,Grants to local authorities / other establishments within aggregate external funding or aggregate exchequer grant
Department for Education,DEPARTMENT FOR EDUCATION,13/09/2016,Grants,System Reform Group,KENT COUNTY COUNCIL,4000247242,104167.00,Grants to local authorities / other establishments within aggregate external funding or aggregate exchequer grant
Department for Education,DEPARTMENT FOR EDUCATION,13/09/2016,Programme costs,Finance and Commercial Group,FUTURE LEADERS LTD,4000247244,50889.00,Funding to deliver policies (excluding consultancy) paid to third parties via a service delivery contract
Department for Education,NATIONAL COLLEGE FOR TEACHING AND LEADERSHIP AGENCY,13/09/2016,Programme costs,Delivery Directorate,FUTURE LEADERS LTD,4000247244,369111.00,Funding to deliver policies (excluding consultancy) paid to third parties via a service delivery contract
Department for Education,DEPARTMENT FOR EDUCATION,13/09/2016,Grants,System Reform Group,WORCESTERSHIRE COUNTY COUNCIL,4000247249,27075.00,Grants to local authorities / other establishments within aggregate external funding or aggregate exchequer grant
Department for Education,DEPARTMENT FOR EDUCATION,13/09/2016,Grants,System Reform Group,ESSEX COUNTY COUNCIL,4000247253,50025.00,Grants to local authorities / other establishments within aggregate external funding or aggregate exchequer grant
Department for Education,DEPARTMENT FOR EDUCATION,13/09/2016,Grants,System Reform Group,DEVON COUNTY COUNCIL,4000247265,40775.00,Grants to local authorities / other establishments within aggregate external funding or aggregate exchequer grant
Department for Education,DEPARTMENT FOR EDUCATION,13/09/2016,Grants,System Reform Group,SUFFOLK COUNTY COUNCIL,4000247274,42375.00,Grants to local authorities / other establishments within aggregate external funding or aggregate exchequer grant
Department for Education,DEPARTMENT FOR EDUCATION,13/09/2016,Grants,System Reform Group,CAMBRIDGESHIRE COUNTY COUNCIL,4000247277,38842.00,Grants to local authorities / other establishments within aggregate external funding or aggregate exchequer grant
Department for Education,DEPARTMENT FOR EDUCATION,13/09/2016,Grants,Teachers and Teaching Group,COLLEGE OF TEACHING LTD,4000247280,85121.07,Grants to educational establishments or not for profit organisations including other businesses
Department for Education,DEPARTMENT FOR EDUCATION,13/09/2016,Grants,System Reform Group,WEST SUSSEX COUNTY COUNCIL,4000247283,32367.00,Grants to local authorities / other establishments within aggregate external funding or aggregate exchequer grant
Department for Education,DEPARTMENT FOR EDUCATION,13/09/2016,Grants,"Children's Services, Equalities and Communication Safeguarding Group",DONCASTER CHILDRENS TRUST,4000247295,119581.00,Grants to educational establishments or not for profit organisations including other businesses
Department for Education,DEPARTMENT FOR EDUCATION,13/09/2016,Grants,System Reform Group,LEICESTERSHIRE COUNTY COUNCIL,4000247331,29592.00,Grants to local authorities / other establishments within aggregate external funding or aggregate exchequer grant
Department for Education,DEPARTMENT FOR EDUCATION,13/09/2016,Grants,System Reform Group,HAMPSHIRE COUNTY COUNCIL,4000247334,33458.00,Grants to local authorities / other establishments within aggregate external funding or aggregate exchequer grant
Department for Education,DEPARTMENT FOR EDUCATION,13/09/2016,Grants,System Reform Group,EAST SUSSEX COUNTY COUNCIL,4000247336,40608.00,Grants to local authorities / other establishments within aggregate external funding or aggregate exchequer grant
Department for Education,DEPARTMENT FOR EDUCATION,13/09/2016,Programme costs,Adoption and Children in Care Division,DELOITTE,4000247342,156885.08,Funding to deliver policies (excluding consultancy) paid to third parties via a service delivery contract
Department for Education,DEPARTMENT FOR EDUCATION,13/09/2016,Grants,System Reform Group,DURHAM COUNTY COUNCIL,4000247348,81800.00,Grants to local authorities / other establishments within aggregate external funding or aggregate exchequer grant
Department for Education,DEPARTMENT FOR EDUCATION,13/09/2016,Grants,System Reform Group,DORSET COUNTY COUNCIL,4000247360,31783.00,Grants to local authorities / other establishments within aggregate external funding or aggregate exchequer grant
Department for Education,DEPARTMENT FOR EDUCATION,13/09/2016,Grants,System Reform Group,DERBYSHIRE COUNTY COUNCIL,4000247362,66250.00,Grants to local authorities / other establishments within aggregate external funding or aggregate exchequer grant
Department for Education,DEPARTMENT FOR EDUCATION,13/09/2016,Professional Services Consultancy and Contingent Labour,Information Technology Group,METHODS PROFESSIONAL SERVICES LTD,4000247281,45936.00,Costs related to temporary workers
Department for Education,DEPARTMENT FOR EDUCATION,13/09/2016,Professional Services Consultancy and Contingent Labour,Information Technology Group,METHODS PROFESSIONAL SERVICES LTD,4000247281,23947.08,Costs related to temporary workers
Department for Education,DEPARTMENT FOR EDUCATION,14/09/2016,Communications,Ministerial and Public Communications Group,PROLOG,4000247398,53823.66,Digital media and web production
Department for Education,DEPARTMENT FOR EDUCATION,14/09/2016,Professional Services Consultancy and Contingent Labour,Information Technology Group,METHODS PROFESSIONAL SERVICES LTD,4000247369,30856.80,Costs related to temporary workers
Department for Education,DEPARTMENT FOR EDUCATION,14/09/2016,Programme costs,Children's Services Special Educational Needs Group,NATIONAL CHILDRENS BUREAU,4000247384,95334.00,Funding to deliver policies (excluding consultancy) paid to third parties via a service delivery contract
Department for Education,DEPARTMENT FOR EDUCATION,14/09/2016,Facilities,Property Asset Management Group,BAM CONSTRUCTION LTD,4000247410,1794129.60,Programme management for construction work
Department for Education,DEPARTMENT FOR EDUCATION,14/09/2016,Professional Services Consultancy and Contingent Labour,Systems and Accountability Group,METHODS PROFESSIONAL SERVICES LTD,4000247369,11712.00,Costs related to temporary workers
Department for Education,DEPARTMENT FOR EDUCATION,14/09/2016,Professional Services Consultancy and Contingent Labour,Information Technology Group,PROMOTIONAL LOGISTICS LTD,4000247381,43946.40,Costs related to temporary workers
Department for Education,DEPARTMENT FOR EDUCATION,15/09/2016,ICT,Property Asset Management Group,BRITISH TELECOMMUNICATIONS PLC,4000247434,2171.49,Telecoms facilities and services - telecom rentals
Department for Education,DEPARTMENT FOR EDUCATION,15/09/2016,Grants,Academies Regional Delivery Group,THE COMMUNITY ACADEMIES TRUST,4000247426,150000.00,Grants to educational establishments or not for profit organisations including other businesses
Department for Education,DEPARTMENT FOR EDUCATION,15/09/2016,Programme costs,"Assessment, Curriculum and General Qualifications Group",IOP INSTITUTE OF PHYSICS,4000247429,150852.51,Funding to deliver policies (excluding consultancy) paid to third parties via a service delivery contract
Department for Education,DEPARTMENT FOR EDUCATION,15/09/2016,Programme costs,"Assessment, Curriculum and General Qualifications Group",MATHEMATICS IN EDUCATION & INDUSTRY,4000247431,251000.00,Funding to deliver policies (excluding consultancy) paid to third parties via a service delivery contract
Department for Education,DEPARTMENT FOR EDUCATION,15/09/2016,Programme costs,Teachers and Teaching Group,GOVERNMENT ACTUARYS DEPARTMENT,4000247438,38992.55,Funding to deliver policies (excluding consultancy) paid to third parties via a service delivery contract
Department for Education,DEPARTMENT FOR EDUCATION,15/09/2016,Programme costs,Adoption and Children in Care Division,MOTT MACDONALD LTD,4000247451,91203.26,Funding to deliver policies (excluding consultancy) paid to third parties via a service delivery contract
Department for Education,DEPARTMENT FOR EDUCATION,15/09/2016,Grants,Academies Regional Delivery Group,CLEWER GREEN CE FIRST SCHOOL,4000247471,25000.00,Grants to educational establishments or not for profit organisations including other businesses
Department for Education,DEPARTMENT FOR EDUCATION,15/09/2016,Grants,Academies Regional Delivery Group,RANSKILL PRIMARY SCHOOL,4000247475,25000.00,Grants to educational establishments or not for profit organisations including other businesses
Department for Education,DEPARTMENT FOR EDUCATION,15/09/2016,Grants,Academies Regional Delivery Group,GLEBELANDS PRIMARY SCHOOL,4000247476,25000.00,Grants to educational establishments or not for profit organisations including other businesses
Department for Education,DEPARTMENT FOR EDUCATION,15/09/2016,Grants,Academies Regional Delivery Group,THE STEP ACADEMY TRUST,4000247486,50000.00,Grants to educational establishments or not for profit organisations including other businesses
Department for Education,DEPARTMENT FOR EDUCATION,15/09/2016,Programme costs,"Assessment, Curriculum and General Qualifications Group",EDUCATION DEVELOPMENT TRUST,4000247490,78756.00,Funding to deliver policies (excluding consultancy) paid to third parties via a service delivery contract
Department for Education,DEPARTMENT FOR EDUCATION,15/09/2016,Programme costs,"Assessment, Curriculum and General Qualifications Group",STEM LEARNING LTD,4000247491,233110.44,Funding to deliver policies (excluding consultancy) paid to third parties via a service delivery contract
Department for Education,DEPARTMENT FOR EDUCATION,15/09/2016,Grants,Academies Regional Delivery Group,GLF Schools,4000247496,25000.00,Grants to educational establishments or not for profit organisations including other businesses
Department for Education,DEPARTMENT FOR EDUCATION,15/09/2016,Grants,Academies Regional Delivery Group,ST EDMUNDSBURY & IPSWICH DIOCESAN ACADEMY TRUST,4000247498,25000.00,Grants to educational establishments or not for profit organisations including other businesses
Department for Education,DEPARTMENT FOR EDUCATION,15/09/2016,Grants,Adoption and Children in Care Division,THE SHARE FOUNDATION 3RD PARTY TRUST,4000247501,45800.00,Grants to educational establishments or not for profit organisations including other businesses
Department for Education,DEPARTMENT FOR EDUCATION,15/09/2016,ICT,Information Technology Group,BRITISH TELECOMMUNICATIONS PLC,4000247434,80038.68,Telecoms facilities and services - telecom rentals
Department for Education,DEPARTMENT FOR EDUCATION,16/09/2016,Professional Services Consultancy and Contingent Labour,Information Technology Group,FDM GROUP LTD,4000247530,12960.00,Costs related to temporary workers
Department for Education,DEPARTMENT FOR EDUCATION,16/09/2016,Professional Services Consultancy and Contingent Labour,Information Technology Group,FDM GROUP LTD,4000247530,12180.00,Costs related to temporary workers
Department for Education,DEPARTMENT FOR EDUCATION,16/09/2016,Professional Services Consultancy and Contingent Labour,Information Technology Group,FDM GROUP LTD,4000247530,7687.86,Costs related to temporary workers
Department for Education,NATIONAL COLLEGE FOR TEACHING AND LEADERSHIP AGENCY,16/09/2016,Professional Services Other,Operations Directorate,BROWNE JACOBSON SOLICITORS,4000247542,43119.20,"Fees / expenses of professionals, for example to implement advice or changes"
Department for Education,DEPARTMENT FOR EDUCATION,16/09/2016,Professional Services Consultancy and Contingent Labour,Adoption and Children in Care Division,METHODS CONSULTING LTD,4000247503,33393.60,"Advisory services including fees, travel and expenses"
Department for Education,DEPARTMENT FOR EDUCATION,16/09/2016,Travel,Finance and Commercial Group,REDFERN TRAVEL LTD,4000247527,371286.86,"Staff business travel including air, coach, ferry, rail, taxi and car hire"
Department for Education,DEPARTMENT FOR EDUCATION,16/09/2016,Programme costs,"Assessment, Curriculum and General Qualifications Group",STEM LEARNING LTD,4000247528,65276.74,Funding to deliver policies (excluding consultancy) paid to third parties via a service delivery contract
Department for Education,DEPARTMENT FOR EDUCATION,16/09/2016,Grants,"Children's Services, Equalities and Communication Safeguarding Group",CORAM CLC,4000247531,25504.08,Grants to educational establishments or not for profit organisations including other businesses
Department for Education,STANDARDS AND TESTING AGENCY,16/09/2016,Office Solutions,Test Operations Division,PARCELFORCE WORLDWIDE,4000247544,53388.49,Post and courier services
Department for Education,STANDARDS AND TESTING AGENCY,16/09/2016,Office Solutions,Test Operations Division,PARCELFORCE WORLDWIDE,4000247544,109467.54,Post and courier services
Department for Education,STANDARDS AND TESTING AGENCY,16/09/2016,Office Solutions,Test Operations Division,PARCELFORCE WORLDWIDE,4000247544,120721.44,Post and courier services
Department for Education,DEPARTMENT FOR EDUCATION,16/09/2016,Professional Services Consultancy and Contingent Labour,Finance and Commercial Group,HM TREASURY,4000247551,401262.50,"Fees / expenses of professionals such as auditors, accountants, lawyers, etc. engaged to provide advice or opinion on how to affect something"
Department for Education,DEPARTMENT FOR EDUCATION,16/09/2016,Grants,"Children's Services, Equalities and Communication Safeguarding Group",SLOUGH BOROUGH COUNCIL,4000247555,241153.00,Grants to local authorities / other establishments within aggregate external funding or aggregate exchequer grant
Department for Education,NATIONAL COLLEGE FOR TEACHING AND LEADERSHIP AGENCY,16/09/2016,Programme costs,Delivery Directorate,FUTURE LEADERS CHARITABLE TRUST SCHOLARSHIPS,4000247560,112382.02,Funding to deliver policies (excluding consultancy) paid to third parties via a service delivery contract
Department for Education,DEPARTMENT FOR EDUCATION,16/09/2016,Grants,Free School Group,NEW SCHOOLS NETWORK,4000247565,164063.06,Grants to educational establishments or not for profit organisations including other businesses
Department for Education,NATIONAL COLLEGE FOR TEACHING AND LEADERSHIP AGENCY,16/09/2016,Professional Services Other,Delivery Directorate,TELEPERFORMANCE LTD,4000247539,424048.46,"Fees / expenses of professionals, for example to implement advice or changes"
Department for Education,DEPARTMENT FOR EDUCATION,19/09/2016,Grants,"Children's Services, Equalities and Communication Safeguarding Group",OFFICE OF THE CHILDRENS COMMISSIONER,2100127,120000.00,Current grants paid to organisations including arms length bodies and educational establishments
Department for Education,NATIONAL COLLEGE FOR TEACHING AND LEADERSHIP AGENCY,19/09/2016,Professional Services Consultancy and Contingent Labour,Delivery Directorate,CARAT,4000247573,-692.41,Costs related to temporary workers
Department for Education,DEPARTMENT FOR EDUCATION,19/09/2016,Professional Services Other,Property Asset Management Group,METHODS PROFESSIONAL SERVICES LTD,4000247667,10416.24,"Fees / expenses of professionals, for example to implement advice or changes"
Department for Education,DEPARTMENT FOR EDUCATION,19/09/2016,ICT,Systems and Accountability Group,PROLOG,4000247599,5182.06,ICT Services
Department for Education,DEPARTMENT FOR EDUCATION,19/09/2016,ICT,Systems and Accountability Group,PROLOG,4000247599,130326.38,ICT Services
Department for Education,DEPARTMENT FOR EDUCATION,19/09/2016,Communications,"Children's Services, Equalities and Communication Safeguarding Group",CARAT,4000247573,-4661.94,Marketing services
Department for Education,NATIONAL COLLEGE FOR TEACHING AND LEADERSHIP AGENCY,19/09/2016,Professional Services Other,Operations Directorate,NABARRO LLP,4000247752,108483.90,"Fees / expenses of professionals, for example to implement advice or changes"
Department for Education,DEPARTMENT FOR EDUCATION,19/09/2016,Professional Services Consultancy and Contingent Labour,Information Technology Group,METHODS PROFESSIONAL SERVICES LTD,4000247667,24807.22,Costs related to temporary workers
Department for Education,NATIONAL COLLEGE FOR TEACHING AND LEADERSHIP AGENCY,19/09/2016,Communications,Operations Directorate,CARAT,4000247573,56688.45,Marketing services
Department for Education,NATIONAL COLLEGE FOR TEACHING AND LEADERSHIP AGENCY,19/09/2016,Communications,Operations Directorate,CARAT,4000247573,1514.60,Marketing services
Department for Education,NATIONAL COLLEGE FOR TEACHING AND LEADERSHIP AGENCY,19/09/2016,Communications,Delivery Directorate,CARAT,4000247573,30337.22,Marketing services
Department for Education,NATIONAL COLLEGE FOR TEACHING AND LEADERSHIP AGENCY,19/09/2016,Communications,Delivery Directorate,CARAT,4000247573,5561.48,Marketing services
Department for Education,NATIONAL COLLEGE FOR TEACHING AND LEADERSHIP AGENCY,19/09/2016,Grants,Delivery Directorate,SHIREMOOR PRIMARY,4000247578,40000.00,Grants to educational establishments or not for profit organisations including other businesses
Department for Education,NATIONAL COLLEGE FOR TEACHING AND LEADERSHIP AGENCY,19/09/2016,Grants,Delivery Directorate,RUNSHAW COLLEGE,4000247583,40000.00,Grants to educational establishments or not for profit organisations including other businesses
Department for Education,NATIONAL COLLEGE FOR TEACHING AND LEADERSHIP AGENCY,19/09/2016,Grants,Delivery Directorate,ST THOMAS MORE CATHOLIC SCHOOL,4000247586,40000.00,Grants to educational establishments or not for profit organisations including other businesses
Department for Education,NATIONAL COLLEGE FOR TEACHING AND LEADERSHIP AGENCY,19/09/2016,Grants,Delivery Directorate,ST THOMAS MORE CATHOLIC SCHOOL,4000247586,6000.00,Grants to educational establishments or not for profit organisations including other businesses
Department for Education,NATIONAL COLLEGE FOR TEACHING AND LEADERSHIP AGENCY,19/09/2016,Grants,Delivery Directorate,HIGHLANDS SCHOOL TS ACCOUNT,4000247596,40000.00,Grants to educational establishments or not for profit organisations including other businesses
Department for Education,NATIONAL COLLEGE FOR TEACHING AND LEADERSHIP AGENCY,19/09/2016,Grants,Delivery Directorate,HIGHLANDS SCHOOL TS ACCOUNT,4000247596,2000.00,Grants to educational establishments or not for profit organisations including other businesses
Department for Education,NATIONAL COLLEGE FOR TEACHING AND LEADERSHIP AGENCY,19/09/2016,Grants,Delivery Directorate,HIGHLANDS SCHOOL TS ACCOUNT,4000247596,6000.00,Grants to educational establishments or not for profit organisations including other businesses
Department for Education,NATIONAL COLLEGE FOR TEACHING AND LEADERSHIP AGENCY,19/09/2016,Grants,Delivery Directorate,SOUTH HUNSLEY SCHOOL,4000247601,21620.00,Grants to educational establishments or not for profit organisations including other businesses
Department for Education,NATIONAL COLLEGE FOR TEACHING AND LEADERSHIP AGENCY,19/09/2016,Grants,Delivery Directorate,SOUTH HUNSLEY SCHOOL,4000247601,40000.00,Grants to educational establishments or not for profit organisations including other businesses
Department for Education,NATIONAL COLLEGE FOR TEACHING AND LEADERSHIP AGENCY,19/09/2016,Grants,Delivery Directorate,SOUTH HUNSLEY SCHOOL,4000247601,6000.00,Grants to educational establishments or not for profit organisations including other businesses
Department for Education,NATIONAL COLLEGE FOR TEACHING AND LEADERSHIP AGENCY,19/09/2016,Grants,Delivery Directorate,PARBOLD DOUGLAS ACADEMY,4000247611,40000.00,Grants to educational establishments or not for profit organisations including other businesses
Department for Education,NATIONAL COLLEGE FOR TEACHING AND LEADERSHIP AGENCY,19/09/2016,Programme costs,Delivery Directorate,UNIVERSITY OF BRIGHTON,4000247613,616166.74,Funding to deliver policies (excluding consultancy) paid to third parties via a service delivery contract
Department for Education,NATIONAL COLLEGE FOR TEACHING AND LEADERSHIP AGENCY,19/09/2016,Grants,Delivery Directorate,GREY COURT SCHOOL,4000247614,40000.00,Grants to educational establishments or not for profit organisations including other businesses
Department for Education,NATIONAL COLLEGE FOR TEACHING AND LEADERSHIP AGENCY,19/09/2016,Grants,Delivery Directorate,GREY COURT SCHOOL,4000247614,6000.00,Grants to educational establishments or not for profit organisations including other businesses
Department for Education,NATIONAL COLLEGE FOR TEACHING AND LEADERSHIP AGENCY,19/09/2016,Grants,Delivery Directorate,BROUGHTON BUSINESS & ENTERPRISE COLLEGE,4000247616,40000.00,Grants to educational establishments or not for profit organisations including other businesses
Department for Education,NATIONAL COLLEGE FOR TEACHING AND LEADERSHIP AGENCY,19/09/2016,Grants,Delivery Directorate,BROUGHTON BUSINESS & ENTERPRISE COLLEGE,4000247616,6000.00,Grants to educational establishments or not for profit organisations including other businesses
Department for Education,DEPARTMENT FOR EDUCATION,19/09/2016,Personnel Related,Early Years Group,FAMILY & CHILDCARE TRUST,4000247622,28298.40,"Personnel costs including staff recruitment, staff restaurant subsidies, family care expenses"
Department for Education,NATIONAL COLLEGE FOR TEACHING AND LEADERSHIP AGENCY,19/09/2016,Grants,Delivery Directorate,TYLDESLEY PRIMARY SCHOOL,4000247624,40000.00,Grants to educational establishments or not for profit organisations including other businesses
Department for Education,NATIONAL COLLEGE FOR TEACHING AND LEADERSHIP AGENCY,19/09/2016,Grants,Delivery Directorate,TYLDESLEY PRIMARY SCHOOL,4000247624,2000.00,Grants to educational establishments or not for profit organisations including other businesses
Department for Education,NATIONAL COLLEGE FOR TEACHING AND LEADERSHIP AGENCY,19/09/2016,Grants,Delivery Directorate,TYLDESLEY PRIMARY SCHOOL,4000247624,6000.00,Grants to educational establishments or not for profit organisations including other businesses
Department for Education,DEPARTMENT FOR EDUCATION,19/09/2016,Programme costs,Children's Services Special Educational Needs Group,BRITISH DYSLEXIA ASSOCIATION,4000247627,52075.43,Funding to deliver policies (excluding consultancy) paid to third parties via a service delivery contract
Department for Education,DEPARTMENT FOR EDUCATION,19/09/2016,Grants,Academies Regional Delivery Group,KERESLEY GRANGE PRIMARY SCHOOL,4000247633,25000.00,Grants to educational establishments or not for profit organisations including other businesses
Department for Education,NATIONAL COLLEGE FOR TEACHING AND LEADERSHIP AGENCY,19/09/2016,Grants,Delivery Directorate,COLMORE JUNIOR SCHOOL TS ACCOUNT,4000247638,40000.00,Grants to educational establishments or not for profit organisations including other businesses
Department for Education,NATIONAL COLLEGE FOR TEACHING AND LEADERSHIP AGENCY,19/09/2016,Grants,Delivery Directorate,COLMORE JUNIOR SCHOOL TS ACCOUNT,4000247638,6000.00,Grants to educational establishments or not for profit organisations including other businesses
Department for Education,NATIONAL COLLEGE FOR TEACHING AND LEADERSHIP AGENCY,19/09/2016,Grants,Delivery Directorate,HOLY ROSARY CATHOLIC PRIMARY SCHOOL TS ACCOUNT,4000247639,40000.00,Grants to educational establishments or not for profit organisations including other businesses
Department for Education,NATIONAL COLLEGE FOR TEACHING AND LEADERSHIP AGENCY,19/09/2016,Grants,Delivery Directorate,VICTORIA INFANT & NURSERY SCHOOL TS ACCOUNT,4000247640,40000.00,Grants to educational establishments or not for profit organisations including other businesses
Department for Education,NATIONAL COLLEGE FOR TEACHING AND LEADERSHIP AGENCY,19/09/2016,Grants,Delivery Directorate,VICTORIA INFANT & NURSERY SCHOOL TS ACCOUNT,4000247640,6000.00,Grants to educational establishments or not for profit organisations including other businesses
Department for Education,NATIONAL COLLEGE FOR TEACHING AND LEADERSHIP AGENCY,19/09/2016,Grants,Delivery Directorate,ST PATRICKS RC HIGH SCHOOL,4000247641,40000.00,Grants to educational establishments or not for profit organisations including other businesses
Department for Education,NATIONAL COLLEGE FOR TEACHING AND LEADERSHIP AGENCY,19/09/2016,Grants,Delivery Directorate,ST PATRICKS RC HIGH SCHOOL,4000247641,6000.00,Grants to educational establishments or not for profit organisations including other businesses
Department for Education,NATIONAL COLLEGE FOR TEACHING AND LEADERSHIP AGENCY,19/09/2016,Grants,Delivery Directorate,LUTLEY PRIMARY SCHOOL,4000247643,40000.00,Grants to educational establishments or not for profit organisations including other businesses
Department for Education,NATIONAL COLLEGE FOR TEACHING AND LEADERSHIP AGENCY,19/09/2016,Grants,Delivery Directorate,LUTLEY PRIMARY SCHOOL,4000247643,6000.00,Grants to educational establishments or not for profit organisations including other businesses
Department for Education,NATIONAL COLLEGE FOR TEACHING AND LEADERSHIP AGENCY,19/09/2016,Grants,Delivery Directorate,MIDDLETON TECHNOLOGY SCHOOL,4000247646,10000.00,Grants to educational establishments or not for profit organisations including other businesses
Department for Education,NATIONAL COLLEGE FOR TEACHING AND LEADERSHIP AGENCY,19/09/2016,Grants,Delivery Directorate,MIDDLETON TECHNOLOGY SCHOOL,4000247646,40000.00,Grants to educational establishments or not for profit organisations including other businesses
Department for Education,NATIONAL COLLEGE FOR TEACHING AND LEADERSHIP AGENCY,19/09/2016,Grants,Delivery Directorate,MIDDLETON TECHNOLOGY SCHOOL,4000247646,6000.00,Grants to educational establishments or not for profit organisations including other businesses
Department for Education,NATIONAL COLLEGE FOR TEACHING AND LEADERSHIP AGENCY,19/09/2016,Grants,Delivery Directorate,ELMRIDGE PRIMARY SCHOOL TS ACCOUNT,4000247662,40000.00,Grants to educational establishments or not for profit organisations including other businesses
Department for Education,NATIONAL COLLEGE FOR TEACHING AND LEADERSHIP AGENCY,19/09/2016,Grants,Delivery Directorate,ELMRIDGE PRIMARY SCHOOL TS ACCOUNT,4000247662,6000.00,Grants to educational establishments or not for profit organisations including other businesses
Department for Education,DEPARTMENT FOR EDUCATION,19/09/2016,Facilities,Property Asset Management Group,CAPITA PROPERTY & INFRASTRUCTURE LTD,4000247660,57559.59,Property management
Department for Education,NATIONAL COLLEGE FOR TEACHING AND LEADERSHIP AGENCY,19/09/2016,Grants,Delivery Directorate,MANOR MULTI ACADEMY TRUST,4000247670,40000.00,Grants to educational establishments or not for profit organisations including other businesses
Department for Education,NATIONAL COLLEGE FOR TEACHING AND LEADERSHIP AGENCY,19/09/2016,Grants,Delivery Directorate,MANOR MULTI ACADEMY TRUST,4000247670,6000.00,Grants to educational establishments or not for profit organisations including other businesses
Department for Education,NATIONAL COLLEGE FOR TEACHING AND LEADERSHIP AGENCY,19/09/2016,Grants,Delivery Directorate,BLACKPOOL CE PRIMARY SCHOOL,4000247674,40000.00,Grants to educational establishments or not for profit organisations including other businesses
Department for Education,NATIONAL COLLEGE FOR TEACHING AND LEADERSHIP AGENCY,19/09/2016,Grants,Delivery Directorate,BLACKPOOL CE PRIMARY SCHOOL,4000247674,6000.00,Grants to educational establishments or not for profit organisations including other businesses
Department for Education,DEPARTMENT FOR EDUCATION,19/09/2016,Grants,Academies Regional Delivery Group,E ACT,4000247676,129575.00,Grants to educational establishments or not for profit organisations including other businesses
Department for Education,NATIONAL COLLEGE FOR TEACHING AND LEADERSHIP AGENCY,19/09/2016,Grants,Delivery Directorate,WARREN ROAD PRIMARY SCHOOL,4000247682,40000.00,Grants to educational establishments or not for profit organisations including other businesses
Department for Education,DEPARTMENT FOR EDUCATION,19/09/2016,Grants,Academies Regional Delivery Group,THOMAS DEACON ACADEMY,4000247683,70000.00,Grants to educational establishments or not for profit organisations including other businesses
Department for Education,NATIONAL COLLEGE FOR TEACHING AND LEADERSHIP AGENCY,19/09/2016,Grants,Delivery Directorate,THE WESTLANDS SCHOOL,4000247684,40000.00,Grants to educational establishments or not for profit organisations including other businesses
Department for Education,NATIONAL COLLEGE FOR TEACHING AND LEADERSHIP AGENCY,19/09/2016,Grants,Delivery Directorate,THE WESTLANDS SCHOOL,4000247684,6000.00,Grants to educational establishments or not for profit organisations including other businesses
Department for Education,NATIONAL COLLEGE FOR TEACHING AND LEADERSHIP AGENCY,19/09/2016,Grants,Delivery Directorate,MOUNTS BAY ACADEMY,4000247686,40000.00,Grants to educational establishments or not for profit organisations including other businesses
Department for Education,NATIONAL COLLEGE FOR TEACHING AND LEADERSHIP AGENCY,19/09/2016,Grants,Delivery Directorate,MOUNTS BAY ACADEMY,4000247686,6000.00,Grants to educational establishments or not for profit organisations including other businesses
Department for Education,NATIONAL COLLEGE FOR TEACHING AND LEADERSHIP AGENCY,19/09/2016,Grants,Delivery Directorate,SACRED HEART HIGH SCHOOL,4000247697,40000.00,Grants to educational establishments or not for profit organisations including other businesses
Department for Education,NATIONAL COLLEGE FOR TEACHING AND LEADERSHIP AGENCY,19/09/2016,Grants,Delivery Directorate,RINGWOOD SCHOOL,4000247705,15075.00,Grants to educational establishments or not for profit organisations including other businesses
Department for Education,NATIONAL COLLEGE FOR TEACHING AND LEADERSHIP AGENCY,19/09/2016,Grants,Delivery Directorate,RINGWOOD SCHOOL,4000247705,40000.00,Grants to educational establishments or not for profit organisations including other businesses
Department for Education,NATIONAL COLLEGE FOR TEACHING AND LEADERSHIP AGENCY,19/09/2016,Grants,Delivery Directorate,EGGLESCLIFFE SCHOOL,4000247711,14000.00,Grants to educational establishments or not for profit organisations including other businesses
Department for Education,NATIONAL COLLEGE FOR TEACHING AND LEADERSHIP AGENCY,19/09/2016,Grants,Delivery Directorate,EGGLESCLIFFE SCHOOL,4000247711,40000.00,Grants to educational establishments or not for profit organisations including other businesses
Department for Education,NATIONAL COLLEGE FOR TEACHING AND LEADERSHIP AGENCY,19/09/2016,Grants,Delivery Directorate,EGGLESCLIFFE SCHOOL,4000247711,6000.00,Grants to educational establishments or not for profit organisations including other businesses
Department for Education,NATIONAL COLLEGE FOR TEACHING AND LEADERSHIP AGENCY,19/09/2016,Grants,Delivery Directorate,PONTELAND COMMUNITY MIDDLE SCHOOL,4000247721,40000.00,Grants to educational establishments or not for profit organisations including other businesses
Department for Education,NATIONAL COLLEGE FOR TEACHING AND LEADERSHIP AGENCY,19/09/2016,Grants,Delivery Directorate,PONTELAND COMMUNITY MIDDLE SCHOOL,4000247721,6000.00,Grants to educational establishments or not for profit organisations including other businesses
Department for Education,NATIONAL COLLEGE FOR TEACHING AND LEADERSHIP AGENCY,19/09/2016,Grants,Delivery Directorate,THE REDSTART PRIMARY SCHOOL,4000247731,50000.00,Grants to educational establishments or not for profit organisations including other businesses
Department for Education,NATIONAL COLLEGE FOR TEACHING AND LEADERSHIP AGENCY,19/09/2016,Grants,Delivery Directorate,THE REDSTART PRIMARY SCHOOL,4000247731,6000.00,Grants to educational establishments or not for profit organisations including other businesses
Department for Education,NATIONAL COLLEGE FOR TEACHING AND LEADERSHIP AGENCY,19/09/2016,Grants,Delivery Directorate,OUR LADYS BISHOP ETON SCHOOL,4000247733,50000.00,Grants to educational establishments or not for profit organisations including other businesses
Department for Education,NATIONAL COLLEGE FOR TEACHING AND LEADERSHIP AGENCY,19/09/2016,Grants,Delivery Directorate,OUR LADYS BISHOP ETON SCHOOL,4000247733,6000.00,Grants to educational establishments or not for profit organisations including other businesses
Department for Education,NATIONAL COLLEGE FOR TEACHING AND LEADERSHIP AGENCY,19/09/2016,Grants,Delivery Directorate,BLESSED ROBERT WIDMERPOOL ACADEMY,4000247738,40000.00,Grants to educational establishments or not for profit organisations including other businesses
Department for Education,NATIONAL COLLEGE FOR TEACHING AND LEADERSHIP AGENCY,19/09/2016,Grants,Delivery Directorate,BYGROVE PRIMARY SCHOOL,4000247739,40000.00,Grants to educational establishments or not for profit organisations including other businesses
Department for Education,DEPARTMENT FOR EDUCATION,19/09/2016,Grants,Academies Regional Delivery Group,BROADMEADOW SPECIAL SCHOOL,4000247744,25000.00,Grants to educational establishments or not for profit organisations including other businesses
Department for Education,DEPARTMENT FOR EDUCATION,19/09/2016,Programme costs,Children's Services Special Educational Needs Group,NATIONAL AUTISTIC SOCIETY,4000247748,62500.00,Funding to deliver policies (excluding consultancy) paid to third parties via a service delivery contract
Department for Education,DEPARTMENT FOR EDUCATION,19/09/2016,Facilities,Property Asset Management Group,GVA GRIMLEY LTD,4000247636,4012170.76,Rent
Department for Education,NATIONAL COLLEGE FOR TEACHING AND LEADERSHIP AGENCY,19/09/2016,Communications,Operations Directorate,INFERNO LTD,4000247610,48844.27,"Publicity, advertising, media advertising campaigns (excluding recruitment adverts)"
Department for Education,DEPARTMENT FOR EDUCATION,19/09/2016,Facilities,Property Asset Management Group,GVA GRIMLEY LTD DCLG,4000247668,5767504.90,"Rent. From 2016/17 financial year DCLG and DECC will use the DfE's finance system, reflecting the shared services arrangement for property asset management that already exists across the three departments. DfE will recharge DCLG and DECC on a quarterly basis."
Department for Education,DEPARTMENT FOR EDUCATION,20/09/2016,Facilities,Property Asset Management Group,DEPARTMENT OF ENERGY & CLIMATE CHANGE,4000247834,107568.50,Property management
Department for Education,DEPARTMENT FOR EDUCATION,20/09/2016,Facilities,Property Asset Management Group,DEPARTMENT OF ENERGY & CLIMATE CHANGE,4000247834,50885.90,Property management
Department for Education,DEPARTMENT FOR EDUCATION,20/09/2016,Miscellaneous Expenditure,Finance and Commercial Group,N/A � Risk Protection Arrangement (RPA) member,005921-001114-RC-01,108000.00,Property claim paid out to an academy trust by Gallagher Bassett on behalf of the Department as part of the Department's Risk Protection Arrangement (RPA).
Department for Education,DEPARTMENT FOR EDUCATION,21/09/2016,Professional Services Other,Property Asset Management Group,ARCADIS LLP,4000247895,13063.64,"Fees / expenses of professionals, for example to implement advice or changes"
Department for Education,DEPARTMENT FOR EDUCATION,21/09/2016,Professional Services Other,Property Asset Management Group,ARCADIS LLP,4000247895,14279.06,"Fees / expenses of professionals, for example to implement advice or changes"
Department for Education,DEPARTMENT FOR EDUCATION,21/09/2016,Professional Services Other,Property Asset Management Group,ARCADIS LLP,4000247895,7145.60,"Fees / expenses of professionals, for example to implement advice or changes"
Department for Education,DEPARTMENT FOR EDUCATION,21/09/2016,Professional Services Consultancy and Contingent Labour,Information Technology Group,METHODS PROFESSIONAL SERVICES LTD,4000247948,14202.72,Costs related to temporary workers
Department for Education,DEPARTMENT FOR EDUCATION,21/09/2016,Professional Services Consultancy and Contingent Labour,Information Technology Group,METHODS PROFESSIONAL SERVICES LTD,4000247948,13200.00,Costs related to temporary workers
Department for Education,NATIONAL COLLEGE FOR TEACHING AND LEADERSHIP AGENCY,21/09/2016,Communications,Operations Directorate,CARAT,4000247969,31985.58,Marketing services
Department for Education,NATIONAL COLLEGE FOR TEACHING AND LEADERSHIP AGENCY,21/09/2016,Communications,Delivery Directorate,CARAT,4000247969,975.31,Marketing services
Department for Education,DEPARTMENT FOR EDUCATION,21/09/2016,Facilities,Property Asset Management Group,CAPITA PROPERTY & INFRASTRUCTURE LTD,4000247940,182167.51,Property management
Department for Education,DEPARTMENT FOR EDUCATION,21/09/2016,Professional Services Other,Finance and Commercial Group,SHARED SERVICES CONNECTED LTD,4000247879,208128.08,Shared corporate accounting services
Department for Education,DEPARTMENT FOR EDUCATION,21/09/2016,Professional Services Other,Finance and Commercial Group,SHARED SERVICES CONNECTED LTD,4000247879,3237.96,Shared corporate payroll services
Department for Education,DEPARTMENT FOR EDUCATION,21/09/2016,Grants,Early Years Group,DEPARTMENT FOR CULTURE MEDIA & SPORT,4000247880,51000.00,Current grant funding to other government departments for DfE's contribution to jointly funded programmes 
Department for Education,DEPARTMENT FOR EDUCATION,21/09/2016,Programme costs,Adoption and Children in Care Division,CORAM,4000247958,62987.63,Funding to deliver policies (excluding consultancy) paid to third parties via a service delivery contract
Department for Education,DEPARTMENT FOR EDUCATION,21/09/2016,Grants,"Children's Services, Equalities and Communication Safeguarding Group",FAMILY LIVES,4000247963,41905.14,Grants to educational establishments or not for profit organisations including other businesses
Department for Education,DEPARTMENT FOR EDUCATION,21/09/2016,Grants,Adoption and Children in Care Division,THE SHARE FOUNDATION 3RD PARTY TRUST,4000247965,29000.00,Grants to educational establishments or not for profit organisations including other businesses
Department for Education,DEPARTMENT FOR EDUCATION,21/09/2016,Grants,Early Years Group,HM REVENUE & CUSTOMS,4000247966,499162.00,Current grant funding to other government departments for DfE's contribution to jointly funded programmes 
Department for Education,DEPARTMENT FOR EDUCATION,21/09/2016,Grants,"Children's Services, Equalities and Communication Safeguarding Group",DONCASTER CHILDRENS TRUST,4000247967,230919.68,Grants to educational establishments or not for profit organisations including other businesses
Department for Education,DEPARTMENT FOR EDUCATION,21/09/2016,Miscellaneous Expenditure,Finance and Commercial Group,N/A � Risk Protection Arrangement (RPA) member,005921-000569-RB-01,62115.20,Property claim paid out to an academy trust by Gallagher Bassett on behalf of the Department as part of the Department's Risk Protection Arrangement (RPA).
Department for Education,DEPARTMENT FOR EDUCATION,21/09/2016,Miscellaneous Expenditure,Finance and Commercial Group,N/A � Risk Protection Arrangement (RPA) member,005921-000569-TE-01,29498.41,Property claim paid out to an academy trust by Gallagher Bassett on behalf of the Department as part of the Department's Risk Protection Arrangement (RPA).
Department for Education,DEPARTMENT FOR EDUCATION,21/09/2016,Miscellaneous Expenditure,Finance and Commercial Group,N/A � Risk Protection Arrangement (RPA) member,005921-001104-RB-01,142195.38,Property claim paid out to an academy trust by Gallagher Bassett on behalf of the Department as part of the Department's Risk Protection Arrangement (RPA).
Department for Education,DEPARTMENT FOR EDUCATION,22/09/2016,Facilities,Property Asset Management Group,GVA GRIMLEY LTD,4000247999,485501.00,Business rates
Department for Education,DEPARTMENT FOR EDUCATION,22/09/2016,ICT,Information Technology Group,EDUSERV,4000248019,478579.62,ICT Services
Department for Education,DEPARTMENT FOR EDUCATION,22/09/2016,Professional Services Consultancy and Contingent Labour,Information Technology Group,METHODS PROFESSIONAL SERVICES LTD,4000247977,12511.68,Costs related to temporary workers
Department for Education,DEPARTMENT FOR EDUCATION,22/09/2016,Professional Services Consultancy and Contingent Labour,Portfolio Management Board,METHODS PROFESSIONAL SERVICES LTD,4000247977,23756.16,Costs related to temporary workers
Department for Education,DEPARTMENT FOR EDUCATION,22/09/2016,Programme costs,Children's Services Special Educational Needs Group,THE EDUCATION & TRAINING FOUNDATION,4000247975,143750.00,Funding to deliver policies (excluding consultancy) paid to third parties via a service delivery contract
Department for Education,DEPARTMENT FOR EDUCATION,22/09/2016,Programme costs,Adoption and Children in Care Division,CORAM,4000247983,90000.00,Funding to deliver policies (excluding consultancy) paid to third parties via a service delivery contract
Department for Education,STANDARDS AND TESTING AGENCY,22/09/2016,Programme costs,Test Development Division,GWASG PIA CYF,4000247987,25012.00,Funding to deliver policies (excluding consultancy) paid to third parties via a service delivery contract
Department for Education,DEPARTMENT FOR EDUCATION,22/09/2016,Grants,Academies Regional Delivery Group,LINDEN BRIDGE SCHOOL,4000247989,25000.00,Grants to educational establishments or not for profit organisations including other businesses
Department for Education,DEPARTMENT FOR EDUCATION,22/09/2016,Grants,Academies Regional Delivery Group,BABINGTON COMMUNITY COLLEGE,4000247990,25000.00,Grants to educational establishments or not for profit organisations including other businesses
Department for Education,DEPARTMENT FOR EDUCATION,22/09/2016,Grants,Academies Regional Delivery Group,LDBS ACADEMIES TRUST,4000248000,25000.00,Grants to educational establishments or not for profit organisations including other businesses
Department for Education,NATIONAL COLLEGE FOR TEACHING AND LEADERSHIP AGENCY,22/09/2016,Grants,Delivery Directorate,THE UNIVERSITY OF MANCHESTER,4000248002,319000.00,Grants to educational establishments or not for profit organisations including other businesses
Department for Education,DEPARTMENT FOR EDUCATION,22/09/2016,Grants,Academies Regional Delivery Group,THE CHERWELL SCHOOL,4000248022,70000.00,Grants to educational establishments or not for profit organisations including other businesses
Department for Education,NATIONAL COLLEGE FOR TEACHING AND LEADERSHIP AGENCY,22/09/2016,Grants,Delivery Directorate,UNIVERSITY COLLEGE LONDON,4000248030,285285.00,Grants to educational establishments or not for profit organisations including other businesses
Department for Education,DEPARTMENT FOR EDUCATION,22/09/2016,Grants,Academies Regional Delivery Group,ST BARTHOLOMEWS CE PRIMARY SCHOOL & NURSERY,4000248032,25000.00,Grants to educational establishments or not for profit organisations including other businesses
Department for Education,DEPARTMENT FOR EDUCATION,22/09/2016,Grants,Academies Regional Delivery Group,ST WULSTANS CATHOLIC PRIMARY SCHOOL,4000248033,25000.00,Grants to educational establishments or not for profit organisations including other businesses
Department for Education,DEPARTMENT FOR EDUCATION,22/09/2016,Grants,Academies Regional Delivery Group,TURNER SCHOOLS,4000248034,100000.00,Grants to educational establishments or not for profit organisations including other businesses
Department for Education,DEPARTMENT FOR EDUCATION,22/09/2016,Grants,Academies Regional Delivery Group,LINTON HEIGHTS JUNIOR SCHOOL,4000248035,25000.00,Grants to educational establishments or not for profit organisations including other businesses
Department for Education,DEPARTMENT FOR EDUCATION,22/09/2016,Grants,Free School Group,HUJJAT SCHOOL TRUST,4000248036,66000.00,Grants to educational establishments or not for profit organisations including other businesses
Department for Education,DEPARTMENT FOR EDUCATION,22/09/2016,Grants,Academies Regional Delivery Group,OLNEY MIDDLE SCHOOL,4000248037,25000.00,Grants to educational establishments or not for profit organisations including other businesses
Department for Education,DEPARTMENT FOR EDUCATION,22/09/2016,Grants,Academies Regional Delivery Group,SCOTHOLME PRIMARY SCHOOL,4000248038,25000.00,Grants to educational establishments or not for profit organisations including other businesses
Department for Education,DEPARTMENT FOR EDUCATION,22/09/2016,Grants,Academies Regional Delivery Group,THORNTON PRIMARY SCHOOL,4000248040,25000.00,Grants to educational establishments or not for profit organisations including other businesses
Department for Education,DEPARTMENT FOR EDUCATION,23/09/2016,Professional Services Consultancy and Contingent Labour,Portfolio Management Board,CAPGEMINI UK PLC,4000248079,101627.04,Costs related to temporary workers
Department for Education,DEPARTMENT FOR EDUCATION,23/09/2016,Facilities,Property Asset Management Group,GVA GRIMLEY LTD DCLG,4000248053,383378.00,"Business rates. From 2016/17 financial year DCLG and DECC will use the DfE's finance system, reflecting the shared services arrangement for property asset management that already exists across the three departments. DfE will recharge DCLG and DECC on a quarterly basis."
Department for Education,DEPARTMENT FOR EDUCATION,23/09/2016,Facilities,Property Asset Management Group,CAPITA PROPERTY & INFRASTRUCTURE LTD,4000248045,163785.88,Property management
Department for Education,DEPARTMENT FOR EDUCATION,23/09/2016,Professional Services Consultancy and Contingent Labour,Information Technology Group,METHODS PROFESSIONAL SERVICES LTD,4000248046,23412.74,Costs related to temporary workers
Department for Education,DEPARTMENT FOR EDUCATION,23/09/2016,Professional Services Consultancy and Contingent Labour,Information Technology Group,METHODS PROFESSIONAL SERVICES LTD,4000248046,44880.00,Costs related to temporary workers
Department for Education,DEPARTMENT FOR EDUCATION,23/09/2016,Professional Services Consultancy and Contingent Labour,Finance and Commercial Group,MICHAEL PAGE INTERNATIONAL RECRUITMENT LTD,4000248062,32538.00,Costs related to temporary workers
Department for Education,NATIONAL COLLEGE FOR TEACHING AND LEADERSHIP AGENCY,23/09/2016,Grants,Delivery Directorate,TREETOPS SCHOOL,4000248042,40000.00,Grants to educational establishments or not for profit organisations including other businesses
Department for Education,NATIONAL COLLEGE FOR TEACHING AND LEADERSHIP AGENCY,23/09/2016,Grants,Delivery Directorate,RUSHEY MEAD SCHOOL,4000248050,35100.00,Grants to educational establishments or not for profit organisations including other businesses
Department for Education,NATIONAL COLLEGE FOR TEACHING AND LEADERSHIP AGENCY,23/09/2016,Programme costs,Operations Directorate,HIGHER EDUCATION FUNDING COUNCIL,4000248067,27148.00,Funding to deliver policies (excluding consultancy) paid to third parties via a service delivery contract
Department for Education,NATIONAL COLLEGE FOR TEACHING AND LEADERSHIP AGENCY,23/09/2016,Grants,Delivery Directorate,ST THOMAS MORE CATHOLIC SCHOOL,4000248069,16000.00,Grants to educational establishments or not for profit organisations including other businesses
Department for Education,NATIONAL COLLEGE FOR TEACHING AND LEADERSHIP AGENCY,23/09/2016,Grants,Delivery Directorate,ST THOMAS MORE CATHOLIC SCHOOL,4000248069,40000.00,Grants to educational establishments or not for profit organisations including other businesses
Department for Education,NATIONAL COLLEGE FOR TEACHING AND LEADERSHIP AGENCY,23/09/2016,Grants,Delivery Directorate,ST THOMAS MORE CATHOLIC SCHOOL,4000248069,6000.00,Grants to educational establishments or not for profit organisations including other businesses
Department for Education,NATIONAL COLLEGE FOR TEACHING AND LEADERSHIP AGENCY,23/09/2016,Grants,Delivery Directorate,SCISSETT CE A FIRST SCHOOL CF ACCOUNT,4000248076,40000.00,Grants to educational establishments or not for profit organisations including other businesses
Department for Education,NATIONAL COLLEGE FOR TEACHING AND LEADERSHIP AGENCY,23/09/2016,Grants,Delivery Directorate,SCISSETT CE A FIRST SCHOOL CF ACCOUNT,4000248076,6000.00,Grants to educational establishments or not for profit organisations including other businesses
Department for Education,NATIONAL COLLEGE FOR TEACHING AND LEADERSHIP AGENCY,23/09/2016,Grants,Delivery Directorate,BEDFIELD CE VC SCHOOL,4000248077,50000.00,Grants to educational establishments or not for profit organisations including other businesses
Department for Education,NATIONAL COLLEGE FOR TEACHING AND LEADERSHIP AGENCY,23/09/2016,Grants,Delivery Directorate,ST BARTHOLOMEWS PRIMARY SCHOOL,4000248078,50000.00,Grants to educational establishments or not for profit organisations including other businesses
Department for Education,NATIONAL COLLEGE FOR TEACHING AND LEADERSHIP AGENCY,23/09/2016,Grants,Delivery Directorate,ST BARTHOLOMEWS PRIMARY SCHOOL,4000248078,2000.00,Grants to educational establishments or not for profit organisations including other businesses
Department for Education,NATIONAL COLLEGE FOR TEACHING AND LEADERSHIP AGENCY,23/09/2016,Grants,Delivery Directorate,ST BARTHOLOMEWS PRIMARY SCHOOL,4000248078,6000.00,Grants to educational establishments or not for profit organisations including other businesses
Department for Education,NATIONAL COLLEGE FOR TEACHING AND LEADERSHIP AGENCY,23/09/2016,Grants,Delivery Directorate,ALFRETON NURSERY SCHOOL,4000248084,50000.00,Grants to educational establishments or not for profit organisations including other businesses
Department for Education,NATIONAL COLLEGE FOR TEACHING AND LEADERSHIP AGENCY,23/09/2016,Grants,Delivery Directorate,SPRINGWELL SPECIAL ACADEMY,4000248088,40000.00,Grants to educational establishments or not for profit organisations including other businesses
Department for Education,NATIONAL COLLEGE FOR TEACHING AND LEADERSHIP AGENCY,23/09/2016,Grants,Delivery Directorate,SPRINGWELL SPECIAL ACADEMY,4000248088,355.00,Grants to educational establishments or not for profit organisations including other businesses
Department for Education,NATIONAL COLLEGE FOR TEACHING AND LEADERSHIP AGENCY,23/09/2016,Grants,Delivery Directorate,SPRINGWELL SCHOOL,4000248090,50000.00,Grants to educational establishments or not for profit organisations including other businesses
Department for Education,NATIONAL COLLEGE FOR TEACHING AND LEADERSHIP AGENCY,23/09/2016,Grants,Delivery Directorate,SPRINGWELL SCHOOL,4000248090,6000.00,Grants to educational establishments or not for profit organisations including other businesses
Department for Education,NATIONAL COLLEGE FOR TEACHING AND LEADERSHIP AGENCY,23/09/2016,Grants,Delivery Directorate,LAWRENCE SHERIFF SCHOOL,4000248091,5000.00,Grants to educational establishments or not for profit organisations including other businesses
Department for Education,NATIONAL COLLEGE FOR TEACHING AND LEADERSHIP AGENCY,23/09/2016,Grants,Delivery Directorate,LAWRENCE SHERIFF SCHOOL,4000248091,39738.00,Grants to educational establishments or not for profit organisations including other businesses
Department for Education,NATIONAL COLLEGE FOR TEACHING AND LEADERSHIP AGENCY,23/09/2016,Grants,Delivery Directorate,LAWRENCE SHERIFF SCHOOL,4000248091,6000.00,Grants to educational establishments or not for profit organisations including other businesses
Department for Education,NATIONAL COLLEGE FOR TEACHING AND LEADERSHIP AGENCY,23/09/2016,Grants,Delivery Directorate,LINDENS PRIMARY SCHOOL,4000248092,40000.00,Grants to educational establishments or not for profit organisations including other businesses
Department for Education,NATIONAL COLLEGE FOR TEACHING AND LEADERSHIP AGENCY,23/09/2016,Grants,Delivery Directorate,LINDENS PRIMARY SCHOOL,4000248092,815.00,Grants to educational establishments or not for profit organisations including other businesses
Department for Education,NATIONAL COLLEGE FOR TEACHING AND LEADERSHIP AGENCY,23/09/2016,Grants,Delivery Directorate,LINDENS PRIMARY SCHOOL,4000248092,6000.00,Grants to educational establishments or not for profit organisations including other businesses
Department for Education,NATIONAL COLLEGE FOR TEACHING AND LEADERSHIP AGENCY,23/09/2016,Grants,Delivery Directorate,MALMESBURY SCHOOL,4000248093,72400.00,Grants to educational establishments or not for profit organisations including other businesses
Department for Education,NATIONAL COLLEGE FOR TEACHING AND LEADERSHIP AGENCY,23/09/2016,Grants,Delivery Directorate,MALMESBURY SCHOOL,4000248093,40000.00,Grants to educational establishments or not for profit organisations including other businesses
Department for Education,NATIONAL COLLEGE FOR TEACHING AND LEADERSHIP AGENCY,23/09/2016,Grants,Delivery Directorate,MALMESBURY SCHOOL,4000248093,6000.00,Grants to educational establishments or not for profit organisations including other businesses
Department for Education,NATIONAL COLLEGE FOR TEACHING AND LEADERSHIP AGENCY,23/09/2016,Grants,Delivery Directorate,ST JAMES THE GREAT RC PRIMARY & NURSERY,4000248094,40000.00,Grants to educational establishments or not for profit organisations including other businesses
Department for Education,NATIONAL COLLEGE FOR TEACHING AND LEADERSHIP AGENCY,23/09/2016,Grants,Delivery Directorate,ST NICHOLAS CE PRIMARY,4000248097,50000.00,Grants to educational establishments or not for profit organisations including other businesses
Department for Education,NATIONAL COLLEGE FOR TEACHING AND LEADERSHIP AGENCY,23/09/2016,Grants,Delivery Directorate,INVICTA GIRLS GRAMMAR SCHOOL,4000248098,40000.00,Grants to educational establishments or not for profit organisations including other businesses
Department for Education,NATIONAL COLLEGE FOR TEACHING AND LEADERSHIP AGENCY,23/09/2016,Grants,Delivery Directorate,INVICTA GIRLS GRAMMAR SCHOOL,4000248098,6000.00,Grants to educational establishments or not for profit organisations including other businesses
Department for Education,NATIONAL COLLEGE FOR TEACHING AND LEADERSHIP AGENCY,23/09/2016,Grants,Delivery Directorate,SIR CHRISTOPHER HATTON ACADEMY,4000248101,49347.00,Grants to educational establishments or not for profit organisations including other businesses
Department for Education,NATIONAL COLLEGE FOR TEACHING AND LEADERSHIP AGENCY,23/09/2016,Grants,Delivery Directorate,SIR CHRISTOPHER HATTON ACADEMY,4000248101,6000.00,Grants to educational establishments or not for profit organisations including other businesses
Department for Education,NATIONAL COLLEGE FOR TEACHING AND LEADERSHIP AGENCY,23/09/2016,Grants,Delivery Directorate,HALL MEADOW PRIMARY SCHOOL TS ACCOUNT,4000248102,40000.00,Grants to educational establishments or not for profit organisations including other businesses
Department for Education,NATIONAL COLLEGE FOR TEACHING AND LEADERSHIP AGENCY,23/09/2016,Grants,Delivery Directorate,HALL MEADOW PRIMARY SCHOOL TS ACCOUNT,4000248102,6000.00,Grants to educational establishments or not for profit organisations including other businesses
Department for Education,NATIONAL COLLEGE FOR TEACHING AND LEADERSHIP AGENCY,23/09/2016,Grants,Delivery Directorate,SELE FIRST SCHOOL TS ACCOUNT,4000248103,40000.00,Grants to educational establishments or not for profit organisations including other businesses
Department for Education,NATIONAL COLLEGE FOR TEACHING AND LEADERSHIP AGENCY,23/09/2016,Grants,Delivery Directorate,SELE FIRST SCHOOL TS ACCOUNT,4000248103,6000.00,Grants to educational establishments or not for profit organisations including other businesses
Department for Education,NATIONAL COLLEGE FOR TEACHING AND LEADERSHIP AGENCY,23/09/2016,Grants,Delivery Directorate,SIR ROBERT GEFFERYS CE PRIMARY SCHOOL,4000248104,40000.00,Grants to educational establishments or not for profit organisations including other businesses
Department for Education,NATIONAL COLLEGE FOR TEACHING AND LEADERSHIP AGENCY,23/09/2016,Grants,Delivery Directorate,SIR ROBERT GEFFERYS CE PRIMARY SCHOOL,4000248104,6000.00,Grants to educational establishments or not for profit organisations including other businesses
Department for Education,NATIONAL COLLEGE FOR TEACHING AND LEADERSHIP AGENCY,23/09/2016,Grants,Delivery Directorate,SOUTHGATE SCHOOL,4000248105,26325.00,Grants to educational establishments or not for profit organisations including other businesses
Department for Education,NATIONAL COLLEGE FOR TEACHING AND LEADERSHIP AGENCY,23/09/2016,Grants,Delivery Directorate,LONGWOOD COMMUNITY INFANT SCHOOL,4000248107,40000.00,Grants to educational establishments or not for profit organisations including other businesses
Department for Education,NATIONAL COLLEGE FOR TEACHING AND LEADERSHIP AGENCY,23/09/2016,Grants,Delivery Directorate,LONGWOOD COMMUNITY INFANT SCHOOL,4000248107,6000.00,Grants to educational establishments or not for profit organisations including other businesses
Department for Education,NATIONAL COLLEGE FOR TEACHING AND LEADERSHIP AGENCY,23/09/2016,Grants,Delivery Directorate,SUNNINGDALE SCHOOL,4000248112,40000.00,Grants to educational establishments or not for profit organisations including other businesses
Department for Education,NATIONAL COLLEGE FOR TEACHING AND LEADERSHIP AGENCY,23/09/2016,Grants,Delivery Directorate,SUNNINGDALE SCHOOL,4000248112,6000.00,Grants to educational establishments or not for profit organisations including other businesses
Department for Education,NATIONAL COLLEGE FOR TEACHING AND LEADERSHIP AGENCY,23/09/2016,Grants,Delivery Directorate,OVERTON CE PRIMARY SCHOOL,4000248114,40000.00,Grants to educational establishments or not for profit organisations including other businesses
Department for Education,NATIONAL COLLEGE FOR TEACHING AND LEADERSHIP AGENCY,23/09/2016,Grants,Delivery Directorate,OVERTON CE PRIMARY SCHOOL,4000248114,6000.00,Grants to educational establishments or not for profit organisations including other businesses
Department for Education,NATIONAL COLLEGE FOR TEACHING AND LEADERSHIP AGENCY,23/09/2016,Grants,Delivery Directorate,THE DALES SCHOOL,4000248118,40000.00,Grants to educational establishments or not for profit organisations including other businesses
Department for Education,NATIONAL COLLEGE FOR TEACHING AND LEADERSHIP AGENCY,23/09/2016,Grants,Delivery Directorate,THE DALES SCHOOL,4000248118,6000.00,Grants to educational establishments or not for profit organisations including other businesses
Department for Education,NATIONAL COLLEGE FOR TEACHING AND LEADERSHIP AGENCY,23/09/2016,Grants,Delivery Directorate,ST FRANCIS CATHOLIC PRIMARY SCHOOL,4000248121,21276.00,Grants to educational establishments or not for profit organisations including other businesses
Department for Education,NATIONAL COLLEGE FOR TEACHING AND LEADERSHIP AGENCY,23/09/2016,Grants,Delivery Directorate,ST FRANCIS CATHOLIC PRIMARY SCHOOL,4000248121,6000.00,Grants to educational establishments or not for profit organisations including other businesses
Department for Education,NATIONAL COLLEGE FOR TEACHING AND LEADERSHIP AGENCY,23/09/2016,Grants,Delivery Directorate,HIGHWORTH GRAMMAR SCHOOL,4000248122,38705.00,Grants to educational establishments or not for profit organisations including other businesses
Department for Education,NATIONAL COLLEGE FOR TEACHING AND LEADERSHIP AGENCY,23/09/2016,Grants,Delivery Directorate,HIGHWORTH GRAMMAR SCHOOL,4000248122,6000.00,Grants to educational establishments or not for profit organisations including other businesses
Department for Education,NATIONAL COLLEGE FOR TEACHING AND LEADERSHIP AGENCY,23/09/2016,Grants,Delivery Directorate,CHEADLE HULME HIGH SCHOOL,4000248127,7750.00,Grants to educational establishments or not for profit organisations including other businesses
Department for Education,NATIONAL COLLEGE FOR TEACHING AND LEADERSHIP AGENCY,23/09/2016,Grants,Delivery Directorate,CHEADLE HULME HIGH SCHOOL,4000248127,40000.00,Grants to educational establishments or not for profit organisations including other businesses
Department for Education,NATIONAL COLLEGE FOR TEACHING AND LEADERSHIP AGENCY,23/09/2016,Grants,Delivery Directorate,CHEADLE HULME HIGH SCHOOL,4000248127,6000.00,Grants to educational establishments or not for profit organisations including other businesses
Department for Education,NATIONAL COLLEGE FOR TEACHING AND LEADERSHIP AGENCY,23/09/2016,Grants,Delivery Directorate,WHITEFIELD ACADEMY TRUST,4000248130,40000.00,Grants to educational establishments or not for profit organisations including other businesses
Department for Education,NATIONAL COLLEGE FOR TEACHING AND LEADERSHIP AGENCY,23/09/2016,Grants,Delivery Directorate,WITHAM ST HUGHS ACADEMY,4000248145,40000.00,Grants to educational establishments or not for profit organisations including other businesses
Department for Education,NATIONAL COLLEGE FOR TEACHING AND LEADERSHIP AGENCY,23/09/2016,Grants,Delivery Directorate,WITHAM ST HUGHS ACADEMY,4000248145,6000.00,Grants to educational establishments or not for profit organisations including other businesses
Department for Education,NATIONAL COLLEGE FOR TEACHING AND LEADERSHIP AGENCY,23/09/2016,Grants,Delivery Directorate,BITTERNE PARK SCHOOL TS ACC,4000248146,20000.00,Grants to educational establishments or not for profit organisations including other businesses
Department for Education,NATIONAL COLLEGE FOR TEACHING AND LEADERSHIP AGENCY,23/09/2016,Grants,Delivery Directorate,BITTERNE PARK SCHOOL TS ACC,4000248146,40000.00,Grants to educational establishments or not for profit organisations including other businesses
Department for Education,NATIONAL COLLEGE FOR TEACHING AND LEADERSHIP AGENCY,23/09/2016,Grants,Delivery Directorate,BITTERNE PARK SCHOOL TS ACC,4000248146,2000.00,Grants to educational establishments or not for profit organisations including other businesses
Department for Education,NATIONAL COLLEGE FOR TEACHING AND LEADERSHIP AGENCY,23/09/2016,Grants,Delivery Directorate,BITTERNE PARK SCHOOL TS ACC,4000248146,6000.00,Grants to educational establishments or not for profit organisations including other businesses
Department for Education,NATIONAL COLLEGE FOR TEACHING AND LEADERSHIP AGENCY,23/09/2016,Grants,Delivery Directorate,BELGRAVE ST BARTHOLOMEWS ACADEMY TS ACCOUNT,4000248148,52650.00,Grants to educational establishments or not for profit organisations including other businesses
Department for Education,NATIONAL COLLEGE FOR TEACHING AND LEADERSHIP AGENCY,23/09/2016,Grants,Delivery Directorate,ELIZABETH GARRETT ANDERSON SCHOOL,4000248149,50000.00,Grants to educational establishments or not for profit organisations including other businesses
Department for Education,NATIONAL COLLEGE FOR TEACHING AND LEADERSHIP AGENCY,23/09/2016,Grants,Delivery Directorate,ELIZABETH GARRETT ANDERSON SCHOOL,4000248149,6000.00,Grants to educational establishments or not for profit organisations including other businesses
Department for Education,NATIONAL COLLEGE FOR TEACHING AND LEADERSHIP AGENCY,23/09/2016,Grants,Delivery Directorate,THEALE COFE PRIMARY SCHOOL BCAP ACC,4000248150,40000.00,Grants to educational establishments or not for profit organisations including other businesses
Department for Education,NATIONAL COLLEGE FOR TEACHING AND LEADERSHIP AGENCY,23/09/2016,Grants,Delivery Directorate,THEALE COFE PRIMARY SCHOOL BCAP ACC,4000248150,6000.00,Grants to educational establishments or not for profit organisations including other businesses
Department for Education,NATIONAL COLLEGE FOR TEACHING AND LEADERSHIP AGENCY,23/09/2016,Grants,Delivery Directorate,OASIS ACADEMY LIMESIDE TS ACCOUNT,4000248151,40000.00,Grants to educational establishments or not for profit organisations including other businesses
Department for Education,NATIONAL COLLEGE FOR TEACHING AND LEADERSHIP AGENCY,23/09/2016,Grants,Delivery Directorate,OASIS ACADEMY LIMESIDE TS ACCOUNT,4000248151,6000.00,Grants to educational establishments or not for profit organisations including other businesses
Department for Education,NATIONAL COLLEGE FOR TEACHING AND LEADERSHIP AGENCY,23/09/2016,Grants,Delivery Directorate,TWYFORD CE HIGH SCHOOL TS ACCOUNT,4000248153,5000.00,Grants to educational establishments or not for profit organisations including other businesses
Department for Education,NATIONAL COLLEGE FOR TEACHING AND LEADERSHIP AGENCY,23/09/2016,Grants,Delivery Directorate,TWYFORD CE HIGH SCHOOL TS ACCOUNT,4000248153,40000.00,Grants to educational establishments or not for profit organisations including other businesses
Department for Education,NATIONAL COLLEGE FOR TEACHING AND LEADERSHIP AGENCY,23/09/2016,Grants,Delivery Directorate,TIDEMILL ACADEMY TS ACCOUNT,4000248154,40000.00,Grants to educational establishments or not for profit organisations including other businesses
Department for Education,NATIONAL COLLEGE FOR TEACHING AND LEADERSHIP AGENCY,23/09/2016,Grants,Delivery Directorate,EVERTON NURSERY SCHOOL & FAMILY CENTRE TS ACCOUNT,4000248155,40000.00,Grants to educational establishments or not for profit organisations including other businesses
Department for Education,NATIONAL COLLEGE FOR TEACHING AND LEADERSHIP AGENCY,23/09/2016,Grants,Delivery Directorate,EVERTON NURSERY SCHOOL & FAMILY CENTRE TS ACCOUNT,4000248155,6000.00,Grants to educational establishments or not for profit organisations including other businesses
Department for Education,NATIONAL COLLEGE FOR TEACHING AND LEADERSHIP AGENCY,23/09/2016,Grants,Delivery Directorate,ST HUGHS COMMUNICATION & INTERACTION COLLEGE TS ACCOUNT,4000248156,40000.00,Grants to educational establishments or not for profit organisations including other businesses
Department for Education,NATIONAL COLLEGE FOR TEACHING AND LEADERSHIP AGENCY,23/09/2016,Grants,Delivery Directorate,THE CHERWELL SCHOOL TS ACCOUNT,4000248157,40000.00,Grants to educational establishments or not for profit organisations including other businesses
Department for Education,NATIONAL COLLEGE FOR TEACHING AND LEADERSHIP AGENCY,23/09/2016,Grants,Delivery Directorate,THE CHERWELL SCHOOL TS ACCOUNT,4000248157,6000.00,Grants to educational establishments or not for profit organisations including other businesses
Department for Education,NATIONAL COLLEGE FOR TEACHING AND LEADERSHIP AGENCY,23/09/2016,Grants,Delivery Directorate,ST JOHN BOSCO CATHOLIC PRIMARY SCHOOL TS ACCOUNT,4000248158,40000.00,Grants to educational establishments or not for profit organisations including other businesses
Department for Education,NATIONAL COLLEGE FOR TEACHING AND LEADERSHIP AGENCY,23/09/2016,Grants,Delivery Directorate,ST JOHN BOSCO CATHOLIC PRIMARY SCHOOL TS ACCOUNT,4000248158,6000.00,Grants to educational establishments or not for profit organisations including other businesses
Department for Education,NATIONAL COLLEGE FOR TEACHING AND LEADERSHIP AGENCY,23/09/2016,Grants,Delivery Directorate,TOOT HILL SCHOOL TS ACCOUNT,4000248159,40000.00,Grants to educational establishments or not for profit organisations including other businesses
Department for Education,NATIONAL COLLEGE FOR TEACHING AND LEADERSHIP AGENCY,23/09/2016,Grants,Delivery Directorate,TOOT HILL SCHOOL TS ACCOUNT,4000248159,6000.00,Grants to educational establishments or not for profit organisations including other businesses
Department for Education,NATIONAL COLLEGE FOR TEACHING AND LEADERSHIP AGENCY,23/09/2016,Grants,Delivery Directorate,FYLDE COAST TEACHING SCHOOL,4000248160,40000.00,Grants to educational establishments or not for profit organisations including other businesses
Department for Education,NATIONAL COLLEGE FOR TEACHING AND LEADERSHIP AGENCY,23/09/2016,Grants,Delivery Directorate,FYLDE COAST TEACHING SCHOOL,4000248160,1636.00,Grants to educational establishments or not for profit organisations including other businesses
Department for Education,NATIONAL COLLEGE FOR TEACHING AND LEADERSHIP AGENCY,23/09/2016,Grants,Delivery Directorate,FYLDE COAST TEACHING SCHOOL,4000248160,6000.00,Grants to educational establishments or not for profit organisations including other businesses
Department for Education,NATIONAL COLLEGE FOR TEACHING AND LEADERSHIP AGENCY,23/09/2016,Grants,Delivery Directorate,HOLLAND PARK SCHOOL,4000248163,50000.00,Grants to educational establishments or not for profit organisations including other businesses
Department for Education,NATIONAL COLLEGE FOR TEACHING AND LEADERSHIP AGENCY,23/09/2016,Grants,Delivery Directorate,HOLLAND PARK SCHOOL,4000248163,6000.00,Grants to educational establishments or not for profit organisations including other businesses
Department for Education,DEPARTMENT FOR EDUCATION,23/09/2016,Professional Services Consultancy and Contingent Labour,Human Resources Group,MINISTRY OF JUSTICE,4000248164,31860.00,"Fees / expenses of professionals such as auditors, accountants, lawyers, etc. engaged to provide advice or opinion on how to affect something"
Department for Education,NATIONAL COLLEGE FOR TEACHING AND LEADERSHIP AGENCY,23/09/2016,Grants,Delivery Directorate,ST MARTINS SCHOOL,4000248166,40000.00,Grants to educational establishments or not for profit organisations including other businesses
Department for Education,NATIONAL COLLEGE FOR TEACHING AND LEADERSHIP AGENCY,23/09/2016,Grants,Delivery Directorate,CHALLNEY HIGH SCHOOL FOR BOYS,4000248167,28000.00,Grants to educational establishments or not for profit organisations including other businesses
Department for Education,NATIONAL COLLEGE FOR TEACHING AND LEADERSHIP AGENCY,23/09/2016,Grants,Delivery Directorate,CHALLNEY HIGH SCHOOL FOR BOYS,4000248167,6000.00,Grants to educational establishments or not for profit organisations including other businesses
Department for Education,NATIONAL COLLEGE FOR TEACHING AND LEADERSHIP AGENCY,23/09/2016,Grants,Delivery Directorate,H TYNDALE,4000248172,50000.00,Grants to educational establishments or not for profit organisations including other businesses
Department for Education,NATIONAL COLLEGE FOR TEACHING AND LEADERSHIP AGENCY,23/09/2016,Grants,Delivery Directorate,H TYNDALE,4000248172,6000.00,Grants to educational establishments or not for profit organisations including other businesses
